{"text_format":"1","workbook":"xlsx","n_sheets":48,"sheets":["01北海道","02青森","03岩手","04宮城","05秋田","06山形","07福島","08茨城","09栃木","10群馬","11埼玉","12東京","13神奈川","14千葉","15山梨","16静岡","17長野","18愛知","19岐阜","20新潟","21富山","22石川","23福井","24三重","25京都","26大阪","27兵庫","28奈良","29滋賀","30和歌山","31岡山","32広島","33鳥取","34島根","35山口","36徳島","37香川","38愛媛","39高知","40福岡","41佐賀","42長崎","43熊本","44大分","45宮崎","46鹿児島","47沖縄","サンプル"],"not_rendered":{"charts":0,"images":0,"macros":0,"external_links":0,"defined_names":489,"comments":0,"pivot_tables":0},"unopened":[],"bounds":{"document_bytes":16777216,"sheet_cells":100000,"rows_first":2000,"rows_last":500,"rows_between":2000,"halvings":0,"cell_chars":16384,"cell_head_chars":4096},"cells_cut":0,"cells_raw":0,"read":"whole","date_system":"1900"}

{"sheet":"01北海道","index":0,"n_rows":42,"n_cols":18,"rows_kept":42,"cut":false,"hidden":false,"merged":[[34,1,34,2],[35,1,35,2],[36,1,36,2],[37,1,37,2],[42,1,46,16],[33,1,33,2],[21,1,22,2],[21,3,22,15],[24,1,24,2],[25,1,25,2],[26,1,26,2],[27,1,27,2],[28,1,28,2],[29,1,29,2],[30,1,30,2],[31,1,31,2],[32,1,32,2],[7,1,7,3],[7,4,7,15],[1,0,1,17],[2,16,2,17],[3,3,3,15],[3,16,3,17],[5,1,5,3],[5,4,5,12],[5,13,5,15],[6,1,6,3],[6,4,6,5],[6,6,6,10],[6,11,6,12],[6,13,6,16]]}
[null,null,null,null,null,null,null,null,null,null,null,null,null,null,null,null,"学校番号：","　　　　"]
["《2026年度 年間購読計画表》"]
["【01北海道】",null,null,null,null,null,null,null,null,null,null,null,null,null,null,null,"選んでください↓"]
["学　校　名",null,null,null,null,null,null,null,null,null,null,null,null,null,null,null,"（新規校）"]
[]
[null,"実践代表者名",null,null,null,null,null,null,null,null,null,null,null,"実践者（教師）",null,null,null,"人"]
[null,"連　絡　先",null,null,"電話：",null,null,null,null,null,null,"ファクス："]
[null,"実践形式",null,null,null,null,null,null,null,null,null,null,null,null,null,null,1]
[]
[null,null,null,null,null,null,null,null,null,null,null,"※割当部数"]
[null,null,null,null,null,null,null,null,null,null,null,null,"Ａ：１銘柄につき１部を延べ２か月"]
[null,null,null,null,null,null,null,null,null,null,null,null,"Ｂ：１銘柄につき１部を延べ４か月"]
[]
["《月決め》"]
[null,"　※以下は太枠に囲まれた部分のみをご記入ください。"]
[null,"　　 割当部数に応じて、配達を希望する月に希望部数を記入してください。"]
[null,"　　 初めて実践される方は、別紙の購読パターンを参考にご記入ください。"]
[null,"　※継続校は４月以降の購読開始となります。"]
[null,"　　新規校は参加申請書の提出時期によって５月以降か９月以降の開始となります。"]
[]
[null,null,null,null,null,null,null,null,null,null,null,null,null,null,null,null,"合計"]
[null,"新聞名",null,"配達月",null,null,null,null,null,null,null,null,null,null,null,null,"\n月数"]
[]
[null,null,null,"4月","5月","6月","7月","8月","9月","10月","11月","12月","1月","2月","3月"]
[null,"実践形式Aの場合\n例）毎朝",null,null,null,null,null,null,1,1,null,null,null,null,null,null,2]
[null,"実践形式Bの場合\n例）毎朝",null,null,null,null,null,null,1,null,1,1,null,1,null,null,4]
[null,"朝　日",null,null,null,null,null,null,null,null,null,null,null,null,null,null,{"$f":"SUM(D27:O27)","v":0}]
[null,"毎　日",null,null,null,null,null,null,null,null,null,null,null,null,null,null,{"$f":"SUM(D28:O28)","v":0}]
[null,"読　売",null,null,null,null,null,null,null,null,null,null,null,null,null,null,0]
[null,"日　経",null,null,null,null,null,null,null,null,null,null,null,null,null,null,0]
["　","産　経",null,null,null,null,null,null,null,null,null,null,null,null,null,null,0]
[null,"北海道",null,null,null,null,null,null,null,null,null,null,null,null,null,null,0]
[null,"室　蘭",null,null,null,null,null,null,null,null,null,null,null,null,null,null,0]
[null,"十勝毎日",null,null,null,null,null,null,null,null,null,null,null,null,null,null,0]
[null,"釧　路",null,null,null,null,null,null,null,null,null,null,null,null,null,null,0]
[null,"苫小牧",null,null,null,null,null,null,null,null,null,null,null,null,null,null,0]
[null,"函　館",null,null,null,null,null,null,null,null,null,null,null,null,null,null,0]
[null,null,null,null,null,null,null,null,null,null,null,null,null,null,null,null,0]
[]
[null,"※地域によっては上記新聞すべてを配達できない場合があります。その際はご連絡いたします"]
[]
["《その他要望》    ※記者派遣（オリエンテーション）、新聞社見学等希望があればご記入ください。"]

{"sheet":"02青森","index":1,"n_rows":42,"n_cols":18,"rows_kept":42,"cut":false,"hidden":false,"merged":[[34,1,34,2],[35,1,35,2],[36,1,36,2],[37,1,37,2],[42,1,46,16],[33,1,33,2],[21,1,22,2],[21,3,22,15],[24,1,24,2],[25,1,25,2],[26,1,26,2],[27,1,27,2],[28,1,28,2],[29,1,29,2],[30,1,30,2],[31,1,31,2],[32,1,32,2],[7,1,7,3],[7,4,7,15],[1,0,1,17],[2,16,2,17],[3,3,3,15],[3,16,3,17],[5,1,5,3],[5,4,5,12],[5,13,5,15],[6,1,6,3],[6,4,6,5],[6,6,6,10],[6,11,6,12],[6,13,6,16]]}
[null,null,null,null,null,null,null,null,null,null,null,null,null,null,null,null,"学校番号：","　　　　"]
["《2026年度 年間購読計画表》"]
["【02青森】",null,null,null,null,null,null,null,null,null,null,null,null,null,null,null,"選んでください↓"]
["学　校　名",null,null,null,null,null,null,null,null,null,null,null,null,null,null,null,"（新規校）"]
[]
[null,"実践代表者名",null,null,null,null,null,null,null,null,null,null,null,"実践者（教師）",null,null,null,"人"]
[null,"連　絡　先",null,null,"電話：",null,null,null,null,null,null,"ファクス："]
[null,"実践形式",null,null,null,null,null,null,null,null,null,null,null,null,null,null,1]
[]
[null,null,null,null,null,null,null,null,null,null,null,"※割当部数"]
[null,null,null,null,null,null,null,null,null,null,null,null,"Ａ：１銘柄につき１部を延べ２か月"]
[null,null,null,null,null,null,null,null,null,null,null,null,"Ｂ：１銘柄につき１部を延べ４か月"]
[]
["《月決め》"]
[null,"　※以下は太枠に囲まれた部分のみをご記入ください。"]
[null,"　　 割当部数に応じて、配達を希望する月に希望部数を記入してください。"]
[null,"　　 初めて実践される方は、別紙の購読パターンを参考にご記入ください。"]
[null,"　※継続校は４月以降の購読開始となります。"]
[null,"　　新規校は参加申請書の提出時期によって５月以降か９月以降の開始となります。"]
[]
[null,null,null,null,null,null,null,null,null,null,null,null,null,null,null,null,"合計"]
[null,"新聞名",null,"配達月",null,null,null,null,null,null,null,null,null,null,null,null,"\n月数"]
[]
[null,null,null,"4月","5月","6月","7月","8月","9月","10月","11月","12月","1月","2月","3月"]
[null,"実践形式Aの場合\n例）毎朝",null,null,null,null,null,null,1,1,null,null,null,null,null,null,2]
[null,"実践形式Bの場合\n例）毎朝",null,null,null,null,null,null,1,null,1,1,null,1,null,null,4]
[null,"朝　日",null,null,null,null,null,null,null,null,null,null,null,null,null,null,{"$f":"SUM(D27:O27)","v":0}]
[null,"毎　日",null,null,null,null,null,null,null,null,null,null,null,null,null,null,{"$f":"SUM(D28:O28)","v":0}]
[null,"読　売",null,null,null,null,null,null,null,null,null,null,null,null,null,null,0]
[null,"日　経",null,null,null,null,null,null,null,null,null,null,null,null,null,null,0]
["　","産　経",null,null,null,null,null,null,null,null,null,null,null,null,null,null,0]
[null,"東　奥",null,null,null,null,null,null,null,null,null,null,null,null,null,null,0]
[null,"陸　奥",null,null,null,null,null,null,null,null,null,null,null,null,null,null,0]
[null,"デーリー東北",null,null,null,null,null,null,null,null,null,null,null,null,null,null,0]
[null,"河　北",null,null,null,null,null,null,null,null,null,null,null,null,null,null,0]
[null,null,null,null,null,null,null,null,null,null,null,null,null,null,null,null,0]
[null,null,null,null,null,null,null,null,null,null,null,null,null,null,null,null,0]
[null,null,null,null,null,null,null,null,null,null,null,null,null,null,null,null,0]
[]
[null,"※地域によっては上記新聞すべてを配達できない場合があります。その際はご連絡いたします"]
[]
["《その他要望》    ※記者派遣（オリエンテーション）、新聞社見学等希望があればご記入ください。"]

{"sheet":"03岩手","index":2,"n_rows":42,"n_cols":18,"rows_kept":42,"cut":false,"hidden":false,"merged":[[1,0,1,17],[5,1,5,3],[6,1,6,3],[7,1,7,3],[27,1,27,2],[26,1,26,2],[21,1,22,2],[24,1,24,2],[25,1,25,2],[21,3,22,15],[2,16,2,17],[3,3,3,15],[3,16,3,17],[5,4,5,12],[5,13,5,15],[6,4,6,5],[6,6,6,10],[6,11,6,12],[6,13,6,16],[7,4,7,15],[37,1,37,2],[42,1,46,16],[28,1,28,2],[36,1,36,2],[31,1,31,2],[35,1,35,2],[32,1,32,2],[33,1,33,2],[34,1,34,2],[29,1,29,2],[30,1,30,2]]}
[null,null,null,null,null,null,null,null,null,null,null,null,null,null,null,null,"学校番号：","　　　　"]
["《2026年度 年間購読計画表》"]
["【03岩手】",null,null,null,null,null,null,null,null,null,null,null,null,null,null,null,"選んでください↓"]
["学　校　名",null,null,null,null,null,null,null,null,null,null,null,null,null,null,null,"（新規校）"]
[]
[null,"実践代表者名",null,null,null,null,null,null,null,null,null,null,null,"実践者（教師）",null,null,null,"人"]
[null,"連　絡　先",null,null,"電話：",null,null,null,null,null,null,"ファクス："]
[null,"実践形式",null,null,null,null,null,null,null,null,null,null,null,null,null,null,1]
[]
[null,null,null,null,null,null,null,null,null,null,null,"※割当部数"]
[null,null,null,null,null,null,null,null,null,null,null,null,"Ａ：１銘柄につき１部を延べ２か月"]
[null,null,null,null,null,null,null,null,null,null,null,null,"Ｂ：１銘柄につき１部を延べ４か月"]
[]
["《月決め》"]
[null,"　※以下は太枠に囲まれた部分のみをご記入ください。"]
[null,"　　 割当部数に応じて、配達を希望する月に希望部数を記入してください。"]
[null,"　　 初めて実践される方は、別紙の購読パターンを参考にご記入ください。"]
[null,"　※継続校は４月以降の購読開始となります。"]
[null,"　　新規校は参加申請書の提出時期によって５月以降か９月以降の開始となります。"]
[]
[null,null,null,null,null,null,null,null,null,null,null,null,null,null,null,null,"合計"]
[null,"新聞名",null,"配達月",null,null,null,null,null,null,null,null,null,null,null,null,"\n月数"]
[]
[null,null,null,"4月","5月","6月","7月","8月","9月","10月","11月","12月","1月","2月","3月"]
[null,"実践形式Aの場合\n例）毎朝",null,null,null,null,null,null,1,1,null,null,null,null,null,null,2]
[null,"実践形式Bの場合\n例）毎朝",null,null,null,null,null,null,1,null,1,1,null,1,null,null,4]
[null,"朝　日",null,null,null,null,null,null,null,null,null,null,null,null,null,null,{"$f":"SUM(D27:O27)","v":0}]
[null,"毎　日",null,null,null,null,null,null,null,null,null,null,null,null,null,null,{"$f":"SUM(D28:O28)","v":0}]
[null,"読　売",null,null,null,null,null,null,null,null,null,null,null,null,null,null,0]
[null,"日　経",null,null,null,null,null,null,null,null,null,null,null,null,null,null,0]
["　","産　経",null,null,null,null,null,null,null,null,null,null,null,null,null,null,0]
[null,"岩手日報",null,null,null,null,null,null,null,null,null,null,null,null,null,null,0]
[null,"岩手日日",null,null,null,null,null,null,null,null,null,null,null,null,null,null,0]
[null,"河　北",null,null,null,null,null,null,null,null,null,null,null,null,null,null,0]
[null,null,null,null,null,null,null,null,null,null,null,null,null,null,null,null,0]
[null,null,null,null,null,null,null,null,null,null,null,null,null,null,null,null,0]
[null,null,null,null,null,null,null,null,null,null,null,null,null,null,null,null,0]
[null,null,null,null,null,null,null,null,null,null,null,null,null,null,null,null,0]
[]
[null,"※地域によっては上記新聞すべてを配達できない場合があります。その際はご連絡いたします"]
[]
["《その他要望》    ※記者派遣（オリエンテーション）、新聞社見学等希望があればご記入ください。"]

{"sheet":"04宮城","index":3,"n_rows":42,"n_cols":18,"rows_kept":42,"cut":false,"hidden":false,"merged":[[6,4,6,5],[6,6,6,10],[6,11,6,12],[6,13,6,16],[7,4,7,15],[2,16,2,17],[3,3,3,15],[3,16,3,17],[5,4,5,12],[5,13,5,15],[32,1,32,2],[33,1,33,2],[34,1,34,2],[29,1,29,2],[30,1,30,2],[42,1,46,16],[37,1,37,2],[1,0,1,17],[5,1,5,3],[6,1,6,3],[7,1,7,3],[27,1,27,2],[21,3,22,15],[26,1,26,2],[21,1,22,2],[24,1,24,2],[25,1,25,2],[28,1,28,2],[36,1,36,2],[31,1,31,2],[35,1,35,2]]}
[null,null,null,null,null,null,null,null,null,null,null,null,null,null,null,null,"学校番号：","　　　　"]
["《2026年度 年間購読計画表》"]
["【04宮城】",null,null,null,null,null,null,null,null,null,null,null,null,null,null,null,"選んでください↓"]
["学　校　名",null,null,null,null,null,null,null,null,null,null,null,null,null,null,null,"（新規校）"]
[]
[null,"実践代表者名",null,null,null,null,null,null,null,null,null,null,null,"実践者（教師）",null,null,null,"人"]
[null,"連　絡　先",null,null,"電話：",null,null,null,null,null,null,"ファクス："]
[null,"実践形式",null,null,null,null,null,null,null,null,null,null,null,null,null,null,1]
[]
[null,null,null,null,null,null,null,null,null,null,null,"※割当部数"]
[null,null,null,null,null,null,null,null,null,null,null,null,"Ａ：１銘柄につき１部を延べ２か月"]
[null,null,null,null,null,null,null,null,null,null,null,null,"Ｂ：１銘柄につき１部を延べ４か月"]
[]
["《月決め》"]
[null,"　※以下は太枠に囲まれた部分のみをご記入ください。"]
[null,"　　 割当部数に応じて、配達を希望する月に希望部数を記入してください。"]
[null,"　　 初めて実践される方は、別紙の購読パターンを参考にご記入ください。"]
[null,"　※継続校は４月以降の購読開始となります。"]
[null,"　　新規校は参加申請書の提出時期によって５月以降か９月以降の開始となります。"]
[]
[null,null,null,null,null,null,null,null,null,null,null,null,null,null,null,null,"合計"]
[null,"新聞名",null,"配達月",null,null,null,null,null,null,null,null,null,null,null,null,"\n月数"]
[]
[null,null,null,"4月","5月","6月","7月","8月","9月","10月","11月","12月","1月","2月","3月"]
[null,"実践形式Aの場合\n例）毎朝",null,null,null,null,null,null,1,1,null,null,null,null,null,null,2]
[null,"実践形式Bの場合\n例）毎朝",null,null,null,null,null,null,1,null,1,1,null,1,null,null,4]
[null,"朝　日",null,null,null,null,null,null,null,null,null,null,null,null,null,null,{"$f":"SUM(D27:O27)","v":0}]
[null,"毎　日",null,null,null,null,null,null,null,null,null,null,null,null,null,null,{"$f":"SUM(D28:O28)","v":0}]
[null,"読　売",null,null,null,null,null,null,null,null,null,null,null,null,null,null,0]
[null,"日　経",null,null,null,null,null,null,null,null,null,null,null,null,null,null,0]
["　","産　経",null,null,null,null,null,null,null,null,null,null,null,null,null,null,0]
[null,"河　北",null,null,null,null,null,null,null,null,null,null,null,null,null,null,0]
[null,null,null,null,null,null,null,null,null,null,null,null,null,null,null,null,0]
[null,null,null,null,null,null,null,null,null,null,null,null,null,null,null,null,0]
[null,null,null,null,null,null,null,null,null,null,null,null,null,null,null,null,0]
[null,null,null,null,null,null,null,null,null,null,null,null,null,null,null,null,0]
[null,null,null,null,null,null,null,null,null,null,null,null,null,null,null,null,0]
[null,null,null,null,null,null,null,null,null,null,null,null,null,null,null,null,0]
[]
[null,"※地域によっては上記新聞すべてを配達できない場合があります。その際はご連絡いたします"]
[]
["《その他要望》    ※記者派遣（オリエンテーション）、新聞社見学等希望があればご記入ください。"]

{"sheet":"05秋田","index":4,"n_rows":42,"n_cols":18,"rows_kept":42,"cut":false,"hidden":false,"merged":[[6,4,6,5],[6,6,6,10],[6,11,6,12],[6,13,6,16],[7,4,7,15],[2,16,2,17],[3,3,3,15],[3,16,3,17],[5,4,5,12],[5,13,5,15],[32,1,32,2],[33,1,33,2],[34,1,34,2],[29,1,29,2],[30,1,30,2],[42,1,46,16],[37,1,37,2],[1,0,1,17],[5,1,5,3],[6,1,6,3],[7,1,7,3],[27,1,27,2],[21,3,22,15],[26,1,26,2],[21,1,22,2],[24,1,24,2],[25,1,25,2],[28,1,28,2],[36,1,36,2],[31,1,31,2],[35,1,35,2]]}
[null,null,null,null,null,null,null,null,null,null,null,null,null,null,null,null,"学校番号：","　　　　"]
["《2026年度 年間購読計画表》"]
["【05秋田】",null,null,null,null,null,null,null,null,null,null,null,null,null,null,null,"選んでください↓"]
["学　校　名",null,null,null,null,null,null,null,null,null,null,null,null,null,null,null,"（新規校）"]
[]
[null,"実践代表者名",null,null,null,null,null,null,null,null,null,null,null,"実践者（教師）",null,null,null,"人"]
[null,"連　絡　先",null,null,"電話：",null,null,null,null,null,null,"ファクス："]
[null,"実践形式",null,null,null,null,null,null,null,null,null,null,null,null,null,null,1]
[]
[null,null,null,null,null,null,null,null,null,null,null,"※割当部数"]
[null,null,null,null,null,null,null,null,null,null,null,null,"Ａ：１銘柄につき１部を延べ２か月"]
[null,null,null,null,null,null,null,null,null,null,null,null,"Ｂ：１銘柄につき１部を延べ４か月"]
[]
["《月決め》"]
[null,"　※以下は太枠に囲まれた部分のみをご記入ください。"]
[null,"　　 割当部数に応じて、配達を希望する月に希望部数を記入してください。"]
[null,"　　 初めて実践される方は、別紙の購読パターンを参考にご記入ください。"]
[null,"　※継続校は４月以降の購読開始となります。"]
[null,"　　新規校は参加申請書の提出時期によって５月以降か９月以降の開始となります。"]
[]
[null,null,null,null,null,null,null,null,null,null,null,null,null,null,null,null,"合計"]
[null,"新聞名",null,"配達月",null,null,null,null,null,null,null,null,null,null,null,null,"\n月数"]
[]
[null,null,null,"4月","5月","6月","7月","8月","9月","10月","11月","12月","1月","2月","3月"]
[null,"実践形式Aの場合\n例）毎朝",null,null,null,null,null,null,1,1,null,null,null,null,null,null,2]
[null,"実践形式Bの場合\n例）毎朝",null,null,null,null,null,null,1,null,1,1,null,1,null,null,4]
[null,"朝　日",null,null,null,null,null,null,null,null,null,null,null,null,null,null,{"$f":"SUM(D27:O27)","v":0}]
[null,"毎　日",null,null,null,null,null,null,null,null,null,null,null,null,null,null,{"$f":"SUM(D28:O28)","v":0}]
[null,"読　売",null,null,null,null,null,null,null,null,null,null,null,null,null,null,0]
[null,"日　経",null,null,null,null,null,null,null,null,null,null,null,null,null,null,0]
["　","産　経",null,null,null,null,null,null,null,null,null,null,null,null,null,null,0]
[null,"河　北",null,null,null,null,null,null,null,null,null,null,null,null,null,null,0]
[null,"秋田魁",null,null,null,null,null,null,null,null,null,null,null,null,null,null,0]
[null,"北　羽",null,null,null,null,null,null,null,null,null,null,null,null,null,null,0]
[null,null,null,null,null,null,null,null,null,null,null,null,null,null,null,null,0]
[null,null,null,null,null,null,null,null,null,null,null,null,null,null,null,null,0]
[null,null,null,null,null,null,null,null,null,null,null,null,null,null,null,null,0]
[null,null,null,null,null,null,null,null,null,null,null,null,null,null,null,null,0]
[]
[null,"※地域によっては上記新聞すべてを配達できない場合があります。その際はご連絡いたします"]
[]
["《その他要望》    ※記者派遣（オリエンテーション）、新聞社見学等希望があればご記入ください。"]

{"sheet":"06山形","index":5,"n_rows":42,"n_cols":18,"rows_kept":42,"cut":false,"hidden":false,"merged":[[1,0,1,17],[5,1,5,3],[6,1,6,3],[7,1,7,3],[27,1,27,2],[26,1,26,2],[21,1,22,2],[24,1,24,2],[25,1,25,2],[21,3,22,15],[2,16,2,17],[3,3,3,15],[3,16,3,17],[5,4,5,12],[5,13,5,15],[6,4,6,5],[6,6,6,10],[6,11,6,12],[6,13,6,16],[7,4,7,15],[37,1,37,2],[42,1,46,16],[28,1,28,2],[36,1,36,2],[31,1,31,2],[35,1,35,2],[32,1,32,2],[33,1,33,2],[34,1,34,2],[29,1,29,2],[30,1,30,2]]}
[null,null,null,null,null,null,null,null,null,null,null,null,null,null,null,null,"学校番号：","　　　　"]
["《2026年度 年間購読計画表》"]
["【06山形】",null,null,null,null,null,null,null,null,null,null,null,null,null,null,null,"選んでください↓"]
["学　校　名",null,null,null,null,null,null,null,null,null,null,null,null,null,null,null,"（新規校）"]
[]
[null,"実践代表者名",null,null,null,null,null,null,null,null,null,null,null,"実践者（教師）",null,null,null,"人"]
[null,"連　絡　先",null,null,"電話：",null,null,null,null,null,null,"ファクス："]
[null,"実践形式",null,null,null,null,null,null,null,null,null,null,null,null,null,null,1]
[]
[null,null,null,null,null,null,null,null,null,null,null,"※割当部数"]
[null,null,null,null,null,null,null,null,null,null,null,null,"Ａ：１銘柄につき１部を延べ２か月"]
[null,null,null,null,null,null,null,null,null,null,null,null,"Ｂ：１銘柄につき１部を延べ４か月"]
[]
["《月決め》"]
[null,"　※以下は太枠に囲まれた部分のみをご記入ください。"]
[null,"　　 割当部数に応じて、配達を希望する月に希望部数を記入してください。"]
[null,"　　 初めて実践される方は、別紙の購読パターンを参考にご記入ください。"]
[null,"　※継続校は４月以降の購読開始となります。"]
[null,"　　新規校は参加申請書の提出時期によって５月以降か９月以降の開始となります。"]
[]
[null,null,null,null,null,null,null,null,null,null,null,null,null,null,null,null,"合計"]
[null,"新聞名",null,"配達月",null,null,null,null,null,null,null,null,null,null,null,null,"\n月数"]
[]
[null,null,null,"4月","5月","6月","7月","8月","9月","10月","11月","12月","1月","2月","3月"]
[null,"実践形式Aの場合\n例）毎朝",null,null,null,null,null,null,1,1,null,null,null,null,null,null,2]
[null,"実践形式Bの場合\n例）毎朝",null,null,null,null,null,null,1,null,1,1,null,1,null,null,4]
[null,"朝　日",null,null,null,null,null,null,null,null,null,null,null,null,null,null,{"$f":"SUM(D27:O27)","v":0}]
[null,"毎　日",null,null,null,null,null,null,null,null,null,null,null,null,null,null,{"$f":"SUM(D28:O28)","v":0}]
[null,"読　売",null,null,null,null,null,null,null,null,null,null,null,null,null,null,0]
[null,"日　経",null,null,null,null,null,null,null,null,null,null,null,null,null,null,0]
["　","産　経",null,null,null,null,null,null,null,null,null,null,null,null,null,null,0]
[null,"河　北",null,null,null,null,null,null,null,null,null,null,null,null,null,null,0]
[null,"山　形",null,null,null,null,null,null,null,null,null,null,null,null,null,null,0]
[null,"荘　内",null,null,null,null,null,null,null,null,null,null,null,null,null,null,0]
[null,null,null,null,null,null,null,null,null,null,null,null,null,null,null,null,0]
[null,null,null,null,null,null,null,null,null,null,null,null,null,null,null,null,0]
[null,null,null,null,null,null,null,null,null,null,null,null,null,null,null,null,0]
[null,null,null,null,null,null,null,null,null,null,null,null,null,null,null,null,0]
[]
[null,"※地域によっては上記新聞すべてを配達できない場合があります。その際はご連絡いたします"]
[]
["《その他要望》    ※記者派遣（オリエンテーション）、新聞社見学等希望があればご記入ください。"]

{"sheet":"07福島","index":6,"n_rows":42,"n_cols":18,"rows_kept":42,"cut":false,"hidden":false,"merged":[[6,4,6,5],[6,6,6,10],[6,11,6,12],[6,13,6,16],[7,4,7,15],[2,16,2,17],[3,3,3,15],[3,16,3,17],[5,4,5,12],[5,13,5,15],[32,1,32,2],[33,1,33,2],[34,1,34,2],[29,1,29,2],[30,1,30,2],[42,1,46,16],[37,1,37,2],[1,0,1,17],[5,1,5,3],[6,1,6,3],[7,1,7,3],[27,1,27,2],[21,3,22,15],[26,1,26,2],[21,1,22,2],[24,1,24,2],[25,1,25,2],[28,1,28,2],[36,1,36,2],[31,1,31,2],[35,1,35,2]]}
[null,null,null,null,null,null,null,null,null,null,null,null,null,null,null,null,"学校番号：","　　　　"]
["《2026年度 年間購読計画表》"]
["【07福島】",null,null,null,null,null,null,null,null,null,null,null,null,null,null,null,"選んでください↓"]
["学　校　名",null,null,null,null,null,null,null,null,null,null,null,null,null,null,null,"（新規校）"]
[]
[null,"実践代表者名",null,null,null,null,null,null,null,null,null,null,null,"実践者（教師）",null,null,null,"人"]
[null,"連　絡　先",null,null,"電話：",null,null,null,null,null,null,"ファクス："]
[null,"実践形式",null,null,null,null,null,null,null,null,null,null,null,null,null,null,1]
[]
[null,null,null,null,null,null,null,null,null,null,null,"※割当部数"]
[null,null,null,null,null,null,null,null,null,null,null,null,"Ａ：１銘柄につき１部を延べ２か月"]
[null,null,null,null,null,null,null,null,null,null,null,null,"Ｂ：１銘柄につき１部を延べ４か月"]
[]
["《月決め》"]
[null,"　※以下は太枠に囲まれた部分のみをご記入ください。"]
[null,"　　 割当部数に応じて、配達を希望する月に希望部数を記入してください。"]
[null,"　　 初めて実践される方は、別紙の購読パターンを参考にご記入ください。"]
[null,"　※継続校は４月以降の購読開始となります。"]
[null,"　　新規校は参加申請書の提出時期によって５月以降か９月以降の開始となります。"]
[]
[null,null,null,null,null,null,null,null,null,null,null,null,null,null,null,null,"合計"]
[null,"新聞名",null,"配達月",null,null,null,null,null,null,null,null,null,null,null,null,"\n月数"]
[]
[null,null,null,"4月","5月","6月","7月","8月","9月","10月","11月","12月","1月","2月","3月"]
[null,"実践形式Aの場合\n例）毎朝",null,null,null,null,null,null,1,1,null,null,null,null,null,null,2]
[null,"実践形式Bの場合\n例）毎朝",null,null,null,null,null,null,1,null,1,1,null,1,null,null,4]
[null,"朝　日",null,null,null,null,null,null,null,null,null,null,null,null,null,null,{"$f":"SUM(D27:O27)","v":0}]
[null,"毎　日",null,null,null,null,null,null,null,null,null,null,null,null,null,null,{"$f":"SUM(D28:O28)","v":0}]
[null,"読　売",null,null,null,null,null,null,null,null,null,null,null,null,null,null,0]
[null,"日　経",null,null,null,null,null,null,null,null,null,null,null,null,null,null,0]
["　","産　経",null,null,null,null,null,null,null,null,null,null,null,null,null,null,0]
[null,"河　北",null,null,null,null,null,null,null,null,null,null,null,null,null,null,0]
[null,"福島民報",null,null,null,null,null,null,null,null,null,null,null,null,null,null,0]
[null,"福島民友",null,null,null,null,null,null,null,null,null,null,null,null,null,null,0]
[null,null,null,null,null,null,null,null,null,null,null,null,null,null,null,null,0]
[null,null,null,null,null,null,null,null,null,null,null,null,null,null,null,null,0]
[null,null,null,null,null,null,null,null,null,null,null,null,null,null,null,null,0]
[null,null,null,null,null,null,null,null,null,null,null,null,null,null,null,null,0]
[]
[null,"※地域によっては上記新聞すべてを配達できない場合があります。その際はご連絡いたします"]
[]
["《その他要望》    ※記者派遣（オリエンテーション）、新聞社見学等希望があればご記入ください。"]

{"sheet":"08茨城","index":7,"n_rows":42,"n_cols":18,"rows_kept":42,"cut":false,"hidden":false,"merged":[[6,4,6,5],[6,6,6,10],[6,11,6,12],[6,13,6,16],[7,4,7,15],[2,16,2,17],[3,3,3,15],[3,16,3,17],[5,4,5,12],[5,13,5,15],[32,1,32,2],[33,1,33,2],[34,1,34,2],[29,1,29,2],[30,1,30,2],[42,1,46,16],[37,1,37,2],[1,0,1,17],[5,1,5,3],[6,1,6,3],[7,1,7,3],[27,1,27,2],[21,3,22,15],[26,1,26,2],[21,1,22,2],[24,1,24,2],[25,1,25,2],[28,1,28,2],[36,1,36,2],[31,1,31,2],[35,1,35,2]]}
[null,null,null,null,null,null,null,null,null,null,null,null,null,null,null,null,"学校番号：","　　　　"]
["《2026年度 年間購読計画表》"]
["【08茨城】",null,null,null,null,null,null,null,null,null,null,null,null,null,null,null,"選んでください↓"]
["学　校　名",null,null,null,null,null,null,null,null,null,null,null,null,null,null,null,"（新規校）"]
[]
[null,"実践代表者名",null,null,null,null,null,null,null,null,null,null,null,"実践者（教師）",null,null,null,"人"]
[null,"連　絡　先",null,null,"電話：",null,null,null,null,null,null,"ファクス："]
[null,"実践形式",null,null,null,null,null,null,null,null,null,null,null,null,null,null,1]
[]
[null,null,null,null,null,null,null,null,null,null,null,"※割当部数"]
[null,null,null,null,null,null,null,null,null,null,null,null,"Ａ：１銘柄につき１部を延べ２か月"]
[null,null,null,null,null,null,null,null,null,null,null,null,"Ｂ：１銘柄につき１部を延べ４か月"]
[]
["《月決め》"]
[null,"　※以下は太枠に囲まれた部分のみをご記入ください。"]
[null,"　　 割当部数に応じて、配達を希望する月に希望部数を記入してください。"]
[null,"　　 初めて実践される方は、別紙の購読パターンを参考にご記入ください。"]
[null,"　※継続校は４月以降の購読開始となります。"]
[null,"　　新規校は参加申請書の提出時期によって５月以降か９月以降の開始となります。"]
[]
[null,null,null,null,null,null,null,null,null,null,null,null,null,null,null,null,"合計"]
[null,"新聞名",null,"配達月",null,null,null,null,null,null,null,null,null,null,null,null,"\n月数"]
[]
[null,null,null,"4月","5月","6月","7月","8月","9月","10月","11月","12月","1月","2月","3月"]
[null,"実践形式Aの場合\n例）毎朝",null,null,null,null,null,null,1,1,null,null,null,null,null,null,2]
[null,"実践形式Bの場合\n例）毎朝",null,null,null,null,null,null,1,null,1,1,null,1,null,null,4]
[null,"朝　日",null,null,null,null,null,null,null,null,null,null,null,null,null,null,{"$f":"SUM(D27:O27)","v":0}]
[null,"毎　日",null,null,null,null,null,null,null,null,null,null,null,null,null,null,{"$f":"SUM(D28:O28)","v":0}]
[null,"読　売",null,null,null,null,null,null,null,null,null,null,null,null,null,null,0]
[null,"日　経",null,null,null,null,null,null,null,null,null,null,null,null,null,null,0]
["　","東　京",null,null,null,null,null,null,null,null,null,null,null,null,null,null,0]
[null,"産　経",null,null,null,null,null,null,null,null,null,null,null,null,null,null,0]
[null,"茨　城",null,null,null,null,null,null,null,null,null,null,null,null,null,null,0]
[null,null,null,null,null,null,null,null,null,null,null,null,null,null,null,null,0]
[null,null,null,null,null,null,null,null,null,null,null,null,null,null,null,null,0]
[null,null,null,null,null,null,null,null,null,null,null,null,null,null,null,null,0]
[null,null,null,null,null,null,null,null,null,null,null,null,null,null,null,null,0]
[null,null,null,null,null,null,null,null,null,null,null,null,null,null,null,null,0]
[]
[null,"※地域によっては上記新聞すべてを配達できない場合があります。その際はご連絡いたします"]
[]
["《その他要望》    ※記者派遣（オリエンテーション）、新聞社見学等希望があればご記入ください。"]

{"sheet":"09栃木","index":8,"n_rows":42,"n_cols":18,"rows_kept":42,"cut":false,"hidden":false,"merged":[[1,0,1,17],[5,1,5,3],[6,1,6,3],[7,1,7,3],[27,1,27,2],[26,1,26,2],[21,1,22,2],[24,1,24,2],[25,1,25,2],[21,3,22,15],[2,16,2,17],[3,3,3,15],[3,16,3,17],[5,4,5,12],[5,13,5,15],[6,4,6,5],[6,6,6,10],[6,11,6,12],[6,13,6,16],[7,4,7,15],[37,1,37,2],[42,1,46,16],[28,1,28,2],[36,1,36,2],[31,1,31,2],[35,1,35,2],[32,1,32,2],[33,1,33,2],[34,1,34,2],[29,1,29,2],[30,1,30,2]]}
[null,null,null,null,null,null,null,null,null,null,null,null,null,null,null,null,"学校番号：","　　　　"]
["《2026年度 年間購読計画表》"]
["【09栃木】",null,null,null,null,null,null,null,null,null,null,null,null,null,null,null,"選んでください↓"]
["学　校　名",null,null,null,null,null,null,null,null,null,null,null,null,null,null,null,"（新規校）"]
[]
[null,"実践代表者名",null,null,null,null,null,null,null,null,null,null,null,"実践者（教師）",null,null,null,"人"]
[null,"連　絡　先",null,null,"電話：",null,null,null,null,null,null,"ファクス："]
[null,"実践形式",null,null,null,null,null,null,null,null,null,null,null,null,null,null,1]
[]
[null,null,null,null,null,null,null,null,null,null,null,"※割当部数"]
[null,null,null,null,null,null,null,null,null,null,null,null,"Ａ：１銘柄につき１部を延べ２か月"]
[null,null,null,null,null,null,null,null,null,null,null,null,"Ｂ：１銘柄につき１部を延べ４か月"]
[]
["《月決め》"]
[null,"　※以下は太枠に囲まれた部分のみをご記入ください。"]
[null,"　　 割当部数に応じて、配達を希望する月に希望部数を記入してください。"]
[null,"　　 初めて実践される方は、別紙の購読パターンを参考にご記入ください。"]
[null,"　※継続校は４月以降の購読開始となります。"]
[null,"　　新規校は参加申請書の提出時期によって５月以降か９月以降の開始となります。"]
[]
[null,null,null,null,null,null,null,null,null,null,null,null,null,null,null,null,"合計"]
[null,"新聞名",null,"配達月",null,null,null,null,null,null,null,null,null,null,null,null,"\n月数"]
[]
[null,null,null,"4月","5月","6月","7月","8月","9月","10月","11月","12月","1月","2月","3月"]
[null,"実践形式Aの場合\n例）毎朝",null,null,null,null,null,null,1,1,null,null,null,null,null,null,2]
[null,"実践形式Bの場合\n例）毎朝",null,null,null,null,null,null,1,null,1,1,null,1,null,null,4]
[null,"朝　日",null,null,null,null,null,null,null,null,null,null,null,null,null,null,{"$f":"SUM(D27:O27)","v":0}]
[null,"毎　日",null,null,null,null,null,null,null,null,null,null,null,null,null,null,{"$f":"SUM(D28:O28)","v":0}]
[null,"読　売",null,null,null,null,null,null,null,null,null,null,null,null,null,null,0]
[null,"日　経",null,null,null,null,null,null,null,null,null,null,null,null,null,null,0]
["　","東　京",null,null,null,null,null,null,null,null,null,null,null,null,null,null,0]
[null,"産　経",null,null,null,null,null,null,null,null,null,null,null,null,null,null,0]
[null,"下　野",null,null,null,null,null,null,null,null,null,null,null,null,null,null,0]
[null,null,null,null,null,null,null,null,null,null,null,null,null,null,null,null,0]
[null,null,null,null,null,null,null,null,null,null,null,null,null,null,null,null,0]
[null,null,null,null,null,null,null,null,null,null,null,null,null,null,null,null,0]
[null,null,null,null,null,null,null,null,null,null,null,null,null,null,null,null,0]
[null,null,null,null,null,null,null,null,null,null,null,null,null,null,null,null,0]
[]
[null,"※地域によっては上記新聞すべてを配達できない場合があります。その際はご連絡いたします"]
[]
["《その他要望》    ※記者派遣（オリエンテーション）、新聞社見学等希望があればご記入ください。"]

{"sheet":"10群馬","index":9,"n_rows":42,"n_cols":18,"rows_kept":42,"cut":false,"hidden":false,"merged":[[6,4,6,5],[6,6,6,10],[6,11,6,12],[6,13,6,16],[7,4,7,15],[2,16,2,17],[3,3,3,15],[3,16,3,17],[5,4,5,12],[5,13,5,15],[32,1,32,2],[33,1,33,2],[34,1,34,2],[29,1,29,2],[30,1,30,2],[42,1,46,16],[37,1,37,2],[1,0,1,17],[5,1,5,3],[6,1,6,3],[7,1,7,3],[27,1,27,2],[21,3,22,15],[26,1,26,2],[21,1,22,2],[24,1,24,2],[25,1,25,2],[28,1,28,2],[36,1,36,2],[31,1,31,2],[35,1,35,2]]}
[null,null,null,null,null,null,null,null,null,null,null,null,null,null,null,null,"学校番号：","　　　　"]
["《2026年度 年間購読計画表》"]
["【10群馬】",null,null,null,null,null,null,null,null,null,null,null,null,null,null,null,"選んでください↓"]
["学　校　名",null,null,null,null,null,null,null,null,null,null,null,null,null,null,null,"（新規校）"]
[]
[null,"実践代表者名",null,null,null,null,null,null,null,null,null,null,null,"実践者（教師）",null,null,null,"人"]
[null,"連　絡　先",null,null,"電話：",null,null,null,null,null,null,"ファクス："]
[null,"実践形式",null,null,null,null,null,null,null,null,null,null,null,null,null,null,1]
[]
[null,null,null,null,null,null,null,null,null,null,null,"※割当部数"]
[null,null,null,null,null,null,null,null,null,null,null,null,"Ａ：１銘柄につき１部を延べ２か月"]
[null,null,null,null,null,null,null,null,null,null,null,null,"Ｂ：１銘柄につき１部を延べ４か月"]
[]
["《月決め》"]
[null,"　※以下は太枠に囲まれた部分のみをご記入ください。"]
[null,"　　 割当部数に応じて、配達を希望する月に希望部数を記入してください。"]
[null,"　　 初めて実践される方は、別紙の購読パターンを参考にご記入ください。"]
[null,"　※継続校は４月以降の購読開始となります。"]
[null,"　　新規校は参加申請書の提出時期によって５月以降か９月以降の開始となります。"]
[]
[null,null,null,null,null,null,null,null,null,null,null,null,null,null,null,null,"合計"]
[null,"新聞名",null,"配達月",null,null,null,null,null,null,null,null,null,null,null,null,"\n月数"]
[]
[null,null,null,"4月","5月","6月","7月","8月","9月","10月","11月","12月","1月","2月","3月"]
[null,"実践形式Aの場合\n例）毎朝",null,null,null,null,null,null,1,1,null,null,null,null,null,null,2]
[null,"実践形式Bの場合\n例）毎朝",null,null,null,null,null,null,1,null,1,1,null,1,null,null,4]
[null,"朝　日",null,null,null,null,null,null,null,null,null,null,null,null,null,null,{"$f":"SUM(D27:O27)","v":0}]
[null,"毎　日",null,null,null,null,null,null,null,null,null,null,null,null,null,null,{"$f":"SUM(D28:O28)","v":0}]
[null,"読　売",null,null,null,null,null,null,null,null,null,null,null,null,null,null,0]
[null,"日　経",null,null,null,null,null,null,null,null,null,null,null,null,null,null,0]
["　","東　京",null,null,null,null,null,null,null,null,null,null,null,null,null,null,0]
[null,"産　経",null,null,null,null,null,null,null,null,null,null,null,null,null,null,0]
[null,"上　毛",null,null,null,null,null,null,null,null,null,null,null,null,null,null,0]
[null,null,null,null,null,null,null,null,null,null,null,null,null,null,null,null,0]
[null,null,null,null,null,null,null,null,null,null,null,null,null,null,null,null,0]
[null,null,null,null,null,null,null,null,null,null,null,null,null,null,null,null,0]
[null,null,null,null,null,null,null,null,null,null,null,null,null,null,null,null,0]
[null,null,null,null,null,null,null,null,null,null,null,null,null,null,null,null,0]
[]
[null,"※地域によっては上記新聞すべてを配達できない場合があります。その際はご連絡いたします"]
[]
["《その他要望》    ※記者派遣（オリエンテーション）、新聞社見学等希望があればご記入ください。"]

{"sheet":"11埼玉","index":10,"n_rows":42,"n_cols":18,"rows_kept":42,"cut":false,"hidden":false,"merged":[[1,0,1,17],[5,1,5,3],[6,1,6,3],[7,1,7,3],[27,1,27,2],[26,1,26,2],[21,1,22,2],[24,1,24,2],[25,1,25,2],[21,3,22,15],[2,16,2,17],[3,3,3,15],[3,16,3,17],[5,4,5,12],[5,13,5,15],[6,4,6,5],[6,6,6,10],[6,11,6,12],[6,13,6,16],[7,4,7,15],[37,1,37,2],[42,1,46,16],[28,1,28,2],[36,1,36,2],[31,1,31,2],[35,1,35,2],[32,1,32,2],[33,1,33,2],[34,1,34,2],[29,1,29,2],[30,1,30,2]]}
[null,null,null,null,null,null,null,null,null,null,null,null,null,null,null,null,"学校番号：","　　　　"]
["《2026年度 年間購読計画表》"]
["【11埼玉】",null,null,null,null,null,null,null,null,null,null,null,null,null,null,null,"選んでください↓"]
["学　校　名",null,null,null,null,null,null,null,null,null,null,null,null,null,null,null,"（新規校）"]
[]
[null,"実践代表者名",null,null,null,null,null,null,null,null,null,null,null,"実践者（教師）",null,null,null,"人"]
[null,"連　絡　先",null,null,"電話：",null,null,null,null,null,null,"ファクス："]
[null,"実践形式",null,null,null,null,null,null,null,null,null,null,null,null,null,null,1]
[]
[null,null,null,null,null,null,null,null,null,null,null,"※割当部数"]
[null,null,null,null,null,null,null,null,null,null,null,null,"Ａ：１銘柄につき１部を延べ２か月"]
[null,null,null,null,null,null,null,null,null,null,null,null,"Ｂ：１銘柄につき１部を延べ４か月"]
[]
["《月決め》"]
[null,"　※以下は太枠に囲まれた部分のみをご記入ください。"]
[null,"　　 割当部数に応じて、配達を希望する月に希望部数を記入してください。"]
[null,"　　 初めて実践される方は、別紙の購読パターンを参考にご記入ください。"]
[null,"　※継続校は４月以降の購読開始となります。"]
[null,"　　新規校は参加申請書の提出時期によって５月以降か９月以降の開始となります。"]
[]
[null,null,null,null,null,null,null,null,null,null,null,null,null,null,null,null,"合計"]
[null,"新聞名",null,"配達月",null,null,null,null,null,null,null,null,null,null,null,null,"\n月数"]
[]
[null,null,null,"4月","5月","6月","7月","8月","9月","10月","11月","12月","1月","2月","3月"]
[null,"実践形式Aの場合\n例）毎朝",null,null,null,null,null,null,1,1,null,null,null,null,null,null,2]
[null,"実践形式Bの場合\n例）毎朝",null,null,null,null,null,null,1,null,1,1,null,1,null,null,4]
[null,"朝　日",null,null,null,null,null,null,null,null,null,null,null,null,null,null,{"$f":"SUM(D27:O27)","v":0}]
[null,"毎　日",null,null,null,null,null,null,null,null,null,null,null,null,null,null,{"$f":"SUM(D28:O28)","v":0}]
[null,"読　売",null,null,null,null,null,null,null,null,null,null,null,null,null,null,0]
[null,"日　経",null,null,null,null,null,null,null,null,null,null,null,null,null,null,0]
["　","東　京",null,null,null,null,null,null,null,null,null,null,null,null,null,null,0]
[null,"産　経",null,null,null,null,null,null,null,null,null,null,null,null,null,null,0]
[null,"日刊工業",null,null,null,null,null,null,null,null,null,null,null,null,null,null,0]
[null,"埼　玉",null,null,null,null,null,null,null,null,null,null,null,null,null,null,0]
[null,null,null,null,null,null,null,null,null,null,null,null,null,null,null,null,0]
[null,null,null,null,null,null,null,null,null,null,null,null,null,null,null,null,0]
[null,null,null,null,null,null,null,null,null,null,null,null,null,null,null,null,0]
[null,null,null,null,null,null,null,null,null,null,null,null,null,null,null,null,0]
[]
[null,"※地域によっては上記新聞すべてを配達できない場合があります。その際はご連絡いたします"]
[]
["《その他要望》    ※記者派遣（オリエンテーション）、新聞社見学等希望があればご記入ください。"]

{"sheet":"12東京","index":11,"n_rows":42,"n_cols":18,"rows_kept":42,"cut":false,"hidden":false,"merged":[[6,4,6,5],[6,6,6,10],[6,11,6,12],[6,13,6,16],[7,4,7,15],[2,16,2,17],[3,3,3,15],[3,16,3,17],[5,4,5,12],[5,13,5,15],[32,1,32,2],[33,1,33,2],[34,1,34,2],[29,1,29,2],[30,1,30,2],[42,1,46,16],[37,1,37,2],[1,0,1,17],[5,1,5,3],[6,1,6,3],[7,1,7,3],[27,1,27,2],[21,3,22,15],[26,1,26,2],[21,1,22,2],[24,1,24,2],[25,1,25,2],[28,1,28,2],[36,1,36,2],[31,1,31,2],[35,1,35,2]]}
[null,null,null,null,null,null,null,null,null,null,null,null,null,null,null,null,"学校番号：","　　　　"]
["《2026年度 年間購読計画表》"]
["【12東京】",null,null,null,null,null,null,null,null,null,null,null,null,null,null,null,"選んでください↓"]
["学　校　名",null,null,null,null,null,null,null,null,null,null,null,null,null,null,null,"（新規校）"]
[]
[null,"実践代表者名",null,null,null,null,null,null,null,null,null,null,null,"実践者（教師）",null,null,null,"人"]
[null,"連　絡　先",null,null,"電話：",null,null,null,null,null,null,"ファクス："]
[null,"実践形式",null,null,null,null,null,null,null,null,null,null,null,null,null,null,1]
[]
[null,null,null,null,null,null,null,null,null,null,null,"※割当部数"]
[null,null,null,null,null,null,null,null,null,null,null,null,"Ａ：１銘柄につき１部を延べ２か月"]
[null,null,null,null,null,null,null,null,null,null,null,null,"Ｂ：１銘柄につき１部を延べ４か月"]
[]
["《月決め》"]
[null,"　※以下は太枠に囲まれた部分のみをご記入ください。"]
[null,"　　 割当部数に応じて、配達を希望する月に希望部数を記入してください。"]
[null,"　　 初めて実践される方は、別紙の購読パターンを参考にご記入ください。"]
[null,"　※継続校は４月以降の購読開始となります。"]
[null,"　　新規校は参加申請書の提出時期によって５月以降か９月以降の開始となります。"]
[]
[null,null,null,null,null,null,null,null,null,null,null,null,null,null,null,null,"合計"]
[null,"新聞名",null,"配達月",null,null,null,null,null,null,null,null,null,null,null,null,"\n月数"]
[]
[null,null,null,"4月","5月","6月","7月","8月","9月","10月","11月","12月","1月","2月","3月"]
[null,"実践形式Aの場合\n例）毎朝",null,null,null,null,null,null,1,1,null,null,null,null,null,null,2]
[null,"実践形式Bの場合\n例）毎朝",null,null,null,null,null,null,1,null,1,1,null,1,null,null,4]
[null,"朝　日",null,null,null,null,null,null,null,null,null,null,null,null,null,null,{"$f":"SUM(D27:O27)","v":0}]
[null,"毎　日",null,null,null,null,null,null,null,null,null,null,null,null,null,null,{"$f":"SUM(D28:O28)","v":0}]
[null,"読　売",null,null,null,null,null,null,null,null,null,null,null,null,null,null,0]
[null,"日　経",null,null,null,null,null,null,null,null,null,null,null,null,null,null,0]
["　","東　京",null,null,null,null,null,null,null,null,null,null,null,null,null,null,0]
[null,"産　経",null,null,null,null,null,null,null,null,null,null,null,null,null,null,0]
[null,null,null,null,null,null,null,null,null,null,null,null,null,null,null,null,0]
[null,null,null,null,null,null,null,null,null,null,null,null,null,null,null,null,0]
[null,null,null,null,null,null,null,null,null,null,null,null,null,null,null,null,0]
[null,null,null,null,null,null,null,null,null,null,null,null,null,null,null,null,0]
[null,null,null,null,null,null,null,null,null,null,null,null,null,null,null,null,0]
[null,null,null,null,null,null,null,null,null,null,null,null,null,null,null,null,0]
[]
[null,"※地域によっては上記新聞すべてを配達できない場合があります。その際はご連絡いたします"]
[]
["《その他要望》    ※記者派遣（オリエンテーション）、新聞社見学等希望があればご記入ください。"]

{"sheet":"13神奈川","index":12,"n_rows":42,"n_cols":18,"rows_kept":42,"cut":false,"hidden":false,"merged":[[6,4,6,5],[6,6,6,10],[6,11,6,12],[6,13,6,16],[7,4,7,15],[2,16,2,17],[3,3,3,15],[3,16,3,17],[5,4,5,12],[5,13,5,15],[32,1,32,2],[33,1,33,2],[34,1,34,2],[29,1,29,2],[30,1,30,2],[42,1,46,16],[37,1,37,2],[1,0,1,17],[5,1,5,3],[6,1,6,3],[7,1,7,3],[27,1,27,2],[21,3,22,15],[26,1,26,2],[21,1,22,2],[24,1,24,2],[25,1,25,2],[28,1,28,2],[36,1,36,2],[31,1,31,2],[35,1,35,2]]}
[null,null,null,null,null,null,null,null,null,null,null,null,null,null,null,null,"学校番号：","　　　　"]
["《2026年度 年間購読計画表》"]
["【13神奈川】",null,null,null,null,null,null,null,null,null,null,null,null,null,null,null,"選んでください↓"]
["学　校　名",null,null,null,null,null,null,null,null,null,null,null,null,null,null,null,"（新規校）"]
[]
[null,"実践代表者名",null,null,null,null,null,null,null,null,null,null,null,"実践者（教師）",null,null,null,"人"]
[null,"連　絡　先",null,null,"電話：",null,null,null,null,null,null,"ファクス："]
[null,"実践形式",null,null,null,null,null,null,null,null,null,null,null,null,null,null,1]
[]
[null,null,null,null,null,null,null,null,null,null,null,"※割当部数"]
[null,null,null,null,null,null,null,null,null,null,null,null,"Ａ：１銘柄につき１部を延べ２か月"]
[null,null,null,null,null,null,null,null,null,null,null,null,"Ｂ：１銘柄につき１部を延べ４か月"]
[]
["《月決め》"]
[null,"　※以下は太枠に囲まれた部分のみをご記入ください。"]
[null,"　　 割当部数に応じて、配達を希望する月に希望部数を記入してください。"]
[null,"　　 初めて実践される方は、別紙の購読パターンを参考にご記入ください。"]
[null,"　※継続校は４月以降の購読開始となります。"]
[null,"　　新規校は参加申請書の提出時期によって５月以降か９月以降の開始となります。"]
[]
[null,null,null,null,null,null,null,null,null,null,null,null,null,null,null,null,"合計"]
[null,"新聞名",null,"配達月",null,null,null,null,null,null,null,null,null,null,null,null,"\n月数"]
[]
[null,null,null,"4月","5月","6月","7月","8月","9月","10月","11月","12月","1月","2月","3月"]
[null,"実践形式Aの場合\n例）毎朝",null,null,null,null,null,null,1,1,null,null,null,null,null,null,2]
[null,"実践形式Bの場合\n例）毎朝",null,null,null,null,null,null,1,null,1,1,null,1,null,null,4]
[null,"朝　日",null,null,null,null,null,null,null,null,null,null,null,null,null,null,{"$f":"SUM(D27:O27)","v":0}]
[null,"毎　日",null,null,null,null,null,null,null,null,null,null,null,null,null,null,{"$f":"SUM(D28:O28)","v":0}]
[null,"読　売",null,null,null,null,null,null,null,null,null,null,null,null,null,null,0]
[null,"日　経",null,null,null,null,null,null,null,null,null,null,null,null,null,null,0]
["　","東　京",null,null,null,null,null,null,null,null,null,null,null,null,null,null,0]
[null,"産　経",null,null,null,null,null,null,null,null,null,null,null,null,null,null,0]
[null,"神奈川",null,null,null,null,null,null,null,null,null,null,null,null,null,null,0]
[null,null,null,null,null,null,null,null,null,null,null,null,null,null,null,null,0]
[null,null,null,null,null,null,null,null,null,null,null,null,null,null,null,null,0]
[null,null,null,null,null,null,null,null,null,null,null,null,null,null,null,null,0]
[null,null,null,null,null,null,null,null,null,null,null,null,null,null,null,null,0]
[null,null,null,null,null,null,null,null,null,null,null,null,null,null,null,null,0]
[]
[null,"※地域によっては上記新聞すべてを配達できない場合があります。その際はご連絡いたします"]
[]
["《その他要望》    ※記者派遣（オリエンテーション）、新聞社見学等希望があればご記入ください。"]

{"sheet":"14千葉","index":13,"n_rows":42,"n_cols":18,"rows_kept":42,"cut":false,"hidden":false,"merged":[[1,0,1,17],[5,1,5,3],[6,1,6,3],[7,1,7,3],[27,1,27,2],[26,1,26,2],[21,1,22,2],[24,1,24,2],[25,1,25,2],[21,3,22,15],[2,16,2,17],[3,3,3,15],[3,16,3,17],[5,4,5,12],[5,13,5,15],[6,4,6,5],[6,6,6,10],[6,11,6,12],[6,13,6,16],[7,4,7,15],[37,1,37,2],[42,1,46,16],[28,1,28,2],[36,1,36,2],[31,1,31,2],[35,1,35,2],[32,1,32,2],[33,1,33,2],[34,1,34,2],[29,1,29,2],[30,1,30,2]]}
[null,null,null,null,null,null,null,null,null,null,null,null,null,null,null,null,"学校番号：","　　　　"]
["《2026年度 年間購読計画表》"]
["【14千葉】",null,null,null,null,null,null,null,null,null,null,null,null,null,null,null,"選んでください↓"]
["学　校　名",null,null,null,null,null,null,null,null,null,null,null,null,null,null,null,"（新規校）"]
[]
[null,"実践代表者名",null,null,null,null,null,null,null,null,null,null,null,"実践者（教師）",null,null,null,"人"]
[null,"連　絡　先",null,null,"電話：",null,null,null,null,null,null,"ファクス："]
[null,"実践形式",null,null,null,null,null,null,null,null,null,null,null,null,null,null,1]
[]
[null,null,null,null,null,null,null,null,null,null,null,"※割当部数"]
[null,null,null,null,null,null,null,null,null,null,null,null,"Ａ：１銘柄につき１部を延べ２か月"]
[null,null,null,null,null,null,null,null,null,null,null,null,"Ｂ：１銘柄につき１部を延べ４か月"]
[]
["《月決め》"]
[null,"　※以下は太枠に囲まれた部分のみをご記入ください。"]
[null,"　　 割当部数に応じて、配達を希望する月に希望部数を記入してください。"]
[null,"　　 初めて実践される方は、別紙の購読パターンを参考にご記入ください。"]
[null,"　※継続校は４月以降の購読開始となります。"]
[null,"　　新規校は参加申請書の提出時期によって５月以降か９月以降の開始となります。"]
[]
[null,null,null,null,null,null,null,null,null,null,null,null,null,null,null,null,"合計"]
[null,"新聞名",null,"配達月",null,null,null,null,null,null,null,null,null,null,null,null,"\n月数"]
[]
[null,null,null,"4月","5月","6月","7月","8月","9月","10月","11月","12月","1月","2月","3月"]
[null,"実践形式Aの場合\n例）毎朝",null,null,null,null,null,null,1,1,null,null,null,null,null,null,2]
[null,"実践形式Bの場合\n例）毎朝",null,null,null,null,null,null,1,null,1,1,null,1,null,null,4]
[null,"朝　日",null,null,null,null,null,null,null,null,null,null,null,null,null,null,{"$f":"SUM(D27:O27)","v":0}]
[null,"毎　日",null,null,null,null,null,null,null,null,null,null,null,null,null,null,{"$f":"SUM(D28:O28)","v":0}]
[null,"読　売",null,null,null,null,null,null,null,null,null,null,null,null,null,null,0]
[null,"日　経",null,null,null,null,null,null,null,null,null,null,null,null,null,null,0]
["　","東　京",null,null,null,null,null,null,null,null,null,null,null,null,null,null,0]
[null,"産　経",null,null,null,null,null,null,null,null,null,null,null,null,null,null,0]
[null,"日刊工業",null,null,null,null,null,null,null,null,null,null,null,null,null,null,0]
[null,"千　葉",null,null,null,null,null,null,null,null,null,null,null,null,null,null,0]
[null,null,null,null,null,null,null,null,null,null,null,null,null,null,null,null,0]
[null,null,null,null,null,null,null,null,null,null,null,null,null,null,null,null,0]
[null,null,null,null,null,null,null,null,null,null,null,null,null,null,null,null,0]
[null,null,null,null,null,null,null,null,null,null,null,null,null,null,null,null,0]
[]
[null,"※地域によっては上記新聞すべてを配達できない場合があります。その際はご連絡いたします"]
[]
["《その他要望》    ※記者派遣（オリエンテーション）、新聞社見学等希望があればご記入ください。"]

{"sheet":"15山梨","index":14,"n_rows":42,"n_cols":18,"rows_kept":42,"cut":false,"hidden":false,"merged":[[1,0,1,17],[5,1,5,3],[6,1,6,3],[7,1,7,3],[27,1,27,2],[26,1,26,2],[21,1,22,2],[24,1,24,2],[25,1,25,2],[21,3,22,15],[2,16,2,17],[3,3,3,15],[3,16,3,17],[5,4,5,12],[5,13,5,15],[6,4,6,5],[6,6,6,10],[6,11,6,12],[6,13,6,16],[7,4,7,15],[37,1,37,2],[42,1,46,16],[28,1,28,2],[36,1,36,2],[31,1,31,2],[35,1,35,2],[32,1,32,2],[33,1,33,2],[34,1,34,2],[29,1,29,2],[30,1,30,2]]}
[null,null,null,null,null,null,null,null,null,null,null,null,null,null,null,null,"学校番号：","　　　　"]
["《2026年度 年間購読計画表》"]
["【15山梨】",null,null,null,null,null,null,null,null,null,null,null,null,null,null,null,"選んでください↓"]
["学　校　名",null,null,null,null,null,null,null,null,null,null,null,null,null,null,null,"（新規校）"]
[]
[null,"実践代表者名",null,null,null,null,null,null,null,null,null,null,null,"実践者（教師）",null,null,null,"人"]
[null,"連　絡　先",null,null,"電話：",null,null,null,null,null,null,"ファクス："]
[null,"実践形式",null,null,null,null,null,null,null,null,null,null,null,null,null,null,1]
[]
[null,null,null,null,null,null,null,null,null,null,null,"※割当部数"]
[null,null,null,null,null,null,null,null,null,null,null,null,"Ａ：１銘柄につき１部を延べ２か月"]
[null,null,null,null,null,null,null,null,null,null,null,null,"Ｂ：１銘柄につき１部を延べ４か月"]
[]
["《月決め》"]
[null,"　※以下は太枠に囲まれた部分のみをご記入ください。"]
[null,"　　 割当部数に応じて、配達を希望する月に希望部数を記入してください。"]
[null,"　　 初めて実践される方は、別紙の購読パターンを参考にご記入ください。"]
[null,"　※継続校は４月以降の購読開始となります。"]
[null,"　　新規校は参加申請書の提出時期によって５月以降か９月以降の開始となります。"]
[]
[null,null,null,null,null,null,null,null,null,null,null,null,null,null,null,null,"合計"]
[null,"新聞名",null,"配達月",null,null,null,null,null,null,null,null,null,null,null,null,"\n月数"]
[]
[null,null,null,"4月","5月","6月","7月","8月","9月","10月","11月","12月","1月","2月","3月"]
[null,"実践形式Aの場合\n例）毎朝",null,null,null,null,null,null,1,1,null,null,null,null,null,null,2]
[null,"実践形式Bの場合\n例）毎朝",null,null,null,null,null,null,1,null,1,1,null,1,null,null,4]
[null,"朝　日",null,null,null,null,null,null,null,null,null,null,null,null,null,null,{"$f":"SUM(D27:O27)","v":0}]
[null,"毎　日",null,null,null,null,null,null,null,null,null,null,null,null,null,null,{"$f":"SUM(D28:O28)","v":0}]
[null,"読　売",null,null,null,null,null,null,null,null,null,null,null,null,null,null,0]
[null,"日　経",null,null,null,null,null,null,null,null,null,null,null,null,null,null,0]
["　","産　経",null,null,null,null,null,null,null,null,null,null,null,null,null,null,0]
[null,"山梨日日",null,null,null,null,null,null,null,null,null,null,null,null,null,null,0]
[null,null,null,null,null,null,null,null,null,null,null,null,null,null,null,null,0]
[null,null,null,null,null,null,null,null,null,null,null,null,null,null,null,null,0]
[null,null,null,null,null,null,null,null,null,null,null,null,null,null,null,null,0]
[null,null,null,null,null,null,null,null,null,null,null,null,null,null,null,null,0]
[null,null,null,null,null,null,null,null,null,null,null,null,null,null,null,null,0]
[null,null,null,null,null,null,null,null,null,null,null,null,null,null,null,null,0]
[]
[null,"※地域によっては上記新聞すべてを配達できない場合があります。その際はご連絡いたします"]
[]
["《その他要望》    ※記者派遣（オリエンテーション）、新聞社見学等希望があればご記入ください。"]

{"sheet":"16静岡","index":15,"n_rows":42,"n_cols":18,"rows_kept":42,"cut":false,"hidden":false,"merged":[[6,4,6,5],[6,6,6,10],[6,11,6,12],[6,13,6,16],[7,4,7,15],[2,16,2,17],[3,3,3,15],[3,16,3,17],[5,4,5,12],[5,13,5,15],[32,1,32,2],[33,1,33,2],[34,1,34,2],[29,1,29,2],[30,1,30,2],[42,1,46,16],[37,1,37,2],[1,0,1,17],[5,1,5,3],[6,1,6,3],[7,1,7,3],[27,1,27,2],[21,3,22,15],[26,1,26,2],[21,1,22,2],[24,1,24,2],[25,1,25,2],[28,1,28,2],[36,1,36,2],[31,1,31,2],[35,1,35,2]]}
[null,null,null,null,null,null,null,null,null,null,null,null,null,null,null,null,"学校番号：","　　　　"]
["《2026年度 年間購読計画表》"]
["【16静岡】",null,null,null,null,null,null,null,null,null,null,null,null,null,null,null,"選んでください↓"]
["学　校　名",null,null,null,null,null,null,null,null,null,null,null,null,null,null,null,"（新規校）"]
[]
[null,"実践代表者名",null,null,null,null,null,null,null,null,null,null,null,"実践者（教師）",null,null,null,"人"]
[null,"連　絡　先",null,null,"電話：",null,null,null,null,null,null,"ファクス："]
[null,"実践形式",null,null,null,null,null,null,null,null,null,null,null,null,null,null,1]
[]
[null,null,null,null,null,null,null,null,null,null,null,"※割当部数"]
[null,null,null,null,null,null,null,null,null,null,null,null,"Ａ：１銘柄につき１部を延べ２か月"]
[null,null,null,null,null,null,null,null,null,null,null,null,"Ｂ：１銘柄につき１部を延べ４か月"]
[]
["《月決め》"]
[null,"　※以下は太枠に囲まれた部分のみをご記入ください。"]
[null,"　　 割当部数に応じて、配達を希望する月に希望部数を記入してください。"]
[null,"　　 初めて実践される方は、別紙の購読パターンを参考にご記入ください。"]
[null,"　※継続校は４月以降の購読開始となります。"]
[null,"　　新規校は９月以降の購読開始となります。"]
[]
[null,null,null,null,null,null,null,null,null,null,null,null,null,null,null,null,"合計"]
[null,"新聞名",null,"配達月",null,null,null,null,null,null,null,null,null,null,null,null,"\n月数"]
[]
[null,null,null,"4月","5月","6月","7月","8月","9月","10月","11月","12月","1月","2月","3月"]
[null,"実践形式Aの場合\n例）毎朝",null,null,null,null,null,null,1,1,null,null,null,null,null,null,2]
[null,"実践形式Bの場合\n例）毎朝",null,null,null,null,null,null,1,null,1,1,null,1,null,null,4]
[null,"朝　日",null,null,null,null,null,null,null,null,null,null,null,null,null,null,{"$f":"SUM(D27:O27)","v":0}]
[null,"毎　日",null,null,null,null,null,null,null,null,null,null,null,null,null,null,{"$f":"SUM(D28:O28)","v":0}]
[null,"読　売",null,null,null,null,null,null,null,null,null,null,null,null,null,null,0]
[null,"日　経",null,null,null,null,null,null,null,null,null,null,null,null,null,null,0]
["　","産　経",null,null,null,null,null,null,null,null,null,null,null,null,null,null,0]
[null,"静　岡",null,null,null,null,null,null,null,null,null,null,null,null,null,null,0]
[null,"中　日",null,null,null,null,null,null,null,null,null,null,null,null,null,null,0]
[null,null,null,null,null,null,null,null,null,null,null,null,null,null,null,null,0]
[null,null,null,null,null,null,null,null,null,null,null,null,null,null,null,null,0]
[null,null,null,null,null,null,null,null,null,null,null,null,null,null,null,null,0]
[null,null,null,null,null,null,null,null,null,null,null,null,null,null,null,null,0]
[null,null,null,null,null,null,null,null,null,null,null,null,null,null,null,null,0]
[]
[null,"※地域によっては上記新聞すべてを配達できない場合があります。その際はご連絡いたします"]
[]
["《その他要望》    ※記者派遣（オリエンテーション）、新聞社見学等希望があればご記入ください。"]

{"sheet":"17長野","index":16,"n_rows":42,"n_cols":18,"rows_kept":42,"cut":false,"hidden":false,"merged":[[1,0,1,17],[5,1,5,3],[6,1,6,3],[7,1,7,3],[27,1,27,2],[26,1,26,2],[21,1,22,2],[24,1,24,2],[25,1,25,2],[21,3,22,15],[2,16,2,17],[3,3,3,15],[3,16,3,17],[5,4,5,12],[5,13,5,15],[6,4,6,5],[6,6,6,10],[6,11,6,12],[6,13,6,16],[7,4,7,15],[37,1,37,2],[42,1,46,16],[28,1,28,2],[36,1,36,2],[31,1,31,2],[35,1,35,2],[32,1,32,2],[33,1,33,2],[34,1,34,2],[29,1,29,2],[30,1,30,2]]}
[null,null,null,null,null,null,null,null,null,null,null,null,null,null,null,null,"学校番号：","　　　　"]
["《2026年度 年間購読計画表》"]
["【17長野】",null,null,null,null,null,null,null,null,null,null,null,null,null,null,null,"選んでください↓"]
["学　校　名",null,null,null,null,null,null,null,null,null,null,null,null,null,null,null,"（新規校）"]
[]
[null,"実践代表者名",null,null,null,null,null,null,null,null,null,null,null,"実践者（教師）",null,null,null,"人"]
[null,"連　絡　先",null,null,"電話：",null,null,null,null,null,null,"ファクス："]
[null,"実践形式",null,null,null,null,null,null,null,null,null,null,null,null,null,null,1]
[]
[null,null,null,null,null,null,null,null,null,null,null,"※割当部数"]
[null,null,null,null,null,null,null,null,null,null,null,null,"Ａ：１銘柄につき１部を延べ２か月"]
[null,null,null,null,null,null,null,null,null,null,null,null,"Ｂ：１銘柄につき１部を延べ４か月"]
[]
["《月決め》"]
[null,"　※以下は太枠に囲まれた部分のみをご記入ください。"]
[null,"　　 割当部数に応じて、配達を希望する月に希望部数を記入してください。"]
[null,"　　 初めて実践される方は、別紙の購読パターンを参考にご記入ください。"]
[null,"　※継続校は４月以降の購読開始となります。"]
[null,"　　新規校は参加申請書の提出時期によって５月以降か９月以降の開始となります。"]
[]
[null,null,null,null,null,null,null,null,null,null,null,null,null,null,null,null,"合計"]
[null,"新聞名",null,"配達月",null,null,null,null,null,null,null,null,null,null,null,null,"\n月数"]
[]
[null,null,null,"4月","5月","6月","7月","8月","9月","10月","11月","12月","1月","2月","3月"]
[null,"実践形式Aの場合\n例）毎朝",null,null,null,null,null,null,1,1,null,null,null,null,null,null,2]
[null,"実践形式Bの場合\n例）毎朝",null,null,null,null,null,null,1,null,1,1,null,1,null,null,4]
[null,"朝　日",null,null,null,null,null,null,null,null,null,null,null,null,null,null,{"$f":"SUM(D27:O27)","v":0}]
[null,"毎　日",null,null,null,null,null,null,null,null,null,null,null,null,null,null,{"$f":"SUM(D28:O28)","v":0}]
[null,"読　売",null,null,null,null,null,null,null,null,null,null,null,null,null,null,0]
[null,"日　経",null,null,null,null,null,null,null,null,null,null,null,null,null,null,0]
["　","産　経",null,null,null,null,null,null,null,null,null,null,null,null,null,null,0]
[null,"信濃毎日",null,null,null,null,null,null,null,null,null,null,null,null,null,null,0]
[null,"長野日報",null,null,null,null,null,null,null,null,null,null,null,null,null,null,0]
[null,"中　日",null,null,null,null,null,null,null,null,null,null,null,null,null,null,0]
[null,null,null,null,null,null,null,null,null,null,null,null,null,null,null,null,0]
[null,null,null,null,null,null,null,null,null,null,null,null,null,null,null,null,0]
[null,null,null,null,null,null,null,null,null,null,null,null,null,null,null,null,0]
[null,null,null,null,null,null,null,null,null,null,null,null,null,null,null,null,0]
[]
[null,"※地域によっては上記新聞すべてを配達できない場合があります。その際はご連絡いたします"]
[]
["《その他要望》    ※記者派遣（オリエンテーション）、新聞社見学等希望があればご記入ください。"]

{"sheet":"18愛知","index":17,"n_rows":42,"n_cols":18,"rows_kept":42,"cut":false,"hidden":false,"merged":[[6,4,6,5],[6,6,6,10],[6,11,6,12],[6,13,6,16],[7,4,7,15],[2,16,2,17],[3,3,3,15],[3,16,3,17],[5,4,5,12],[5,13,5,15],[32,1,32,2],[33,1,33,2],[34,1,34,2],[29,1,29,2],[30,1,30,2],[42,1,46,16],[37,1,37,2],[1,0,1,17],[5,1,5,3],[6,1,6,3],[7,1,7,3],[27,1,27,2],[21,3,22,15],[26,1,26,2],[21,1,22,2],[24,1,24,2],[25,1,25,2],[28,1,28,2],[36,1,36,2],[31,1,31,2],[35,1,35,2]]}
[null,null,null,null,null,null,null,null,null,null,null,null,null,null,null,null,"学校番号：","　　　　"]
["《2026年度 年間購読計画表》"]
["【18愛知】",null,null,null,null,null,null,null,null,null,null,null,null,null,null,null,"選んでください↓"]
["学　校　名",null,null,null,null,null,null,null,null,null,null,null,null,null,null,null,"（新規校）"]
[]
[null,"実践代表者名",null,null,null,null,null,null,null,null,null,null,null,"実践者（教師）",null,null,null,"人"]
[null,"連　絡　先",null,null,"電話：",null,null,null,null,null,null,"ファクス："]
[null,"実践形式",null,null,null,null,null,null,null,null,null,null,null,null,null,null,1]
[]
[null,null,null,null,null,null,null,null,null,null,null,"※割当部数"]
[null,null,null,null,null,null,null,null,null,null,null,null,"Ａ：１銘柄につき１部を延べ２か月"]
[null,null,null,null,null,null,null,null,null,null,null,null,"Ｂ：１銘柄につき１部を延べ４か月"]
[]
["《月決め》"]
[null,"　※以下は太枠に囲まれた部分のみをご記入ください。"]
[null,"　　 割当部数に応じて、配達を希望する月に希望部数を記入してください。"]
[null,"　　 初めて実践される方は、別紙の購読パターンを参考にご記入ください。"]
[null,"　※継続校は４月以降の購読開始となります。"]
[null,"　　新規校は参加申請書の提出時期によって５月以降か９月以降の開始となります。"]
[]
[null,null,null,null,null,null,null,null,null,null,null,null,null,null,null,null,"合計"]
[null,"新聞名",null,"配達月",null,null,null,null,null,null,null,null,null,null,null,null,"\n月数"]
[]
[null,null,null,"4月","5月","6月","7月","8月","9月","10月","11月","12月","1月","2月","3月"]
[null,"実践形式Aの場合\n例）毎朝",null,null,null,null,null,null,1,1,null,null,null,null,null,null,2]
[null,"実践形式Bの場合\n例）毎朝",null,null,null,null,null,null,1,null,1,1,null,1,null,null,4]
[null,"朝　日",null,null,null,null,null,null,null,null,null,null,null,null,null,null,{"$f":"SUM(D27:O27)","v":0}]
[null,"毎　日",null,null,null,null,null,null,null,null,null,null,null,null,null,null,{"$f":"SUM(D28:O28)","v":0}]
[null,"読　売",null,null,null,null,null,null,null,null,null,null,null,null,null,null,0]
[null,"日　経",null,null,null,null,null,null,null,null,null,null,null,null,null,null,0]
["　","中　日",null,null,null,null,null,null,null,null,null,null,null,null,null,null,0]
[null,"東愛知",null,null,null,null,null,null,null,null,null,null,null,null,null,null,0]
[null,null,null,null,null,null,null,null,null,null,null,null,null,null,null,null,0]
[null,null,null,null,null,null,null,null,null,null,null,null,null,null,null,null,0]
[null,null,null,null,null,null,null,null,null,null,null,null,null,null,null,null,0]
[null,null,null,null,null,null,null,null,null,null,null,null,null,null,null,null,0]
[null,null,null,null,null,null,null,null,null,null,null,null,null,null,null,null,0]
[null,null,null,null,null,null,null,null,null,null,null,null,null,null,null,null,0]
[]
[null,"※地域によっては上記新聞すべてを配達できない場合があります。その際はご連絡いたします"]
[]
["《その他要望》    ※記者派遣（オリエンテーション）、新聞社見学等希望があればご記入ください。"]

{"sheet":"19岐阜","index":18,"n_rows":42,"n_cols":18,"rows_kept":42,"cut":false,"hidden":false,"merged":[[6,4,6,5],[6,6,6,10],[6,11,6,12],[6,13,6,16],[7,4,7,15],[2,16,2,17],[3,3,3,15],[3,16,3,17],[5,4,5,12],[5,13,5,15],[32,1,32,2],[33,1,33,2],[34,1,34,2],[29,1,29,2],[30,1,30,2],[42,1,46,16],[37,1,37,2],[1,0,1,17],[5,1,5,3],[6,1,6,3],[7,1,7,3],[27,1,27,2],[21,3,22,15],[26,1,26,2],[21,1,22,2],[24,1,24,2],[25,1,25,2],[28,1,28,2],[36,1,36,2],[31,1,31,2],[35,1,35,2]]}
[null,null,null,null,null,null,null,null,null,null,null,null,null,null,null,null,"学校番号：","　　　　"]
["《2026年度 年間購読計画表》"]
["【19岐阜】",null,null,null,null,null,null,null,null,null,null,null,null,null,null,null,"選んでください↓"]
["学　校　名",null,null,null,null,null,null,null,null,null,null,null,null,null,null,null,"（新規校）"]
[]
[null,"実践代表者名",null,null,null,null,null,null,null,null,null,null,null,"実践者（教師）",null,null,null,"人"]
[null,"連　絡　先",null,null,"電話：",null,null,null,null,null,null,"ファクス："]
[null,"実践形式",null,null,null,null,null,null,null,null,null,null,null,null,null,null,1]
[]
[null,null,null,null,null,null,null,null,null,null,null,"※割当部数"]
[null,null,null,null,null,null,null,null,null,null,null,null,"Ａ：１銘柄につき１部を延べ２か月"]
[null,null,null,null,null,null,null,null,null,null,null,null,"Ｂ：１銘柄につき１部を延べ４か月"]
[]
["《月決め》"]
[null,"　※以下は太枠に囲まれた部分のみをご記入ください。"]
[null,"　　 割当部数に応じて、配達を希望する月に希望部数を記入してください。"]
[null,"　　 初めて実践される方は、別紙の購読パターンを参考にご記入ください。"]
[null,"　※継続校は４月以降の購読開始となります。"]
[null,"　　新規校は参加申請書の提出時期によって５月以降か９月以降の開始となります。"]
[]
[null,null,null,null,null,null,null,null,null,null,null,null,null,null,null,null,"合計"]
[null,"新聞名",null,"配達月",null,null,null,null,null,null,null,null,null,null,null,null,"\n月数"]
[]
[null,null,null,"4月","5月","6月","7月","8月","9月","10月","11月","12月","1月","2月","3月"]
[null,"実践形式Aの場合\n例）毎朝",null,null,null,null,null,null,1,1,null,null,null,null,null,null,2]
[null,"実践形式Bの場合\n例）毎朝",null,null,null,null,null,null,1,null,1,1,null,1,null,null,4]
[null,"朝　日",null,null,null,null,null,null,null,null,null,null,null,null,null,null,{"$f":"SUM(D27:O27)","v":0}]
[null,"毎　日",null,null,null,null,null,null,null,null,null,null,null,null,null,null,{"$f":"SUM(D28:O28)","v":0}]
[null,"読　売",null,null,null,null,null,null,null,null,null,null,null,null,null,null,0]
[null,"日　経",null,null,null,null,null,null,null,null,null,null,null,null,null,null,0]
["　","中　日",null,null,null,null,null,null,null,null,null,null,null,null,null,null,0]
[null,"岐　阜",null,null,null,null,null,null,null,null,null,null,null,null,null,null,0]
[null,null,null,null,null,null,null,null,null,null,null,null,null,null,null,null,0]
[null,null,null,null,null,null,null,null,null,null,null,null,null,null,null,null,0]
[null,null,null,null,null,null,null,null,null,null,null,null,null,null,null,null,0]
[null,null,null,null,null,null,null,null,null,null,null,null,null,null,null,null,0]
[null,null,null,null,null,null,null,null,null,null,null,null,null,null,null,null,0]
[null,null,null,null,null,null,null,null,null,null,null,null,null,null,null,null,0]
[]
[null,"※地域によっては上記新聞すべてを配達できない場合があります。その際はご連絡いたします"]
[]
["《その他要望》    ※記者派遣（オリエンテーション）、新聞社見学等希望があればご記入ください。"]

{"sheet":"20新潟","index":19,"n_rows":42,"n_cols":18,"rows_kept":42,"cut":false,"hidden":false,"merged":[[1,0,1,17],[5,1,5,3],[6,1,6,3],[7,1,7,3],[27,1,27,2],[26,1,26,2],[21,1,22,2],[24,1,24,2],[25,1,25,2],[21,3,22,15],[2,16,2,17],[3,3,3,15],[3,16,3,17],[5,4,5,12],[5,13,5,15],[6,4,6,5],[6,6,6,10],[6,11,6,12],[6,13,6,16],[7,4,7,15],[37,1,37,2],[42,1,46,16],[28,1,28,2],[36,1,36,2],[31,1,31,2],[35,1,35,2],[32,1,32,2],[33,1,33,2],[34,1,34,2],[29,1,29,2],[30,1,30,2]]}
[null,null,null,null,null,null,null,null,null,null,null,null,null,null,null,null,"学校番号：","　　　　"]
["《2026年度 年間購読計画表》"]
["【20新潟】",null,null,null,null,null,null,null,null,null,null,null,null,null,null,null,"選んでください↓"]
["学　校　名",null,null,null,null,null,null,null,null,null,null,null,null,null,null,null,"（新規校）"]
[]
[null,"実践代表者名",null,null,null,null,null,null,null,null,null,null,null,"実践者（教師）",null,null,null,"人"]
[null,"連　絡　先",null,null,"電話：",null,null,null,null,null,null,"ファクス："]
[null,"実践形式",null,null,null,null,null,null,null,null,null,null,null,null,null,null,1]
[]
[null,null,null,null,null,null,null,null,null,null,null,"※割当部数"]
[null,null,null,null,null,null,null,null,null,null,null,null,"Ａ：１銘柄につき１部を延べ２か月"]
[null,null,null,null,null,null,null,null,null,null,null,null,"Ｂ：１銘柄につき１部を延べ４か月"]
[]
["《月決め》"]
[null,"　※以下は太枠に囲まれた部分のみをご記入ください。"]
[null,"　　 割当部数に応じて、配達を希望する月に希望部数を記入してください。"]
[null,"　　 初めて実践される方は、別紙の購読パターンを参考にご記入ください。"]
[null,"　※継続校は４月以降の購読開始となります。"]
[null,"　　新規校は参加申請書の提出時期によって５月以降か９月以降の開始となります。"]
[]
[null,null,null,null,null,null,null,null,null,null,null,null,null,null,null,null,"合計"]
[null,"新聞名",null,"配達月",null,null,null,null,null,null,null,null,null,null,null,null,"\n月数"]
[]
[null,null,null,"4月","5月","6月","7月","8月","9月","10月","11月","12月","1月","2月","3月"]
[null,"実践形式Aの場合\n例）毎朝",null,null,null,null,null,null,1,1,null,null,null,null,null,null,2]
[null,"実践形式Bの場合\n例）毎朝",null,null,null,null,null,null,1,null,1,1,null,1,null,null,4]
[null,"朝　日",null,null,null,null,null,null,null,null,null,null,null,null,null,null,{"$f":"SUM(D27:O27)","v":0}]
[null,"毎　日",null,null,null,null,null,null,null,null,null,null,null,null,null,null,{"$f":"SUM(D28:O28)","v":0}]
[null,"読　売",null,null,null,null,null,null,null,null,null,null,null,null,null,null,0]
[null,"日　経",null,null,null,null,null,null,null,null,null,null,null,null,null,null,0]
["　","産　経",null,null,null,null,null,null,null,null,null,null,null,null,null,null,0]
[null,"新　潟",null,null,null,null,null,null,null,null,null,null,null,null,null,null,0]
[null,null,null,null,null,null,null,null,null,null,null,null,null,null,null,null,0]
[null,null,null,null,null,null,null,null,null,null,null,null,null,null,null,null,0]
[null,null,null,null,null,null,null,null,null,null,null,null,null,null,null,null,0]
[null,null,null,null,null,null,null,null,null,null,null,null,null,null,null,null,0]
[null,null,null,null,null,null,null,null,null,null,null,null,null,null,null,null,0]
[null,null,null,null,null,null,null,null,null,null,null,null,null,null,null,null,0]
[]
[null,"※地域によっては上記新聞すべてを配達できない場合があります。その際はご連絡いたします"]
[]
["《その他要望》    ※記者派遣（オリエンテーション）、新聞社見学等希望があればご記入ください。"]

{"sheet":"21富山","index":20,"n_rows":42,"n_cols":18,"rows_kept":42,"cut":false,"hidden":false,"merged":[[6,4,6,5],[6,6,6,10],[6,11,6,12],[6,13,6,16],[7,4,7,15],[2,16,2,17],[3,3,3,15],[3,16,3,17],[5,4,5,12],[5,13,5,15],[32,1,32,2],[33,1,33,2],[34,1,34,2],[29,1,29,2],[30,1,30,2],[42,1,46,16],[37,1,37,2],[1,0,1,17],[5,1,5,3],[6,1,6,3],[7,1,7,3],[27,1,27,2],[21,3,22,15],[26,1,26,2],[21,1,22,2],[24,1,24,2],[25,1,25,2],[28,1,28,2],[36,1,36,2],[31,1,31,2],[35,1,35,2]]}
[null,null,null,null,null,null,null,null,null,null,null,null,null,null,null,null,"学校番号：","　　　　"]
["《2026年度 年間購読計画表》"]
["【21富山】",null,null,null,null,null,null,null,null,null,null,null,null,null,null,null,"選んでください↓"]
["学　校　名",null,null,null,null,null,null,null,null,null,null,null,null,null,null,null,"（新規校）"]
[]
[null,"実践代表者名",null,null,null,null,null,null,null,null,null,null,null,"実践者（教師）",null,null,null,"人"]
[null,"連　絡　先",null,null,"電話：",null,null,null,null,null,null,"ファクス："]
[null,"実践形式",null,null,null,null,null,null,null,null,null,null,null,null,null,null,1]
[]
[null,null,null,null,null,null,null,null,null,null,null,"※割当部数"]
[null,null,null,null,null,null,null,null,null,null,null,null,"Ａ：１銘柄につき１部を延べ２か月"]
[null,null,null,null,null,null,null,null,null,null,null,null,"Ｂ：１銘柄につき１部を延べ４か月"]
[]
["《月決め》"]
[null,"　※以下は太枠に囲まれた部分のみをご記入ください。"]
[null,"　　 割当部数に応じて、配達を希望する月に希望部数を記入してください。"]
[null,"　　 初めて実践される方は、別紙の購読パターンを参考にご記入ください。"]
[null,"　※継続校は４月以降の購読開始となります。"]
[null,"　　新規校は参加申請書の提出時期によって５月以降か９月以降の開始となります。"]
[]
[null,null,null,null,null,null,null,null,null,null,null,null,null,null,null,null,"合計"]
[null,"新聞名",null,"配達月",null,null,null,null,null,null,null,null,null,null,null,null,"\n月数"]
[]
[null,null,null,"4月","5月","6月","7月","8月","9月","10月","11月","12月","1月","2月","3月"]
[null,"実践形式Aの場合\n例）毎朝",null,null,null,null,null,null,1,1,null,null,null,null,null,null,2]
[null,"実践形式Bの場合\n例）毎朝",null,null,null,null,null,null,1,null,1,1,null,1,null,null,4]
[null,"朝　日",null,null,null,null,null,null,null,null,null,null,null,null,null,null,{"$f":"SUM(D27:O27)","v":0}]
[null,"読　売",null,null,null,null,null,null,null,null,null,null,null,null,null,null,{"$f":"SUM(D28:O28)","v":0}]
[null,"日　経",null,null,null,null,null,null,null,null,null,null,null,null,null,null,0]
[null,"北陸中日",null,null,null,null,null,null,null,null,null,null,null,null,null,null,0]
["　","北日本",null,null,null,null,null,null,null,null,null,null,null,null,null,null,0]
[null,"富　山",null,null,null,null,null,null,null,null,null,null,null,null,null,null,0]
[null,null,null,null,null,null,null,null,null,null,null,null,null,null,null,null,0]
[null,null,null,null,null,null,null,null,null,null,null,null,null,null,null,null,0]
[null,null,null,null,null,null,null,null,null,null,null,null,null,null,null,null,0]
[null,null,null,null,null,null,null,null,null,null,null,null,null,null,null,null,0]
[null,null,null,null,null,null,null,null,null,null,null,null,null,null,null,null,0]
[null,null,null,null,null,null,null,null,null,null,null,null,null,null,null,null,0]
[]
[null,"※地域によっては上記新聞すべてを配達できない場合があります。その際はご連絡いたします"]
[]
["《その他要望》    ※記者派遣（オリエンテーション）、新聞社見学等希望があればご記入ください。"]

{"sheet":"22石川","index":21,"n_rows":42,"n_cols":18,"rows_kept":42,"cut":false,"hidden":false,"merged":[[6,4,6,5],[6,6,6,10],[6,11,6,12],[6,13,6,16],[7,4,7,15],[2,16,2,17],[3,3,3,15],[3,16,3,17],[5,4,5,12],[5,13,5,15],[31,1,31,2],[33,1,33,2],[34,1,34,2],[29,1,29,2],[32,1,32,2],[42,1,46,16],[37,1,37,2],[1,0,1,17],[5,1,5,3],[6,1,6,3],[7,1,7,3],[27,1,27,2],[21,3,22,15],[26,1,26,2],[21,1,22,2],[24,1,24,2],[25,1,25,2],[28,1,28,2],[36,1,36,2],[30,1,30,2],[35,1,35,2]]}
[null,null,null,null,null,null,null,null,null,null,null,null,null,null,null,null,"学校番号：","　　　　"]
["《2026年度 年間購読計画表》"]
["【22石川】",null,null,null,null,null,null,null,null,null,null,null,null,null,null,null,"選んでください↓"]
["学　校　名",null,null,null,null,null,null,null,null,null,null,null,null,null,null,null,"（新規校）"]
[]
[null,"実践代表者名",null,null,null,null,null,null,null,null,null,null,null,"実践者（教師）",null,null,null,"人"]
[null,"連　絡　先",null,null,"電話：",null,null,null,null,null,null,"ファクス："]
[null,"実践形式",null,null,null,null,null,null,null,null,null,null,null,null,null,null,1]
[]
[null,null,null,null,null,null,null,null,null,null,null,"※割当部数"]
[null,null,null,null,null,null,null,null,null,null,null,null,"Ａ：１銘柄につき１部を延べ２か月"]
[null,null,null,null,null,null,null,null,null,null,null,null,"Ｂ：１銘柄につき１部を延べ４か月"]
[]
["《月決め》"]
[null,"　※以下は太枠に囲まれた部分のみをご記入ください。"]
[null,"　　 割当部数に応じて、配達を希望する月に希望部数を記入してください。"]
[null,"　　 初めて実践される方は、別紙の購読パターンを参考にご記入ください。"]
[null,"　※継続校は４月以降の購読開始となります。"]
[null,"　　新規校は参加申請書の提出時期によって５月以降か９月以降の開始となります。"]
[]
[null,null,null,null,null,null,null,null,null,null,null,null,null,null,null,null,"合計"]
[null,"新聞名",null,"配達月",null,null,null,null,null,null,null,null,null,null,null,null,"\n月数"]
[]
[null,null,null,"4月","5月","6月","7月","8月","9月","10月","11月","12月","1月","2月","3月"]
[null,"実践形式Aの場合\n例）毎朝",null,null,null,null,null,null,1,1,null,null,null,null,null,null,2]
[null,"実践形式Bの場合\n例）毎朝",null,null,null,null,null,null,1,null,1,1,null,1,null,null,4]
[null,"朝　日",null,null,null,null,null,null,null,null,null,null,null,null,null,null,{"$f":"SUM(D27:O27)","v":0}]
[null,"毎　日",null,null,null,null,null,null,null,null,null,null,null,null,null,null,{"$f":"SUM(D28:O28)","v":0}]
[null,"読　売",null,null,null,null,null,null,null,null,null,null,null,null,null,null,0]
[null,"日　経",null,null,null,null,null,null,null,null,null,null,null,null,null,null,0]
[null,"北陸中日",null,null,null,null,null,null,null,null,null,null,null,null,null,null,0]
[null,"北　國",null,null,null,null,null,null,null,null,null,null,null,null,null,null,0]
["　",null,null,null,null,null,null,null,null,null,null,null,null,null,null,null,0]
[null,null,null,null,null,null,null,null,null,null,null,null,null,null,null,null,0]
[null,null,null,null,null,null,null,null,null,null,null,null,null,null,null,null,0]
[null,null,null,null,null,null,null,null,null,null,null,null,null,null,null,null,0]
[null,null,null,null,null,null,null,null,null,null,null,null,null,null,null,null,0]
[null,null,null,null,null,null,null,null,null,null,null,null,null,null,null,null,0]
[]
[null,"※地域によっては上記新聞すべてを配達できない場合があります。その際はご連絡いたします"]
[]
["《その他要望》    ※記者派遣（オリエンテーション）、新聞社見学等希望があればご記入ください。"]

{"sheet":"23福井","index":22,"n_rows":42,"n_cols":18,"rows_kept":42,"cut":false,"hidden":false,"merged":[[24,1,24,2],[21,1,22,2],[21,3,22,15],[5,1,5,3],[6,1,6,3],[7,1,7,3],[6,4,6,5],[6,6,6,10],[6,11,6,12],[6,13,6,16],[7,4,7,15],[1,0,1,17],[2,16,2,17],[3,3,3,15],[3,16,3,17],[5,4,5,12],[5,13,5,15],[25,1,25,2],[27,1,27,2],[28,1,28,2],[36,1,36,2],[31,1,31,2],[35,1,35,2],[32,1,32,2],[33,1,33,2],[34,1,34,2],[42,1,46,16],[37,1,37,2],[29,1,29,2],[30,1,30,2],[26,1,26,2]]}
[null,null,null,null,null,null,null,null,null,null,null,null,null,null,null,null,"学校番号：","　　　　"]
["《2026年度 年間購読計画表》"]
["【23福井】",null,null,null,null,null,null,null,null,null,null,null,null,null,null,null,"選んでください↓"]
["学　校　名",null,null,null,null,null,null,null,null,null,null,null,null,null,null,null,"（新規校）"]
[]
[null,"実践代表者名",null,null,null,null,null,null,null,null,null,null,null,"実践者（教師）",null,null,null,"人"]
[null,"連　絡　先",null,null,"電話：",null,null,null,null,null,null,"ファクス："]
[null,"実践形式",null,null,null,null,null,null,null,null,null,null,null,null,null,null,1]
[]
[null,null,null,null,null,null,null,null,null,null,null,"※割当部数"]
[null,null,null,null,null,null,null,null,null,null,null,null,"Ａ：１銘柄につき１部を延べ２か月"]
[null,null,null,null,null,null,null,null,null,null,null,null,"Ｂ：１銘柄につき１部を延べ４か月"]
[]
["《月決め》"]
[null,"　※以下は太枠に囲まれた部分のみをご記入ください。"]
[null,"　　 割当部数に応じて、配達を希望する月に希望部数を記入してください。"]
[null,"　　 初めて実践される方は、別紙の購読パターンを参考にご記入ください。"]
[null,"　※継続校は４月以降の購読開始となります。"]
[null,"　　新規校は参加申請書の提出時期によって５月以降か９月以降の開始となります。"]
[]
[null,null,null,null,null,null,null,null,null,null,null,null,null,null,null,null,"合計"]
[null,"新聞名",null,"配達月",null,null,null,null,null,null,null,null,null,null,null,null,"\n月数"]
[]
[null,null,null,"4月","5月","6月","7月","8月","9月","10月","11月","12月","1月","2月","3月"]
[null,"実践形式Aの場合\n例）毎朝",null,null,null,null,null,null,1,1,null,null,null,null,null,null,2]
[null,"実践形式Bの場合\n例）毎朝",null,null,null,null,null,null,1,null,1,1,null,1,null,null,4]
[null,"朝　日",null,null,null,null,null,null,null,null,null,null,null,null,null,null,{"$f":"SUM(D27:O27)","v":0}]
[null,"毎　日",null,null,null,null,null,null,null,null,null,null,null,null,null,null,{"$f":"SUM(D28:O28)","v":0}]
[null,"読　売",null,null,null,null,null,null,null,null,null,null,null,null,null,null,0]
[null,"日　経",null,null,null,null,null,null,null,null,null,null,null,null,null,null,0]
[null,"福　井",null,null,null,null,null,null,null,null,null,null,null,null,null,null,0]
[null,"中　日",null,null,null,null,null,null,null,null,null,null,null,null,null,null,0]
[null,"日刊県民福井",null,null,null,null,null,null,null,null,null,null,null,null,null,null,0]
[null,null,null,null,null,null,null,null,null,null,null,null,null,null,null,null,0]
[null,null,null,null,null,null,null,null,null,null,null,null,null,null,null,null,0]
[null,null,null,null,null,null,null,null,null,null,null,null,null,null,null,null,0]
[null,null,null,null,null,null,null,null,null,null,null,null,null,null,null,null,0]
[null,null,null,null,null,null,null,null,null,null,null,null,null,null,null,null,0]
[]
[null,"※地域によっては上記新聞すべてを配達できない場合があります。その際はご連絡いたします"]
[]
["《その他要望》    ※記者派遣（オリエンテーション）、新聞社見学等希望があればご記入ください。"]

{"sheet":"24三重","index":23,"n_rows":42,"n_cols":18,"rows_kept":42,"cut":false,"hidden":false,"merged":[[6,4,6,5],[6,6,6,10],[6,11,6,12],[6,13,6,16],[7,4,7,15],[2,16,2,17],[3,3,3,15],[3,16,3,17],[5,4,5,12],[5,13,5,15],[32,1,32,2],[33,1,33,2],[34,1,34,2],[29,1,29,2],[30,1,30,2],[42,1,46,16],[37,1,37,2],[1,0,1,17],[5,1,5,3],[6,1,6,3],[7,1,7,3],[27,1,27,2],[21,3,22,15],[26,1,26,2],[21,1,22,2],[24,1,24,2],[25,1,25,2],[28,1,28,2],[36,1,36,2],[31,1,31,2],[35,1,35,2]]}
[null,null,null,null,null,null,null,null,null,null,null,null,null,null,null,null,"学校番号：","　　　　"]
["《2026年度 年間購読計画表》"]
["【24三重】",null,null,null,null,null,null,null,null,null,null,null,null,null,null,null,"選んでください↓"]
["学　校　名",null,null,null,null,null,null,null,null,null,null,null,null,null,null,null,"（新規校）"]
[]
[null,"実践代表者名",null,null,null,null,null,null,null,null,null,null,null,"実践者（教師）",null,null,null,"人"]
[null,"連　絡　先",null,null,"電話：",null,null,null,null,null,null,"ファクス："]
[null,"実践形式",null,null,null,null,null,null,null,null,null,null,null,null,null,null,1]
[]
[null,null,null,null,null,null,null,null,null,null,null,"※割当部数"]
[null,null,null,null,null,null,null,null,null,null,null,null,"Ａ：１銘柄につき１部を延べ２か月"]
[null,null,null,null,null,null,null,null,null,null,null,null,"Ｂ：１銘柄につき１部を延べ４か月"]
[]
["《月決め》"]
[null,"　※以下は太枠に囲まれた部分のみをご記入ください。"]
[null,"　　 割当部数に応じて、配達を希望する月に希望部数を記入してください。"]
[null,"　　 初めて実践される方は、別紙の購読パターンを参考にご記入ください。"]
[null,"　※継続校は４月以降の購読開始となります。"]
[null,"　　新規校は参加申請書の提出時期によって５月以降か９月以降の開始となります。"]
[]
[null,null,null,null,null,null,null,null,null,null,null,null,null,null,null,null,"合計"]
[null,"新聞名",null,"配達月",null,null,null,null,null,null,null,null,null,null,null,null,"\n月数"]
[]
[null,null,null,"4月","5月","6月","7月","8月","9月","10月","11月","12月","1月","2月","3月"]
[null,"実践形式Aの場合\n例）毎朝",null,null,null,null,null,null,1,1,null,null,null,null,null,null,2]
[null,"実践形式Bの場合\n例）毎朝",null,null,null,null,null,null,1,null,1,1,null,1,null,null,4]
[null,"朝　日",null,null,null,null,null,null,null,null,null,null,null,null,null,null,{"$f":"SUM(D27:O27)","v":0}]
[null,"毎　日",null,null,null,null,null,null,null,null,null,null,null,null,null,null,{"$f":"SUM(D28:O28)","v":0}]
[null,"読　売",null,null,null,null,null,null,null,null,null,null,null,null,null,null,0]
[null,"日　経",null,null,null,null,null,null,null,null,null,null,null,null,null,null,0]
["　","中　日",null,null,null,null,null,null,null,null,null,null,null,null,null,null,0]
[null,"伊　勢",null,null,null,null,null,null,null,null,null,null,null,null,null,null,0]
[null,null,null,null,null,null,null,null,null,null,null,null,null,null,null,null,0]
[null,null,null,null,null,null,null,null,null,null,null,null,null,null,null,null,0]
[null,null,null,null,null,null,null,null,null,null,null,null,null,null,null,null,0]
[null,null,null,null,null,null,null,null,null,null,null,null,null,null,null,null,0]
[null,null,null,null,null,null,null,null,null,null,null,null,null,null,null,null,0]
[null,null,null,null,null,null,null,null,null,null,null,null,null,null,null,null,0]
[]
[null,"※地域によっては上記新聞すべてを配達できない場合があります。その際はご連絡いたします"]
[]
["《その他要望》    ※記者派遣（オリエンテーション）、新聞社見学等希望があればご記入ください。"]

{"sheet":"25京都","index":24,"n_rows":42,"n_cols":18,"rows_kept":42,"cut":false,"hidden":false,"merged":[[1,0,1,17],[5,1,5,3],[6,1,6,3],[7,1,7,3],[27,1,27,2],[26,1,26,2],[21,1,22,2],[24,1,24,2],[25,1,25,2],[21,3,22,15],[2,16,2,17],[3,3,3,15],[3,16,3,17],[5,4,5,12],[5,13,5,15],[6,4,6,5],[6,6,6,10],[6,11,6,12],[6,13,6,16],[7,4,7,15],[37,1,37,2],[42,1,46,16],[28,1,28,2],[36,1,36,2],[31,1,31,2],[35,1,35,2],[32,1,32,2],[33,1,33,2],[34,1,34,2],[29,1,29,2],[30,1,30,2]]}
[null,null,null,null,null,null,null,null,null,null,null,null,null,null,null,null,"学校番号：","　　　　"]
["《2026年度 年間購読計画表》"]
["【25京都】",null,null,null,null,null,null,null,null,null,null,null,null,null,null,null,"選んでください↓"]
["学　校　名",null,null,null,null,null,null,null,null,null,null,null,null,null,null,null,"（新規校）"]
[]
[null,"実践代表者名",null,null,null,null,null,null,null,null,null,null,null,"実践者（教師）",null,null,null,"人"]
[null,"連　絡　先",null,null,"電話：",null,null,null,null,null,null,"ファクス："]
[null,"実践形式",null,null,null,null,null,null,null,null,null,null,null,null,null,null,1]
[]
[null,null,null,null,null,null,null,null,null,null,null,"※割当部数"]
[null,null,null,null,null,null,null,null,null,null,null,null,"Ａ：１銘柄につき１部を延べ２か月"]
[null,null,null,null,null,null,null,null,null,null,null,null,"Ｂ：１銘柄につき１部を延べ４か月"]
[]
["《月決め》"]
[null,"　※以下は太枠に囲まれた部分のみをご記入ください。"]
[null,"　　 割当部数に応じて、配達を希望する月に希望部数を記入してください。"]
[null,"　　 初めて実践される方は、別紙の購読パターンを参考にご記入ください。"]
[null,"　※継続校は４月以降の購読開始となります。"]
[null,"　　新規校は参加申請書の提出時期によって５月以降か９月以降の開始となります。"]
[]
[null,null,null,null,null,null,null,null,null,null,null,null,null,null,null,null,"合計"]
[null,"新聞名",null,"配達月",null,null,null,null,null,null,null,null,null,null,null,null,"\n月数"]
[]
[null,null,null,"4月","5月","6月","7月","8月","9月","10月","11月","12月","1月","2月","3月"]
[null,"実践形式Aの場合\n例）毎朝",null,null,null,null,null,null,1,1,null,null,null,null,null,null,2]
[null,"実践形式Bの場合\n例）毎朝",null,null,null,null,null,null,1,null,1,1,null,1,null,null,4]
[null,"朝　日",null,null,null,null,null,null,null,null,null,null,null,null,null,null,{"$f":"SUM(D27:O27)","v":0}]
[null,"毎　日",null,null,null,null,null,null,null,null,null,null,null,null,null,null,{"$f":"SUM(D28:O28)","v":0}]
[null,"読　売",null,null,null,null,null,null,null,null,null,null,null,null,null,null,0]
[null,"日　経",null,null,null,null,null,null,null,null,null,null,null,null,null,null,0]
["　","産　経",null,null,null,null,null,null,null,null,null,null,null,null,null,null,0]
[null,"京　都",null,null,null,null,null,null,null,null,null,null,null,null,null,null,0]
[null,null,null,null,null,null,null,null,null,null,null,null,null,null,null,null,0]
[null,null,null,null,null,null,null,null,null,null,null,null,null,null,null,null,0]
[null,null,null,null,null,null,null,null,null,null,null,null,null,null,null,null,0]
[null,null,null,null,null,null,null,null,null,null,null,null,null,null,null,null,0]
[null,null,null,null,null,null,null,null,null,null,null,null,null,null,null,null,0]
[null,null,null,null,null,null,null,null,null,null,null,null,null,null,null,null,0]
[]
[null,"※地域によっては上記新聞すべてを配達できない場合があります。その際はご連絡いたします"]
[]
["《その他要望》    ※記者派遣（オリエンテーション）、新聞社見学等希望があればご記入ください。"]

{"sheet":"26大阪","index":25,"n_rows":42,"n_cols":18,"rows_kept":42,"cut":false,"hidden":false,"merged":[[1,0,1,17],[5,1,5,3],[6,1,6,3],[7,1,7,3],[27,1,27,2],[26,1,26,2],[21,1,22,2],[24,1,24,2],[25,1,25,2],[21,3,22,15],[2,16,2,17],[3,3,3,15],[3,16,3,17],[5,4,5,12],[5,13,5,15],[6,4,6,5],[6,6,6,10],[6,11,6,12],[6,13,6,16],[7,4,7,15],[37,1,37,2],[42,1,46,16],[28,1,28,2],[36,1,36,2],[31,1,31,2],[35,1,35,2],[32,1,32,2],[33,1,33,2],[34,1,34,2],[29,1,29,2],[30,1,30,2]]}
[null,null,null,null,null,null,null,null,null,null,null,null,null,null,null,null,"学校番号：","　　　　"]
["《2026年度 年間購読計画表》"]
["【26大阪】",null,null,null,null,null,null,null,null,null,null,null,null,null,null,null,"選んでください↓"]
["学　校　名",null,null,null,null,null,null,null,null,null,null,null,null,null,null,null,"（新規校）"]
[]
[null,"実践代表者名",null,null,null,null,null,null,null,null,null,null,null,"実践者（教師）",null,null,null,"人"]
[null,"連　絡　先",null,null,"電話：",null,null,null,null,null,null,"ファクス："]
[null,"実践形式",null,null,null,null,null,null,null,null,null,null,null,null,null,null,1]
[]
[null,null,null,null,null,null,null,null,null,null,null,"※割当部数"]
[null,null,null,null,null,null,null,null,null,null,null,null,"Ａ：１銘柄につき１部を延べ２か月"]
[null,null,null,null,null,null,null,null,null,null,null,null,"Ｂ：１銘柄につき１部を延べ４か月"]
[]
["《月決め》"]
[null,"　※以下は太枠に囲まれた部分のみをご記入ください。"]
[null,"　　 割当部数に応じて、配達を希望する月に希望部数を記入してください。"]
[null,"　　 初めて実践される方は、別紙の購読パターンを参考にご記入ください。"]
[null,"　※継続校は４月以降の購読開始となります。"]
[null,"　　新規校は参加申請書の提出時期によって５月以降か９月以降の開始となります。"]
[]
[null,null,null,null,null,null,null,null,null,null,null,null,null,null,null,null,"合計"]
[null,"新聞名",null,"配達月",null,null,null,null,null,null,null,null,null,null,null,null,"\n月数"]
[]
[null,null,null,"4月","5月","6月","7月","8月","9月","10月","11月","12月","1月","2月","3月"]
[null,"実践形式Aの場合\n例）毎朝",null,null,null,null,null,null,1,1,null,null,null,null,null,null,2]
[null,"実践形式Bの場合\n例）毎朝",null,null,null,null,null,null,1,null,1,1,null,1,null,null,4]
[null,"朝　日",null,null,null,null,null,null,null,null,null,null,null,null,null,null,{"$f":"SUM(D27:O27)","v":0}]
[null,"毎　日",null,null,null,null,null,null,null,null,null,null,null,null,null,null,{"$f":"SUM(D28:O28)","v":0}]
[null,"読　売",null,null,null,null,null,null,null,null,null,null,null,null,null,null,0]
[null,"日　経",null,null,null,null,null,null,null,null,null,null,null,null,null,null,0]
["　","産　経",null,null,null,null,null,null,null,null,null,null,null,null,null,null,0]
[null,null,null,null,null,null,null,null,null,null,null,null,null,null,null,null,0]
[null,null,null,null,null,null,null,null,null,null,null,null,null,null,null,null,0]
[null,null,null,null,null,null,null,null,null,null,null,null,null,null,null,null,0]
[null,null,null,null,null,null,null,null,null,null,null,null,null,null,null,null,0]
[null,null,null,null,null,null,null,null,null,null,null,null,null,null,null,null,0]
[null,null,null,null,null,null,null,null,null,null,null,null,null,null,null,null,0]
[null,null,null,null,null,null,null,null,null,null,null,null,null,null,null,null,0]
[]
[null,"※地域によっては上記新聞すべてを配達できない場合があります。その際はご連絡いたします"]
[]
["《その他要望》    ※記者派遣（オリエンテーション）、新聞社見学等希望があればご記入ください。"]

{"sheet":"27兵庫","index":26,"n_rows":42,"n_cols":18,"rows_kept":42,"cut":false,"hidden":false,"merged":[[6,4,6,5],[6,6,6,10],[6,11,6,12],[6,13,6,16],[7,4,7,15],[2,16,2,17],[3,3,3,15],[3,16,3,17],[5,4,5,12],[5,13,5,15],[32,1,32,2],[33,1,33,2],[34,1,34,2],[29,1,29,2],[30,1,30,2],[42,1,46,16],[37,1,37,2],[1,0,1,17],[5,1,5,3],[6,1,6,3],[7,1,7,3],[27,1,27,2],[21,3,22,15],[26,1,26,2],[21,1,22,2],[24,1,24,2],[25,1,25,2],[28,1,28,2],[36,1,36,2],[31,1,31,2],[35,1,35,2]]}
[null,null,null,null,null,null,null,null,null,null,null,null,null,null,null,null,"学校番号：","　　　　"]
["《2026年度 年間購読計画表》"]
["【27兵庫】",null,null,null,null,null,null,null,null,null,null,null,null,null,null,null,"選んでください↓"]
["学　校　名",null,null,null,null,null,null,null,null,null,null,null,null,null,null,null,"（継続校）"]
[]
[null,"実践代表者名",null,null,null,null,null,null,null,null,null,null,null,"実践者（教師）",null,null,null,"人"]
[null,"連　絡　先",null,null,"電話：",null,null,null,null,null,null,"ファクス："]
[null,"実践形式",null,null,null,null,null,null,null,null,null,null,null,null,null,null,2]
[]
[null,null,null,null,null,null,null,null,null,null,null,"※割当部数"]
[null,null,null,null,null,null,null,null,null,null,null,null,"Ａ：１銘柄につき１部を延べ２か月"]
[null,null,null,null,null,null,null,null,null,null,null,null,"Ｂ：１銘柄につき１部を延べ４か月"]
[]
["《月決め》"]
[null,"　※以下は太枠に囲まれた部分のみをご記入ください。"]
[null,"　　 割当部数に応じて、配達を希望する月に希望部数を記入してください。"]
[null,"　　 初めて実践される方は、別紙の購読パターンを参考にご記入ください。"]
[null,"　※継続校は４月以降の購読開始となります。"]
[null,"　　新規校は参加申請書の提出時期によって５月以降か９月以降の開始となります。"]
[]
[null,null,null,null,null,null,null,null,null,null,null,null,null,null,null,null,"合計"]
[null,"新聞名",null,"配達月",null,null,null,null,null,null,null,null,null,null,null,null,"\n月数"]
[]
[null,null,null,"4月","5月","6月","7月","8月","9月","10月","11月","12月","1月","2月","3月"]
[null,"実践形式Aの場合\n例）毎朝",null,null,null,null,null,null,1,1,null,null,null,null,null,null,2]
[null,"実践形式Bの場合\n例）毎朝",null,null,null,null,null,null,1,null,1,1,null,1,null,null,4]
[null,"朝　日",null,null,null,null,null,null,null,null,null,null,null,null,null,null,{"$f":"SUM(D27:O27)","v":0}]
[null,"毎　日",null,null,null,null,null,null,null,null,null,null,null,null,null,null,{"$f":"SUM(D28:O28)","v":0}]
[null,"読　売",null,null,null,null,null,null,null,null,null,null,null,null,null,null,0]
[null,"日　経",null,null,null,null,null,null,null,null,null,null,null,null,null,null,0]
["　","産　経",null,null,null,null,null,null,null,null,null,null,null,null,null,null,0]
[null,"神　戸",null,null,null,null,null,null,null,null,null,null,null,null,null,null,0]
[null,null,null,null,null,null,null,null,null,null,null,null,null,null,null,null,0]
[null,null,null,null,null,null,null,null,null,null,null,null,null,null,null,null,0]
[null,null,null,null,null,null,null,null,null,null,null,null,null,null,null,null,0]
[null,null,null,null,null,null,null,null,null,null,null,null,null,null,null,null,0]
[null,null,null,null,null,null,null,null,null,null,null,null,null,null,null,null,0]
[null,null,null,null,null,null,null,null,null,null,null,null,null,null,null,null,0]
[]
[null,"※地域によっては上記新聞すべてを配達できない場合があります。その際はご連絡いたします"]
[]
["《その他要望》    ※記者派遣（オリエンテーション）、新聞社見学等希望があればご記入ください。"]

{"sheet":"28奈良","index":27,"n_rows":42,"n_cols":18,"rows_kept":42,"cut":false,"hidden":false,"merged":[[6,4,6,5],[6,6,6,10],[6,11,6,12],[6,13,6,16],[7,4,7,15],[2,16,2,17],[3,3,3,15],[3,16,3,17],[5,4,5,12],[5,13,5,15],[32,1,32,2],[33,1,33,2],[34,1,34,2],[29,1,29,2],[30,1,30,2],[42,1,46,16],[37,1,37,2],[1,0,1,17],[5,1,5,3],[6,1,6,3],[7,1,7,3],[27,1,27,2],[21,3,22,15],[26,1,26,2],[21,1,22,2],[24,1,24,2],[25,1,25,2],[28,1,28,2],[36,1,36,2],[31,1,31,2],[35,1,35,2]]}
[null,null,null,null,null,null,null,null,null,null,null,null,null,null,null,null,"学校番号：","　　　　"]
["《2026年度 年間購読計画表》"]
["【28奈良】",null,null,null,null,null,null,null,null,null,null,null,null,null,null,null,"選んでください↓"]
["学　校　名",null,null,null,null,null,null,null,null,null,null,null,null,null,null,null,"（新規校）"]
[]
[null,"実践代表者名",null,null,null,null,null,null,null,null,null,null,null,"実践者（教師）",null,null,null,"人"]
[null,"連　絡　先",null,null,"電話：",null,null,null,null,null,null,"ファクス："]
[null,"実践形式",null,null,null,null,null,null,null,null,null,null,null,null,null,null,1]
[]
[null,null,null,null,null,null,null,null,null,null,null,"※割当部数"]
[null,null,null,null,null,null,null,null,null,null,null,null,"Ａ：１銘柄につき１部を延べ２か月"]
[null,null,null,null,null,null,null,null,null,null,null,null,"Ｂ：１銘柄につき１部を延べ４か月"]
[]
["《月決め》"]
[null,"　※以下は太枠に囲まれた部分のみをご記入ください。"]
[null,"　　 割当部数に応じて、配達を希望する月に希望部数を記入してください。"]
[null,"　　 初めて実践される方は、別紙の購読パターンを参考にご記入ください。"]
[null,"　※継続校は４月以降の購読開始となります。"]
[null,"　　新規校は参加申請書の提出時期によって５月以降か９月以降の開始となります。"]
[]
[null,null,null,null,null,null,null,null,null,null,null,null,null,null,null,null,"合計"]
[null,"新聞名",null,"配達月",null,null,null,null,null,null,null,null,null,null,null,null,"\n月数"]
[]
[null,null,null,"4月","5月","6月","7月","8月","9月","10月","11月","12月","1月","2月","3月"]
[null,"実践形式Aの場合\n例）毎朝",null,null,null,null,null,null,1,1,null,null,null,null,null,null,2]
[null,"実践形式Bの場合\n例）毎朝",null,null,null,null,null,null,1,null,1,1,null,1,null,null,4]
[null,"朝　日",null,null,null,null,null,null,null,null,null,null,null,null,null,null,{"$f":"SUM(D27:O27)","v":0}]
[null,"毎　日",null,null,null,null,null,null,null,null,null,null,null,null,null,null,{"$f":"SUM(D28:O28)","v":0}]
[null,"読　売",null,null,null,null,null,null,null,null,null,null,null,null,null,null,0]
[null,"日　経",null,null,null,null,null,null,null,null,null,null,null,null,null,null,0]
["　","産　経",null,null,null,null,null,null,null,null,null,null,null,null,null,null,0]
[null,"奈　良",null,null,null,null,null,null,null,null,null,null,null,null,null,null,0]
[null,null,null,null,null,null,null,null,null,null,null,null,null,null,null,null,0]
[null,null,null,null,null,null,null,null,null,null,null,null,null,null,null,null,0]
[null,null,null,null,null,null,null,null,null,null,null,null,null,null,null,null,0]
[null,null,null,null,null,null,null,null,null,null,null,null,null,null,null,null,0]
[null,null,null,null,null,null,null,null,null,null,null,null,null,null,null,null,0]
[null,null,null,null,null,null,null,null,null,null,null,null,null,null,null,null,0]
[]
[null,"※地域によっては上記新聞すべてを配達できない場合があります。その際はご連絡いたします"]
[]
["《その他要望》    ※記者派遣（オリエンテーション）、新聞社見学等希望があればご記入ください。"]

{"sheet":"29滋賀","index":28,"n_rows":42,"n_cols":18,"rows_kept":42,"cut":false,"hidden":false,"merged":[[1,0,1,17],[5,1,5,3],[6,1,6,3],[7,1,7,3],[27,1,27,2],[26,1,26,2],[21,1,22,2],[24,1,24,2],[25,1,25,2],[21,3,22,15],[2,16,2,17],[3,3,3,15],[3,16,3,17],[5,4,5,12],[5,13,5,15],[6,4,6,5],[6,6,6,10],[6,11,6,12],[6,13,6,16],[7,4,7,15],[37,1,37,2],[42,1,46,16],[28,1,28,2],[36,1,36,2],[31,1,31,2],[35,1,35,2],[32,1,32,2],[33,1,33,2],[34,1,34,2],[29,1,29,2],[30,1,30,2]]}
[null,null,null,null,null,null,null,null,null,null,null,null,null,null,null,null,"学校番号：","　　　　"]
["《2026年度 年間購読計画表》"]
["【29滋賀】",null,null,null,null,null,null,null,null,null,null,null,null,null,null,null,"選んでください↓"]
["学　校　名",null,null,null,null,null,null,null,null,null,null,null,null,null,null,null,"（新規校）"]
[]
[null,"実践代表者名",null,null,null,null,null,null,null,null,null,null,null,"実践者（教師）",null,null,null,"人"]
[null,"連　絡　先",null,null,"電話：",null,null,null,null,null,null,"ファクス："]
[null,"実践形式",null,null,null,null,null,null,null,null,null,null,null,null,null,null,1]
[]
[null,null,null,null,null,null,null,null,null,null,null,"※割当部数"]
[null,null,null,null,null,null,null,null,null,null,null,null,"Ａ：１銘柄につき１部を延べ２か月"]
[null,null,null,null,null,null,null,null,null,null,null,null,"Ｂ：１銘柄につき１部を延べ４か月"]
[]
["《月決め》"]
[null,"　※以下は太枠に囲まれた部分のみをご記入ください。"]
[null,"　　 割当部数に応じて、配達を希望する月に希望部数を記入してください。"]
[null,"　　 初めて実践される方は、別紙の購読パターンを参考にご記入ください。"]
[null,"　※継続校は４月以降の購読開始となります。"]
[null,"　　新規校は参加申請書の提出時期によって５月以降か９月以降の開始となります。"]
[]
[null,null,null,null,null,null,null,null,null,null,null,null,null,null,null,null,"合計"]
[null,"新聞名",null,"配達月",null,null,null,null,null,null,null,null,null,null,null,null,"\n月数"]
[]
[null,null,null,"4月","5月","6月","7月","8月","9月","10月","11月","12月","1月","2月","3月"]
[null,"実践形式Aの場合\n例）毎朝",null,null,null,null,null,null,1,1,null,null,null,null,null,null,2]
[null,"実践形式Bの場合\n例）毎朝",null,null,null,null,null,null,1,null,1,1,null,1,null,null,4]
[null,"朝　日",null,null,null,null,null,null,null,null,null,null,null,null,null,null,{"$f":"SUM(D27:O27)","v":0}]
[null,"毎　日",null,null,null,null,null,null,null,null,null,null,null,null,null,null,{"$f":"SUM(D28:O28)","v":0}]
[null,"読　売",null,null,null,null,null,null,null,null,null,null,null,null,null,null,0]
[null,"日　経",null,null,null,null,null,null,null,null,null,null,null,null,null,null,0]
["　","産　経",null,null,null,null,null,null,null,null,null,null,null,null,null,null,0]
[null,"中　日",null,null,null,null,null,null,null,null,null,null,null,null,null,null,0]
[null,"京　都",null,null,null,null,null,null,null,null,null,null,null,null,null,null,0]
[null,null,null,null,null,null,null,null,null,null,null,null,null,null,null,null,0]
[null,null,null,null,null,null,null,null,null,null,null,null,null,null,null,null,0]
[null,null,null,null,null,null,null,null,null,null,null,null,null,null,null,null,0]
[null,null,null,null,null,null,null,null,null,null,null,null,null,null,null,null,0]
[null,null,null,null,null,null,null,null,null,null,null,null,null,null,null,null,0]
[]
[null,"※地域によっては上記新聞すべてを配達できない場合があります。その際はご連絡いたします"]
[]
["《その他要望》    ※記者派遣（オリエンテーション）、新聞社見学等希望があればご記入ください。"]

{"sheet":"30和歌山","index":29,"n_rows":42,"n_cols":18,"rows_kept":42,"cut":false,"hidden":false,"merged":[[6,4,6,5],[6,6,6,10],[6,11,6,12],[6,13,6,16],[7,4,7,15],[2,16,2,17],[3,3,3,15],[3,16,3,17],[5,4,5,12],[5,13,5,15],[32,1,32,2],[33,1,33,2],[34,1,34,2],[29,1,29,2],[30,1,30,2],[42,1,46,16],[37,1,37,2],[1,0,1,17],[5,1,5,3],[6,1,6,3],[7,1,7,3],[27,1,27,2],[21,3,22,15],[26,1,26,2],[21,1,22,2],[24,1,24,2],[25,1,25,2],[28,1,28,2],[36,1,36,2],[31,1,31,2],[35,1,35,2]]}
[null,null,null,null,null,null,null,null,null,null,null,null,null,null,null,null,"学校番号：","　　　　"]
["《2026年度 年間購読計画表》"]
["【30和歌山】",null,null,null,null,null,null,null,null,null,null,null,null,null,null,null,"選んでください↓"]
["学　校　名",null,null,null,null,null,null,null,null,null,null,null,null,null,null,null,"（新規校）"]
[]
[null,"実践代表者名",null,null,null,null,null,null,null,null,null,null,null,"実践者（教師）",null,null,null,"人"]
[null,"連　絡　先",null,null,"電話：",null,null,null,null,null,null,"ファクス："]
[null,"実践形式",null,null,null,null,null,null,null,null,null,null,null,null,null,null,1]
[]
[null,null,null,null,null,null,null,null,null,null,null,"※割当部数"]
[null,null,null,null,null,null,null,null,null,null,null,null,"Ａ：１銘柄につき１部を延べ２か月"]
[null,null,null,null,null,null,null,null,null,null,null,null,"Ｂ：１銘柄につき１部を延べ４か月"]
[]
["《月決め》"]
[null,"　※以下は太枠に囲まれた部分のみをご記入ください。"]
[null,"　　 割当部数に応じて、配達を希望する月に希望部数を記入してください。"]
[null,"　　 初めて実践される方は、別紙の購読パターンを参考にご記入ください。"]
[null,"　※継続校は４月以降の購読開始となります。"]
[null,"　　新規校は参加申請書の提出時期によって５月以降か９月以降の開始となります。"]
[]
[null,null,null,null,null,null,null,null,null,null,null,null,null,null,null,null,"合計"]
[null,"新聞名",null,"配達月",null,null,null,null,null,null,null,null,null,null,null,null,"\n月数"]
[]
[null,null,null,"4月","5月","6月","7月","8月","9月","10月","11月","12月","1月","2月","3月"]
[null,"実践形式Aの場合\n例）毎朝",null,null,null,null,null,null,1,1,null,null,null,null,null,null,2]
[null,"実践形式Bの場合\n例）毎朝",null,null,null,null,null,null,1,null,1,1,null,1,null,null,4]
[null,"朝　日",null,null,null,null,null,null,null,null,null,null,null,null,null,null,{"$f":"SUM(D27:O27)","v":0}]
[null,"毎　日",null,null,null,null,null,null,null,null,null,null,null,null,null,null,{"$f":"SUM(D28:O28)","v":0}]
[null,"読　売",null,null,null,null,null,null,null,null,null,null,null,null,null,null,0]
[null,"日　経",null,null,null,null,null,null,null,null,null,null,null,null,null,null,0]
["　","産　経",null,null,null,null,null,null,null,null,null,null,null,null,null,null,0]
[null,"紀伊民報",null,null,null,null,null,null,null,null,null,null,null,null,null,null,0]
[null,null,null,null,null,null,null,null,null,null,null,null,null,null,null,null,0]
[null,null,null,null,null,null,null,null,null,null,null,null,null,null,null,null,0]
[null,null,null,null,null,null,null,null,null,null,null,null,null,null,null,null,0]
[null,null,null,null,null,null,null,null,null,null,null,null,null,null,null,null,0]
[null,null,null,null,null,null,null,null,null,null,null,null,null,null,null,null,0]
[null,null,null,null,null,null,null,null,null,null,null,null,null,null,null,null,0]
[]
[null,"※地域によっては上記新聞すべてを配達できない場合があります。その際はご連絡いたします"]
[]
["《その他要望》    ※記者派遣（オリエンテーション）、新聞社見学等希望があればご記入ください。"]

{"sheet":"31岡山","index":30,"n_rows":41,"n_cols":18,"rows_kept":41,"cut":false,"hidden":false,"merged":[[21,1,22,2],[24,1,24,2],[25,1,25,2],[21,3,22,15],[2,16,2,17],[3,3,3,15],[3,16,3,17],[5,4,5,12],[5,13,5,15],[6,4,6,5],[6,6,6,10],[6,11,6,12],[6,13,6,16],[7,4,7,15],[1,0,1,17],[5,1,5,3],[6,1,6,3],[7,1,7,3],[41,1,45,16],[36,1,36,2],[28,1,28,2],[35,1,35,2],[31,1,31,2],[34,1,34,2],[32,1,32,2],[33,1,33,2],[29,1,29,2],[30,1,30,2],[27,1,27,2],[26,1,26,2]]}
[null,null,null,null,null,null,null,null,null,null,null,null,null,null,null,null,"学校番号：","　　　　"]
["《2026年度 年間購読計画表》"]
["【31岡山】",null,null,null,null,null,null,null,null,null,null,null,null,null,null,null,"選んでください↓"]
["学　校　名",null,null,null,null,null,null,null,null,null,null,null,null,null,null,null,"（新規校）"]
[]
[null,"実践代表者名",null,null,null,null,null,null,null,null,null,null,null,"実践者（教師）",null,null,null,"人"]
[null,"連　絡　先",null,null,"電話：",null,null,null,null,null,null,"ファクス："]
[null,"実践形式",null,null,null,null,null,null,null,null,null,null,null,null,null,null,1]
[]
[null,null,null,null,null,null,null,null,null,null,null,"※割当部数"]
[null,null,null,null,null,null,null,null,null,null,null,null,"Ａ：１銘柄につき１部を延べ２か月"]
[null,null,null,null,null,null,null,null,null,null,null,null,"Ｂ：１銘柄につき１部を延べ４か月"]
[]
["《月決め》"]
[null,"　※以下は太枠に囲まれた部分のみをご記入ください。"]
[null,"　　 割当部数に応じて、配達を希望する月に希望部数を記入してください。"]
[null,"　　 初めて実践される方は、別紙の購読パターンを参考にご記入ください。"]
[null,"　※継続校は４月以降の購読開始となります。"]
[null,"　　新規校は参加申請書の提出時期によって５月以降か９月以降の開始となります。"]
[]
[null,null,null,null,null,null,null,null,null,null,null,null,null,null,null,null,"合計"]
[null,"新聞名",null,"配達月",null,null,null,null,null,null,null,null,null,null,null,null,"\n月数"]
[]
[null,null,null,"4月","5月","6月","7月","8月","9月","10月","11月","12月","1月","2月","3月"]
[null,"実践形式Aの場合\n例）毎朝",null,null,null,null,null,null,1,1,null,null,null,null,null,null,2]
[null,"実践形式Bの場合\n例）毎朝",null,null,null,null,null,null,1,null,1,1,null,1,null,null,4]
[null,"朝　日",null,null,null,null,null,null,null,null,null,null,null,null,null,null,{"$f":"SUM(D27:O27)","v":0}]
[null,"毎　日",null,null,null,null,null,null,null,null,null,null,null,null,null,null,{"$f":"SUM(D28:O28)","v":0}]
[null,"読　売",null,null,null,null,null,null,null,null,null,null,null,null,null,null,0]
[null,"日　経",null,null,null,null,null,null,null,null,null,null,null,null,null,null,0]
["　","産　経",null,null,null,null,null,null,null,null,null,null,null,null,null,null,0]
[null,"山　陽",null,null,null,null,null,null,null,null,null,null,null,null,null,null,0]
[null,"中　国",null,null,null,null,null,null,null,null,null,null,null,null,null,null,0]
[null,null,null,null,null,null,null,null,null,null,null,null,null,null,null,null,0]
[null,null,null,null,null,null,null,null,null,null,null,null,null,null,null,null,0]
[null,null,null,null,null,null,null,null,null,null,null,null,null,null,null,null,0]
[null,null,null,null,null,null,null,null,null,null,null,null,null,null,null,null,0]
[]
[null,"※地域によっては上記新聞すべてを配達できない場合があります。その際はご連絡いたします"]
[]
["《その他要望》    ※記者派遣（オリエンテーション）、新聞社見学等希望があればご記入ください。"]

{"sheet":"32広島","index":31,"n_rows":42,"n_cols":18,"rows_kept":42,"cut":false,"hidden":false,"merged":[[1,0,1,17],[5,1,5,3],[6,1,6,3],[7,1,7,3],[27,1,27,2],[26,1,26,2],[21,1,22,2],[24,1,24,2],[25,1,25,2],[21,3,22,15],[2,16,2,17],[3,3,3,15],[3,16,3,17],[5,4,5,12],[5,13,5,15],[6,4,6,5],[6,6,6,10],[6,11,6,12],[6,13,6,16],[7,4,7,15],[37,1,37,2],[42,1,46,16],[28,1,28,2],[36,1,36,2],[31,1,31,2],[35,1,35,2],[32,1,32,2],[33,1,33,2],[34,1,34,2],[29,1,29,2],[30,1,30,2]]}
[null,null,null,null,null,null,null,null,null,null,null,null,null,null,null,null,"学校番号：","　　　　"]
["《2026年度 年間購読計画表》"]
["【32広島】",null,null,null,null,null,null,null,null,null,null,null,null,null,null,null,"選んでください↓"]
["学　校　名",null,null,null,null,null,null,null,null,null,null,null,null,null,null,null,"（新規校）"]
[]
[null,"実践代表者名",null,null,null,null,null,null,null,null,null,null,null,"実践者（教師）",null,null,null,"人"]
[null,"連　絡　先",null,null,"電話：",null,null,null,null,null,null,"ファクス："]
[null,"実践形式",null,null,null,null,null,null,null,null,null,null,null,null,null,null,1]
[]
[null,null,null,null,null,null,null,null,null,null,null,"※割当部数"]
[null,null,null,null,null,null,null,null,null,null,null,null,"Ａ：１銘柄につき１部を延べ２か月"]
[null,null,null,null,null,null,null,null,null,null,null,null,"Ｂ：１銘柄につき１部を延べ４か月"]
[]
["《月決め》"]
[null,"　※以下は太枠に囲まれた部分のみをご記入ください。"]
[null,"　　 割当部数に応じて、配達を希望する月に希望部数を記入してください。"]
[null,"　　 初めて実践される方は、別紙の購読パターンを参考にご記入ください。"]
[null,"　※継続校は４月以降の購読開始となります。"]
[null,"　　新規校は参加申請書の提出時期によって５月以降か９月以降の開始となります。"]
[]
[null,null,null,null,null,null,null,null,null,null,null,null,null,null,null,null,"合計"]
[null,"新聞名",null,"配達月",null,null,null,null,null,null,null,null,null,null,null,null,"\n月数"]
[]
[null,null,null,"4月","5月","6月","7月","8月","9月","10月","11月","12月","1月","2月","3月"]
[null,"実践形式Aの場合\n例）毎朝",null,null,null,null,null,null,1,1,null,null,null,null,null,null,2]
[null,"実践形式Bの場合\n例）毎朝",null,null,null,null,null,null,1,null,1,1,null,1,null,null,4]
[null,"朝　日",null,null,null,null,null,null,null,null,null,null,null,null,null,null,{"$f":"SUM(D27:O27)","v":0}]
[null,"毎　日",null,null,null,null,null,null,null,null,null,null,null,null,null,null,{"$f":"SUM(D28:O28)","v":0}]
[null,"読　売",null,null,null,null,null,null,null,null,null,null,null,null,null,null,0]
[null,"日　経",null,null,null,null,null,null,null,null,null,null,null,null,null,null,0]
["　","産　経",null,null,null,null,null,null,null,null,null,null,null,null,null,null,0]
[null,"日刊工業",null,null,null,null,null,null,null,null,null,null,null,null,null,null,0]
[null,"山　陽",null,null,null,null,null,null,null,null,null,null,null,null,null,null,0]
[null,"中　国",null,null,null,null,null,null,null,null,null,null,null,null,null,null,0]
[null,null,null,null,null,null,null,null,null,null,null,null,null,null,null,null,0]
[null,null,null,null,null,null,null,null,null,null,null,null,null,null,null,null,0]
[null,null,null,null,null,null,null,null,null,null,null,null,null,null,null,null,0]
[null,null,null,null,null,null,null,null,null,null,null,null,null,null,null,null,0]
[]
[null,"※地域によっては上記新聞すべてを配達できない場合があります。その際はご連絡いたします"]
[]
["《その他要望》    ※記者派遣（オリエンテーション）、新聞社見学等希望があればご記入ください。"]

{"sheet":"33鳥取","index":32,"n_rows":42,"n_cols":18,"rows_kept":42,"cut":false,"hidden":false,"merged":[[6,4,6,5],[6,6,6,10],[6,11,6,12],[6,13,6,16],[7,4,7,15],[2,16,2,17],[3,3,3,15],[3,16,3,17],[5,4,5,12],[5,13,5,15],[32,1,32,2],[33,1,33,2],[34,1,34,2],[29,1,29,2],[30,1,30,2],[42,1,46,16],[37,1,37,2],[1,0,1,17],[5,1,5,3],[6,1,6,3],[7,1,7,3],[27,1,27,2],[21,3,22,15],[26,1,26,2],[21,1,22,2],[24,1,24,2],[25,1,25,2],[28,1,28,2],[36,1,36,2],[31,1,31,2],[35,1,35,2]]}
[null,null,null,null,null,null,null,null,null,null,null,null,null,null,null,null,"学校番号：","　　　　"]
["《2026年度 年間購読計画表》"]
["【33鳥取】",null,null,null,null,null,null,null,null,null,null,null,null,null,null,null,"選んでください↓"]
["学　校　名",null,null,null,null,null,null,null,null,null,null,null,null,null,null,null,"（新規校）"]
[]
[null,"実践代表者名",null,null,null,null,null,null,null,null,null,null,null,"実践者（教師）",null,null,null,"人"]
[null,"連　絡　先",null,null,"電話：",null,null,null,null,null,null,"ファクス："]
[null,"実践形式",null,null,null,null,null,null,null,null,null,null,null,null,null,null,1]
[]
[null,null,null,null,null,null,null,null,null,null,null,"※割当部数"]
[null,null,null,null,null,null,null,null,null,null,null,null,"Ａ：１銘柄につき１部を延べ２か月"]
[null,null,null,null,null,null,null,null,null,null,null,null,"Ｂ：１銘柄につき１部を延べ４か月"]
[]
["《月決め》"]
[null,"　※以下は太枠に囲まれた部分のみをご記入ください。"]
[null,"　　 割当部数に応じて、配達を希望する月に希望部数を記入してください。"]
[null,"　　 初めて実践される方は、別紙の購読パターンを参考にご記入ください。"]
[null,"　※継続校は４月以降の購読開始となります。"]
[null,"　　新規校は参加申請書の提出時期によって５月以降か９月以降の開始となります。"]
[]
[null,null,null,null,null,null,null,null,null,null,null,null,null,null,null,null,"合計"]
[null,"新聞名",null,"配達月",null,null,null,null,null,null,null,null,null,null,null,null,"\n月数"]
[]
[null,null,null,"4月","5月","6月","7月","8月","9月","10月","11月","12月","1月","2月","3月"]
[null,"実践形式Aの場合\n例）毎朝",null,null,null,null,null,null,1,1,null,null,null,null,null,null,2]
[null,"実践形式Bの場合\n例）毎朝",null,null,null,null,null,null,1,null,1,1,null,1,null,null,4]
[null,"朝　日",null,null,null,null,null,null,null,null,null,null,null,null,null,null,{"$f":"SUM(D27:O27)","v":0}]
[null,"毎　日",null,null,null,null,null,null,null,null,null,null,null,null,null,null,{"$f":"SUM(D28:O28)","v":0}]
[null,"読　売",null,null,null,null,null,null,null,null,null,null,null,null,null,null,0]
[null,"日　経",null,null,null,null,null,null,null,null,null,null,null,null,null,null,0]
["　","中　国",null,null,null,null,null,null,null,null,null,null,null,null,null,null,0]
[null,"日本海",null,null,null,null,null,null,null,null,null,null,null,null,null,null,0]
[null,"山陰中央",null,null,null,null,null,null,null,null,null,null,null,null,null,null,0]
[null,null,null,null,null,null,null,null,null,null,null,null,null,null,null,null,0]
[null,null,null,null,null,null,null,null,null,null,null,null,null,null,null,null,0]
[null,null,null,null,null,null,null,null,null,null,null,null,null,null,null,null,0]
[null,null,null,null,null,null,null,null,null,null,null,null,null,null,null,null,0]
[null,null,null,null,null,null,null,null,null,null,null,null,null,null,null,null,0]
[]
[null,"※地域によっては上記新聞すべてを配達できない場合があります。その際はご連絡いたします"]
[]
["《その他要望》    ※記者派遣（オリエンテーション）、新聞社見学等希望があればご記入ください。"]

{"sheet":"34島根","index":33,"n_rows":42,"n_cols":18,"rows_kept":42,"cut":false,"hidden":false,"merged":[[6,4,6,5],[6,6,6,10],[6,11,6,12],[6,13,6,16],[7,4,7,15],[2,16,2,17],[3,3,3,15],[3,16,3,17],[5,4,5,12],[5,13,5,15],[32,1,32,2],[33,1,33,2],[34,1,34,2],[29,1,29,2],[30,1,30,2],[42,1,46,16],[37,1,37,2],[1,0,1,17],[5,1,5,3],[6,1,6,3],[7,1,7,3],[27,1,27,2],[21,3,22,15],[26,1,26,2],[21,1,22,2],[24,1,24,2],[25,1,25,2],[28,1,28,2],[36,1,36,2],[31,1,31,2],[35,1,35,2]]}
[null,null,null,null,null,null,null,null,null,null,null,null,null,null,null,null,"学校番号：","　　　　"]
["《2026年度 年間購読計画表》"]
["【34島根】",null,null,null,null,null,null,null,null,null,null,null,null,null,null,null,"選んでください↓"]
["学　校　名",null,null,null,null,null,null,null,null,null,null,null,null,null,null,null,"（新規校）"]
[]
[null,"実践代表者名",null,null,null,null,null,null,null,null,null,null,null,"実践者（教師）",null,null,null,"人"]
[null,"連　絡　先",null,null,"電話：",null,null,null,null,null,null,"ファクス："]
[null,"実践形式",null,null,null,null,null,null,null,null,null,null,null,null,null,null,1]
[]
[null,null,null,null,null,null,null,null,null,null,null,"※割当部数"]
[null,null,null,null,null,null,null,null,null,null,null,null,"Ａ：１銘柄につき１部を延べ２か月"]
[null,null,null,null,null,null,null,null,null,null,null,null,"Ｂ：１銘柄につき１部を延べ４か月"]
[]
["《月決め》"]
[null,"　※以下は太枠に囲まれた部分のみをご記入ください。"]
[null,"　　 割当部数に応じて、配達を希望する月に希望部数を記入してください。"]
[null,"　　 初めて実践される方は、別紙の購読パターンを参考にご記入ください。"]
[null,"　※継続校は４月以降の購読開始となります。"]
[null,"　　新規校は参加申請書の提出時期によって５月以降か９月以降の開始となります。"]
[]
[null,null,null,null,null,null,null,null,null,null,null,null,null,null,null,null,"合計"]
[null,"新聞名",null,"配達月",null,null,null,null,null,null,null,null,null,null,null,null,"\n月数"]
[]
[null,null,null,"4月","5月","6月","7月","8月","9月","10月","11月","12月","1月","2月","3月"]
[null,"実践形式Aの場合\n例）毎朝",null,null,null,null,null,null,1,1,null,null,null,null,null,null,2]
[null,"実践形式Bの場合\n例）毎朝",null,null,null,null,null,null,1,null,1,1,null,1,null,null,4]
[null,"朝　日",null,null,null,null,null,null,null,null,null,null,null,null,null,null,{"$f":"SUM(D27:O27)","v":0}]
[null,"毎　日",null,null,null,null,null,null,null,null,null,null,null,null,null,null,{"$f":"SUM(D28:O28)","v":0}]
[null,"読　売",null,null,null,null,null,null,null,null,null,null,null,null,null,null,0]
[null,"日　経",null,null,null,null,null,null,null,null,null,null,null,null,null,null,0]
["　","中　国",null,null,null,null,null,null,null,null,null,null,null,null,null,null,0]
[null,"日本海",null,null,null,null,null,null,null,null,null,null,null,null,null,null,0]
[null,"山陰中央",null,null,null,null,null,null,null,null,null,null,null,null,null,null,0]
[null,null,null,null,null,null,null,null,null,null,null,null,null,null,null,null,0]
[null,null,null,null,null,null,null,null,null,null,null,null,null,null,null,null,0]
[null,null,null,null,null,null,null,null,null,null,null,null,null,null,null,null,0]
[null,null,null,null,null,null,null,null,null,null,null,null,null,null,null,null,0]
[null,null,null,null,null,null,null,null,null,null,null,null,null,null,null,null,0]
[]
[null,"※地域によっては上記新聞すべてを配達できない場合があります。その際はご連絡いたします"]
[]
["《その他要望》    ※記者派遣（オリエンテーション）、新聞社見学等希望があればご記入ください。"]

{"sheet":"35山口","index":34,"n_rows":42,"n_cols":18,"rows_kept":42,"cut":false,"hidden":false,"merged":[[1,0,1,17],[5,1,5,3],[6,1,6,3],[7,1,7,3],[27,1,27,2],[26,1,26,2],[21,1,22,2],[24,1,24,2],[25,1,25,2],[21,3,22,15],[2,16,2,17],[3,3,3,15],[3,16,3,17],[5,4,5,12],[5,13,5,15],[6,4,6,5],[6,6,6,10],[6,11,6,12],[6,13,6,16],[7,4,7,15],[37,1,37,2],[42,1,46,16],[28,1,28,2],[36,1,36,2],[31,1,31,2],[35,1,35,2],[32,1,32,2],[33,1,33,2],[34,1,34,2],[29,1,29,2],[30,1,30,2]]}
[null,null,null,null,null,null,null,null,null,null,null,null,null,null,null,null,"学校番号：","　　　　"]
["《2026年度 年間購読計画表》"]
["【35山口】",null,null,null,null,null,null,null,null,null,null,null,null,null,null,null,"選んでください↓"]
["学　校　名",null,null,null,null,null,null,null,null,null,null,null,null,null,null,null,"（新規校）"]
[]
[null,"実践代表者名",null,null,null,null,null,null,null,null,null,null,null,"実践者（教師）",null,null,null,"人"]
[null,"連　絡　先",null,null,"電話：",null,null,null,null,null,null,"ファクス："]
[null,"実践形式",null,null,null,null,null,null,null,null,null,null,null,null,null,null,1]
[]
[null,null,null,null,null,null,null,null,null,null,null,"※割当部数"]
[null,null,null,null,null,null,null,null,null,null,null,null,"Ａ：１銘柄につき１部を延べ２か月"]
[null,null,null,null,null,null,null,null,null,null,null,null,"Ｂ：１銘柄につき１部を延べ４か月"]
[]
["《月決め》"]
[null,"　※以下は太枠に囲まれた部分のみをご記入ください。"]
[null,"　　 割当部数に応じて、配達を希望する月に希望部数を記入してください。"]
[null,"　　 初めて実践される方は、別紙の購読パターンを参考にご記入ください。"]
[null,"　※継続校は４月以降の購読開始となります。"]
[null,"　　新規校は参加申請書の提出時期によって５月以降か９月以降の開始となります。"]
[]
[null,null,null,null,null,null,null,null,null,null,null,null,null,null,null,null,"合計"]
[null,"新聞名",null,"配達月",null,null,null,null,null,null,null,null,null,null,null,null,"\n月数"]
[]
[null,null,null,"4月","5月","6月","7月","8月","9月","10月","11月","12月","1月","2月","3月"]
[null,"実践形式Aの場合\n例）毎朝",null,null,null,null,null,null,1,1,null,null,null,null,null,null,2]
[null,"実践形式Bの場合\n例）毎朝",null,null,null,null,null,null,1,null,1,1,null,1,null,null,4]
[null,"朝　日",null,null,null,null,null,null,null,null,null,null,null,null,null,null,{"$f":"SUM(D27:O27)","v":0}]
[null,"毎　日",null,null,null,null,null,null,null,null,null,null,null,null,null,null,{"$f":"SUM(D28:O28)","v":0}]
[null,"読　売",null,null,null,null,null,null,null,null,null,null,null,null,null,null,0]
[null,"日　経",null,null,null,null,null,null,null,null,null,null,null,null,null,null,0]
["　","産　経",null,null,null,null,null,null,null,null,null,null,null,null,null,null,0]
[null,"中　国",null,null,null,null,null,null,null,null,null,null,null,null,null,null,0]
[null,"山　口",null,null,null,null,null,null,null,null,null,null,null,null,null,null,0]
[null,"宇部日報",null,null,null,null,null,null,null,null,null,null,null,null,null,null,0]
[null,null,null,null,null,null,null,null,null,null,null,null,null,null,null,null,0]
[null,null,null,null,null,null,null,null,null,null,null,null,null,null,null,null,0]
[null,null,null,null,null,null,null,null,null,null,null,null,null,null,null,null,0]
[null,null,null,null,null,null,null,null,null,null,null,null,null,null,null,null,0]
[]
[null,"※地域によっては上記新聞すべてを配達できない場合があります。その際はご連絡いたします"]
[]
["《その他要望》    ※記者派遣（オリエンテーション）、新聞社見学等希望があればご記入ください。"]

{"sheet":"36徳島","index":35,"n_rows":42,"n_cols":18,"rows_kept":42,"cut":false,"hidden":false,"merged":[[1,0,1,17],[5,1,5,3],[6,1,6,3],[7,1,7,3],[27,1,27,2],[26,1,26,2],[21,1,22,2],[24,1,24,2],[25,1,25,2],[21,3,22,15],[2,16,2,17],[3,3,3,15],[3,16,3,17],[5,4,5,12],[5,13,5,15],[6,4,6,5],[6,6,6,10],[6,11,6,12],[6,13,6,16],[7,4,7,15],[37,1,37,2],[42,1,46,16],[28,1,28,2],[36,1,36,2],[31,1,31,2],[35,1,35,2],[32,1,32,2],[33,1,33,2],[34,1,34,2],[29,1,29,2],[30,1,30,2]]}
[null,null,null,null,null,null,null,null,null,null,null,null,null,null,null,null,"学校番号：","　　　　"]
["《2026年度 年間購読計画表》"]
["【36徳島】",null,null,null,null,null,null,null,null,null,null,null,null,null,null,null,"選んでください↓"]
["学　校　名",null,null,null,null,null,null,null,null,null,null,null,null,null,null,null,"（新規校）"]
[]
[null,"実践代表者名",null,null,null,null,null,null,null,null,null,null,null,"実践者（教師）",null,null,null,"人"]
[null,"連　絡　先",null,null,"電話：",null,null,null,null,null,null,"ファクス："]
[null,"実践形式",null,null,null,null,null,null,null,null,null,null,null,null,null,null,1]
[]
[null,null,null,null,null,null,null,null,null,null,null,"※割当部数"]
[null,null,null,null,null,null,null,null,null,null,null,null,"Ａ：１銘柄につき１部を延べ２か月"]
[null,null,null,null,null,null,null,null,null,null,null,null,"Ｂ：１銘柄につき１部を延べ４か月"]
[]
["《月決め》"]
[null,"　※以下は太枠に囲まれた部分のみをご記入ください。"]
[null,"　　 割当部数に応じて、配達を希望する月に希望部数を記入してください。"]
[null,"　　 初めて実践される方は、別紙の購読パターンを参考にご記入ください。"]
[null,"　※継続校は４月以降の購読開始となります。"]
[null,"　　新規校は参加申請書の提出時期によって５月以降か９月以降の開始となります。"]
[]
[null,null,null,null,null,null,null,null,null,null,null,null,null,null,null,null,"合計"]
[null,"新聞名",null,"配達月",null,null,null,null,null,null,null,null,null,null,null,null,"\n月数"]
[]
[null,null,null,"4月","5月","6月","7月","8月","9月","10月","11月","12月","1月","2月","3月"]
[null,"実践形式Aの場合\n例）毎朝",null,null,null,null,null,null,1,1,null,null,null,null,null,null,2]
[null,"実践形式Bの場合\n例）毎朝",null,null,null,null,null,null,1,null,1,1,null,1,null,null,4]
[null,"朝　日",null,null,null,null,null,null,null,null,null,null,null,null,null,null,{"$f":"SUM(D27:O27)","v":0}]
[null,"毎　日",null,null,null,null,null,null,null,null,null,null,null,null,null,null,{"$f":"SUM(D28:O28)","v":0}]
[null,"読　売",null,null,null,null,null,null,null,null,null,null,null,null,null,null,0]
[null,"日　経",null,null,null,null,null,null,null,null,null,null,null,null,null,null,0]
["　","徳　島",null,null,null,null,null,null,null,null,null,null,null,null,null,null,0]
[null,null,null,null,null,null,null,null,null,null,null,null,null,null,null,null,0]
[null,null,null,null,null,null,null,null,null,null,null,null,null,null,null,null,0]
[null,null,null,null,null,null,null,null,null,null,null,null,null,null,null,null,0]
[null,null,null,null,null,null,null,null,null,null,null,null,null,null,null,null,0]
[null,null,null,null,null,null,null,null,null,null,null,null,null,null,null,null,0]
[null,null,null,null,null,null,null,null,null,null,null,null,null,null,null,null,0]
[null,null,null,null,null,null,null,null,null,null,null,null,null,null,null,null,0]
[]
[null,"※地域によっては上記新聞すべてを配達できない場合があります。その際はご連絡いたします"]
[]
["《その他要望》    ※記者派遣（オリエンテーション）、新聞社見学等希望があればご記入ください。"]

{"sheet":"37香川","index":36,"n_rows":42,"n_cols":18,"rows_kept":42,"cut":false,"hidden":false,"merged":[[6,4,6,5],[6,6,6,10],[6,11,6,12],[6,13,6,16],[7,4,7,15],[2,16,2,17],[3,3,3,15],[3,16,3,17],[5,4,5,12],[5,13,5,15],[31,1,31,2],[32,1,32,2],[33,1,33,2],[29,1,29,2],[30,1,30,2],[42,1,46,16],[36,1,36,2],[37,1,37,2],[1,0,1,17],[5,1,5,3],[6,1,6,3],[7,1,7,3],[27,1,27,2],[21,3,22,15],[26,1,26,2],[21,1,22,2],[24,1,24,2],[25,1,25,2],[28,1,28,2],[35,1,35,2],[34,1,34,2]]}
[null,null,null,null,null,null,null,null,null,null,null,null,null,null,null,null,"学校番号：","　　　　"]
["《2026年度 年間購読計画表》"]
["【37香川】",null,null,null,null,null,null,null,null,null,null,null,null,null,null,null,"選んでください↓"]
["学　校　名",null,null,null,null,null,null,null,null,null,null,null,null,null,null,null,"（新規校）"]
[]
[null,"実践代表者名",null,null,null,null,null,null,null,null,null,null,null,"実践者（教師）",null,null,null,"人"]
[null,"連　絡　先",null,null,"電話：",null,null,null,null,null,null,"ファクス："]
[null,"実践形式",null,null,null,null,null,null,null,null,null,null,null,null,null,null,1]
[]
[null,null,null,null,null,null,null,null,null,null,null,"※割当部数"]
[null,null,null,null,null,null,null,null,null,null,null,null,"Ａ：１銘柄につき１部を延べ２か月"]
[null,null,null,null,null,null,null,null,null,null,null,null,"Ｂ：１銘柄につき１部を延べ４か月"]
[]
["《月決め》"]
[null,"　※以下は太枠に囲まれた部分のみをご記入ください。"]
[null,"　　 割当部数に応じて、配達を希望する月に希望部数を記入してください。"]
[null,"　　 初めて実践される方は、別紙の購読パターンを参考にご記入ください。"]
[null,"　※継続校は４月以降の購読開始となります。"]
[null,"　　新規校は参加申請書の提出時期によって５月以降か９月以降の開始となります。"]
[]
[null,null,null,null,null,null,null,null,null,null,null,null,null,null,null,null,"合計"]
[null,"新聞名",null,"配達月",null,null,null,null,null,null,null,null,null,null,null,null,"\n月数"]
[]
[null,null,null,"4月","5月","6月","7月","8月","9月","10月","11月","12月","1月","2月","3月"]
[null,"実践形式Aの場合\n例）毎朝",null,null,null,null,null,null,1,1,null,null,null,null,null,null,2]
[null,"実践形式Bの場合\n例）毎朝",null,null,null,null,null,null,1,null,1,1,null,1,null,null,4]
[null,"朝　日",null,null,null,null,null,null,null,null,null,null,null,null,null,null,{"$f":"SUM(D27:O27)","v":0}]
[null,"毎　日",null,null,null,null,null,null,null,null,null,null,null,null,null,null,{"$f":"SUM(D28:O28)","v":0}]
[null,"読　売",null,null,null,null,null,null,null,null,null,null,null,null,null,null,0]
[null,"日　経",null,null,null,null,null,null,null,null,null,null,null,null,null,null,0]
["　","産　経",null,null,null,null,null,null,null,null,null,null,null,null,null,null,0]
[null,"四　国",null,null,null,null,null,null,null,null,null,null,null,null,null,null,0]
[null,null,null,null,null,null,null,null,null,null,null,null,null,null,null,null,0]
[null,null,null,null,null,null,null,null,null,null,null,null,null,null,null,null,0]
[null,null,null,null,null,null,null,null,null,null,null,null,null,null,null,null,0]
[null,null,null,null,null,null,null,null,null,null,null,null,null,null,null,null,0]
[null,null,null,null,null,null,null,null,null,null,null,null,null,null,null,null,0]
[null,null,null,null,null,null,null,null,null,null,null,null,null,null,null,null,0]
[]
[null,"※地域によっては上記新聞すべてを配達できない場合があります。その際はご連絡いたします"]
[]
["《その他要望》    ※記者派遣（オリエンテーション）、新聞社見学等希望があればご記入ください。"]

{"sheet":"38愛媛","index":37,"n_rows":42,"n_cols":18,"rows_kept":42,"cut":false,"hidden":false,"merged":[[1,0,1,17],[5,1,5,3],[6,1,6,3],[7,1,7,3],[27,1,27,2],[26,1,26,2],[21,1,22,2],[24,1,24,2],[25,1,25,2],[21,3,22,15],[2,16,2,17],[3,3,3,15],[3,16,3,17],[5,4,5,12],[5,13,5,15],[6,4,6,5],[6,6,6,10],[6,11,6,12],[6,13,6,16],[7,4,7,15],[37,1,37,2],[42,1,46,16],[28,1,28,2],[36,1,36,2],[31,1,31,2],[35,1,35,2],[32,1,32,2],[33,1,33,2],[34,1,34,2],[29,1,29,2],[30,1,30,2]]}
[null,null,null,null,null,null,null,null,null,null,null,null,null,null,null,null,"学校番号：","　　　　"]
["《2026年度 年間購読計画表》"]
["【38愛媛】",null,null,null,null,null,null,null,null,null,null,null,null,null,null,null,"選んでください↓"]
["学　校　名",null,null,null,null,null,null,null,null,null,null,null,null,null,null,null,"（新規校）"]
[]
[null,"実践代表者名",null,null,null,null,null,null,null,null,null,null,null,"実践者（教師）",null,null,null,"人"]
[null,"連　絡　先",null,null,"電話：",null,null,null,null,null,null,"ファクス："]
[null,"実践形式",null,null,null,null,null,null,null,null,null,null,null,null,null,null,1]
[]
[null,null,null,null,null,null,null,null,null,null,null,"※割当部数"]
[null,null,null,null,null,null,null,null,null,null,null,null,"Ａ：１銘柄につき１部を延べ２か月"]
[null,null,null,null,null,null,null,null,null,null,null,null,"Ｂ：１銘柄につき１部を延べ４か月"]
[]
["《月決め》"]
[null,"　※以下は太枠に囲まれた部分のみをご記入ください。"]
[null,"　　 割当部数に応じて、配達を希望する月に希望部数を記入してください。"]
[null,"　　 初めて実践される方は、別紙の購読パターンを参考にご記入ください。"]
[null,"　※継続校は４月以降の購読開始となります。"]
[null,"　　新規校は参加申請書の提出時期によって５月以降か９月以降の開始となります。"]
[]
[null,null,null,null,null,null,null,null,null,null,null,null,null,null,null,null,"合計"]
[null,"新聞名",null,"配達月",null,null,null,null,null,null,null,null,null,null,null,null,"\n月数"]
[]
[null,null,null,"4月","5月","6月","7月","8月","9月","10月","11月","12月","1月","2月","3月"]
[null,"実践形式Aの場合\n例）毎朝",null,null,null,null,null,null,1,1,null,null,null,null,null,null,2]
[null,"実践形式Bの場合\n例）毎朝",null,null,null,null,null,null,1,null,1,1,null,1,null,null,4]
[null,"朝　日",null,null,null,null,null,null,null,null,null,null,null,null,null,null,{"$f":"SUM(D27:O27)","v":0}]
[null,"毎　日",null,null,null,null,null,null,null,null,null,null,null,null,null,null,{"$f":"SUM(D28:O28)","v":0}]
[null,"読　売",null,null,null,null,null,null,null,null,null,null,null,null,null,null,0]
[null,"日　経",null,null,null,null,null,null,null,null,null,null,null,null,null,null,0]
["　","産　経",null,null,null,null,null,null,null,null,null,null,null,null,null,null,0]
[null,"愛　媛",null,null,null,null,null,null,null,null,null,null,null,null,null,null,0]
[null,null,null,null,null,null,null,null,null,null,null,null,null,null,null,null,0]
[null,null,null,null,null,null,null,null,null,null,null,null,null,null,null,null,0]
[null,null,null,null,null,null,null,null,null,null,null,null,null,null,null,null,0]
[null,null,null,null,null,null,null,null,null,null,null,null,null,null,null,null,0]
[null,null,null,null,null,null,null,null,null,null,null,null,null,null,null,null,0]
[null,null,null,null,null,null,null,null,null,null,null,null,null,null,null,null,0]
[]
[null,"※地域によっては上記新聞すべてを配達できない場合があります。その際はご連絡いたします"]
[]
["《その他要望》    ※記者派遣（オリエンテーション）、新聞社見学等希望があればご記入ください。"]

{"sheet":"39高知","index":38,"n_rows":42,"n_cols":18,"rows_kept":42,"cut":false,"hidden":false,"merged":[[6,4,6,5],[6,6,6,10],[6,11,6,12],[6,13,6,16],[7,4,7,15],[2,16,2,17],[3,3,3,15],[3,16,3,17],[5,4,5,12],[5,13,5,15],[32,1,32,2],[33,1,33,2],[34,1,34,2],[29,1,29,2],[30,1,30,2],[42,1,46,16],[37,1,37,2],[1,0,1,17],[5,1,5,3],[6,1,6,3],[7,1,7,3],[27,1,27,2],[21,3,22,15],[26,1,26,2],[21,1,22,2],[24,1,24,2],[25,1,25,2],[28,1,28,2],[36,1,36,2],[31,1,31,2],[35,1,35,2]]}
[null,null,null,null,null,null,null,null,null,null,null,null,null,null,null,null,"学校番号：","　　　　"]
["《2026年度 年間購読計画表》"]
["【39高知】",null,null,null,null,null,null,null,null,null,null,null,null,null,null,null,"選んでください↓"]
["学　校　名",null,null,null,null,null,null,null,null,null,null,null,null,null,null,null,"（新規校）"]
[]
[null,"実践代表者名",null,null,null,null,null,null,null,null,null,null,null,"実践者（教師）",null,null,null,"人"]
[null,"連　絡　先",null,null,"電話：",null,null,null,null,null,null,"ファクス："]
[null,"実践形式",null,null,null,null,null,null,null,null,null,null,null,null,null,null,1]
[]
[null,null,null,null,null,null,null,null,null,null,null,"※割当部数"]
[null,null,null,null,null,null,null,null,null,null,null,null,"Ａ：１銘柄につき１部を延べ２か月"]
[null,null,null,null,null,null,null,null,null,null,null,null,"Ｂ：１銘柄につき１部を延べ４か月"]
[]
["《月決め》"]
[null,"　※以下は太枠に囲まれた部分のみをご記入ください。"]
[null,"　　 割当部数に応じて、配達を希望する月に希望部数を記入してください。"]
[null,"　　 初めて実践される方は、別紙の購読パターンを参考にご記入ください。"]
[null,"　※継続校は４月以降の購読開始となります。"]
[null,"　　新規校は参加申請書の提出時期によって５月以降か９月以降の開始となります。"]
[]
[null,null,null,null,null,null,null,null,null,null,null,null,null,null,null,null,"合計"]
[null,"新聞名",null,"配達月",null,null,null,null,null,null,null,null,null,null,null,null,"\n月数"]
[]
[null,null,null,"4月","5月","6月","7月","8月","9月","10月","11月","12月","1月","2月","3月"]
[null,"実践形式Aの場合\n例）毎朝",null,null,null,null,null,null,1,1,null,null,null,null,null,null,2]
[null,"実践形式Bの場合\n例）毎朝",null,null,null,null,null,null,1,null,1,1,null,1,null,null,4]
[null,"朝　日",null,null,null,null,null,null,null,null,null,null,null,null,null,null,{"$f":"SUM(D27:O27)","v":0}]
[null,"毎　日",null,null,null,null,null,null,null,null,null,null,null,null,null,null,{"$f":"SUM(D28:O28)","v":0}]
[null,"読　売",null,null,null,null,null,null,null,null,null,null,null,null,null,null,0]
[null,"日　経",null,null,null,null,null,null,null,null,null,null,null,null,null,null,0]
["　","高　知",null,null,null,null,null,null,null,null,null,null,null,null,null,null,0]
[null,null,null,null,null,null,null,null,null,null,null,null,null,null,null,null,0]
[null,null,null,null,null,null,null,null,null,null,null,null,null,null,null,null,0]
[null,null,null,null,null,null,null,null,null,null,null,null,null,null,null,null,0]
[null,null,null,null,null,null,null,null,null,null,null,null,null,null,null,null,0]
[null,null,null,null,null,null,null,null,null,null,null,null,null,null,null,null,0]
[null,null,null,null,null,null,null,null,null,null,null,null,null,null,null,null,0]
[null,null,null,null,null,null,null,null,null,null,null,null,null,null,null,null,0]
[]
[null,"※地域によっては上記新聞すべてを配達できない場合があります。その際はご連絡いたします"]
[]
["《その他要望》    ※記者派遣（オリエンテーション）、新聞社見学等希望があればご記入ください。"]

{"sheet":"40福岡","index":39,"n_rows":42,"n_cols":18,"rows_kept":42,"cut":false,"hidden":false,"merged":[[6,4,6,5],[6,6,6,10],[6,11,6,12],[6,13,6,16],[7,4,7,15],[2,16,2,17],[3,3,3,15],[3,16,3,17],[5,4,5,12],[5,13,5,15],[32,1,32,2],[33,1,33,2],[34,1,34,2],[29,1,29,2],[30,1,30,2],[42,1,46,16],[37,1,37,2],[1,0,1,17],[5,1,5,3],[6,1,6,3],[7,1,7,3],[27,1,27,2],[21,3,22,15],[26,1,26,2],[21,1,22,2],[24,1,24,2],[25,1,25,2],[28,1,28,2],[36,1,36,2],[31,1,31,2],[35,1,35,2]]}
[null,null,null,null,null,null,null,null,null,null,null,null,null,null,null,null,"学校番号：","　　　　"]
["《2026年度 年間購読計画表》"]
["【40福岡】",null,null,null,null,null,null,null,null,null,null,null,null,null,null,null,"選んでください↓"]
["学　校　名",null,null,null,null,null,null,null,null,null,null,null,null,null,null,null,"（新規校）"]
[]
[null,"実践代表者名",null,null,null,null,null,null,null,null,null,null,null,"実践者（教師）",null,null,null,"人"]
[null,"連　絡　先",null,null,"電話：",null,null,null,null,null,null,"ファクス："]
[null,"実践形式",null,null,null,null,null,null,null,null,null,null,null,null,null,null,1]
[]
[null,null,null,null,null,null,null,null,null,null,null,"※割当部数"]
[null,null,null,null,null,null,null,null,null,null,null,null,"Ａ：１銘柄につき１部を延べ２か月"]
[null,null,null,null,null,null,null,null,null,null,null,null,"Ｂ：１銘柄につき１部を延べ４か月"]
[]
["《月決め》"]
[null,"　※以下は太枠に囲まれた部分のみをご記入ください。"]
[null,"　　 割当部数に応じて、配達を希望する月に希望部数を記入してください。"]
[null,"　　 初めて実践される方は、別紙の購読パターンを参考にご記入ください。"]
[null,"　※継続校は４月以降の購読開始となります。"]
[null,"　　新規校は参加申請書の提出時期によって５月以降か９月以降の開始となります。"]
[]
[null,null,null,null,null,null,null,null,null,null,null,null,null,null,null,null,"合計"]
[null,"新聞名",null,"配達月",null,null,null,null,null,null,null,null,null,null,null,null,"\n月数"]
[]
[null,null,null,"4月","5月","6月","7月","8月","9月","10月","11月","12月","1月","2月","3月"]
[null,"実践形式Aの場合\n例）毎朝",null,null,null,null,null,null,1,1,null,null,null,null,null,null,2]
[null,"実践形式Bの場合\n例）毎朝",null,null,null,null,null,null,1,null,1,1,null,1,null,null,4]
[null,"朝　日",null,null,null,null,null,null,null,null,null,null,null,null,null,null,{"$f":"SUM(D27:O27)","v":0}]
[null,"毎　日",null,null,null,null,null,null,null,null,null,null,null,null,null,null,{"$f":"SUM(D28:O28)","v":0}]
[null,"読　売",null,null,null,null,null,null,null,null,null,null,null,null,null,null,0]
[null,"日　経",null,null,null,null,null,null,null,null,null,null,null,null,null,null,0]
["　","産　経",null,null,null,null,null,null,null,null,null,null,null,null,null,null,0]
[null,"西日本",null,null,null,null,null,null,null,null,null,null,null,null,null,null,0]
[null,null,null,null,null,null,null,null,null,null,null,null,null,null,null,null,0]
[null,null,null,null,null,null,null,null,null,null,null,null,null,null,null,null,0]
[null,null,null,null,null,null,null,null,null,null,null,null,null,null,null,null,0]
[null,null,null,null,null,null,null,null,null,null,null,null,null,null,null,null,0]
[null,null,null,null,null,null,null,null,null,null,null,null,null,null,null,null,0]
[null,null,null,null,null,null,null,null,null,null,null,null,null,null,null,null,0]
[]
[null,"※地域によっては上記新聞すべてを配達できない場合があります。その際はご連絡いたします"]
[]
["《その他要望》    ※記者派遣（オリエンテーション）、新聞社見学等希望があればご記入ください。"]

{"sheet":"41佐賀","index":40,"n_rows":42,"n_cols":18,"rows_kept":42,"cut":false,"hidden":false,"merged":[[1,0,1,17],[5,1,5,3],[6,1,6,3],[7,1,7,3],[27,1,27,2],[26,1,26,2],[21,1,22,2],[24,1,24,2],[25,1,25,2],[21,3,22,15],[2,16,2,17],[3,3,3,15],[3,16,3,17],[5,4,5,12],[5,13,5,15],[6,4,6,5],[6,6,6,10],[6,11,6,12],[6,13,6,16],[7,4,7,15],[37,1,37,2],[42,1,46,16],[28,1,28,2],[36,1,36,2],[31,1,31,2],[35,1,35,2],[32,1,32,2],[33,1,33,2],[34,1,34,2],[29,1,29,2],[30,1,30,2]]}
[null,null,null,null,null,null,null,null,null,null,null,null,null,null,null,null,"学校番号：","　　　　"]
["《2026年度 年間購読計画表》"]
["【41佐賀】",null,null,null,null,null,null,null,null,null,null,null,null,null,null,null,"選んでください↓"]
["学　校　名",null,null,null,null,null,null,null,null,null,null,null,null,null,null,null,"（新規校）"]
[]
[null,"実践代表者名",null,null,null,null,null,null,null,null,null,null,null,"実践者（教師）",null,null,null,"人"]
[null,"連　絡　先",null,null,"電話：",null,null,null,null,null,null,"ファクス："]
[null,"実践形式",null,null,null,null,null,null,null,null,null,null,null,null,null,null,1]
[]
[null,null,null,null,null,null,null,null,null,null,null,"※割当部数"]
[null,null,null,null,null,null,null,null,null,null,null,null,"Ａ：１銘柄につき１部を延べ２か月"]
[null,null,null,null,null,null,null,null,null,null,null,null,"Ｂ：１銘柄につき１部を延べ４か月"]
[]
["《月決め》"]
[null,"　※以下は太枠に囲まれた部分のみをご記入ください。"]
[null,"　　 割当部数に応じて、配達を希望する月に希望部数を記入してください。"]
[null,"　　 初めて実践される方は、別紙の購読パターンを参考にご記入ください。"]
[null,"　※継続校は４月以降の購読開始となります。"]
[null,"　　新規校は参加申請書の提出時期によって５月以降か９月以降の開始となります。"]
[]
[null,null,null,null,null,null,null,null,null,null,null,null,null,null,null,null,"合計"]
[null,"新聞名",null,"配達月",null,null,null,null,null,null,null,null,null,null,null,null,"\n月数"]
[]
[null,null,null,"4月","5月","6月","7月","8月","9月","10月","11月","12月","1月","2月","3月"]
[null,"実践形式Aの場合\n例）毎朝",null,null,null,null,null,null,1,1,null,null,null,null,null,null,2]
[null,"実践形式Bの場合\n例）毎朝",null,null,null,null,null,null,1,null,1,1,null,1,null,null,4]
[null,"朝　日",null,null,null,null,null,null,null,null,null,null,null,null,null,null,{"$f":"SUM(D27:O27)","v":0}]
[null,"毎　日",null,null,null,null,null,null,null,null,null,null,null,null,null,null,{"$f":"SUM(D28:O28)","v":0}]
[null,"読　売",null,null,null,null,null,null,null,null,null,null,null,null,null,null,0]
[null,"日　経",null,null,null,null,null,null,null,null,null,null,null,null,null,null,0]
["　","西日本",null,null,null,null,null,null,null,null,null,null,null,null,null,null,0]
[null,"佐　賀",null,null,null,null,null,null,null,null,null,null,null,null,null,null,0]
[null,null,null,null,null,null,null,null,null,null,null,null,null,null,null,null,0]
[null,null,null,null,null,null,null,null,null,null,null,null,null,null,null,null,0]
[null,null,null,null,null,null,null,null,null,null,null,null,null,null,null,null,0]
[null,null,null,null,null,null,null,null,null,null,null,null,null,null,null,null,0]
[null,null,null,null,null,null,null,null,null,null,null,null,null,null,null,null,0]
[null,null,null,null,null,null,null,null,null,null,null,null,null,null,null,null,0]
[]
[null,"※地域によっては上記新聞すべてを配達できない場合があります。その際はご連絡いたします"]
[]
["《その他要望》    ※記者派遣（オリエンテーション）、新聞社見学等希望があればご記入ください。"]

{"sheet":"42長崎","index":41,"n_rows":42,"n_cols":18,"rows_kept":42,"cut":false,"hidden":false,"merged":[[1,0,1,17],[5,1,5,3],[6,1,6,3],[7,1,7,3],[27,1,27,2],[26,1,26,2],[21,1,22,2],[24,1,24,2],[25,1,25,2],[21,3,22,15],[2,16,2,17],[3,3,3,15],[3,16,3,17],[5,4,5,12],[5,13,5,15],[6,4,6,5],[6,6,6,10],[6,11,6,12],[6,13,6,16],[7,4,7,15],[37,1,37,2],[42,1,46,16],[28,1,28,2],[36,1,36,2],[31,1,31,2],[35,1,35,2],[32,1,32,2],[33,1,33,2],[34,1,34,2],[29,1,29,2],[30,1,30,2]]}
[null,null,null,null,null,null,null,null,null,null,null,null,null,null,null,null,"学校番号：","　　　　"]
["《2026年度 年間購読計画表》"]
["【42長崎】",null,null,null,null,null,null,null,null,null,null,null,null,null,null,null,"選んでください↓"]
["学　校　名",null,null,null,null,null,null,null,null,null,null,null,null,null,null,null,"（新規校）"]
[]
[null,"実践代表者名",null,null,null,null,null,null,null,null,null,null,null,"実践者（教師）",null,null,null,"人"]
[null,"連　絡　先",null,null,"電話：",null,null,null,null,null,null,"ファクス："]
[null,"実践形式",null,null,null,null,null,null,null,null,null,null,null,null,null,null,1]
[]
[null,null,null,null,null,null,null,null,null,null,null,"※割当部数"]
[null,null,null,null,null,null,null,null,null,null,null,null,"Ａ：１銘柄につき１部を延べ２か月"]
[null,null,null,null,null,null,null,null,null,null,null,null,"Ｂ：１銘柄につき１部を延べ４か月"]
[]
["《月決め》"]
[null,"　※以下は太枠に囲まれた部分のみをご記入ください。"]
[null,"　　 割当部数に応じて、配達を希望する月に希望部数を記入してください。"]
[null,"　　 初めて実践される方は、別紙の購読パターンを参考にご記入ください。"]
[null,"　※継続校は４月以降の購読開始となります。"]
[null,"　　新規校は参加申請書の提出時期によって５月以降か９月以降の開始となります。"]
[]
[null,null,null,null,null,null,null,null,null,null,null,null,null,null,null,null,"合計"]
[null,"新聞名",null,"配達月",null,null,null,null,null,null,null,null,null,null,null,null,"\n月数"]
[]
[null,null,null,"4月","5月","6月","7月","8月","9月","10月","11月","12月","1月","2月","3月"]
[null,"実践形式Aの場合\n例）毎朝",null,null,null,null,null,null,1,1,null,null,null,null,null,null,2]
[null,"実践形式Bの場合\n例）毎朝",null,null,null,null,null,null,1,null,1,1,null,1,null,null,4]
[null,"朝　日",null,null,null,null,null,null,null,null,null,null,null,null,null,null,{"$f":"SUM(D27:O27)","v":0}]
[null,"毎　日",null,null,null,null,null,null,null,null,null,null,null,null,null,null,{"$f":"SUM(D28:O28)","v":0}]
[null,"読　売",null,null,null,null,null,null,null,null,null,null,null,null,null,null,0]
[null,"日　経",null,null,null,null,null,null,null,null,null,null,null,null,null,null,0]
["　","西日本",null,null,null,null,null,null,null,null,null,null,null,null,null,null,0]
[null,"長　崎",null,null,null,null,null,null,null,null,null,null,null,null,null,null,0]
[null,null,null,null,null,null,null,null,null,null,null,null,null,null,null,null,0]
[null,null,null,null,null,null,null,null,null,null,null,null,null,null,null,null,0]
[null,null,null,null,null,null,null,null,null,null,null,null,null,null,null,null,0]
[null,null,null,null,null,null,null,null,null,null,null,null,null,null,null,null,0]
[null,null,null,null,null,null,null,null,null,null,null,null,null,null,null,null,0]
[null,null,null,null,null,null,null,null,null,null,null,null,null,null,null,null,0]
[]
[null,"※地域によっては上記新聞すべてを配達できない場合があります。その際はご連絡いたします"]
[]
["《その他要望》    ※記者派遣（オリエンテーション）、新聞社見学等希望があればご記入ください。"]

{"sheet":"43熊本","index":42,"n_rows":42,"n_cols":18,"rows_kept":42,"cut":false,"hidden":false,"merged":[[29,1,29,2],[31,1,31,2],[30,1,30,2],[1,0,1,17],[5,1,5,3],[6,1,6,3],[7,1,7,3],[27,1,27,2],[25,1,25,2],[6,4,6,5],[6,6,6,10],[6,11,6,12],[6,13,6,16],[7,4,7,15],[2,16,2,17],[3,3,3,15],[3,16,3,17],[5,4,5,12],[5,13,5,15],[28,1,28,2],[21,3,22,15],[26,1,26,2],[21,1,22,2],[24,1,24,2],[42,1,46,16],[37,1,37,2],[36,1,36,2],[32,1,32,2],[35,1,35,2],[33,1,33,2],[34,1,34,2]]}
[null,null,null,null,null,null,null,null,null,null,null,null,null,null,null,null,"学校番号：","　　　　"]
["《2026年度 年間購読計画表》"]
["【43熊本】",null,null,null,null,null,null,null,null,null,null,null,null,null,null,null,"選んでください↓"]
["学　校　名",null,null,null,null,null,null,null,null,null,null,null,null,null,null,null,"（新規校）"]
[]
[null,"実践代表者名",null,null,null,null,null,null,null,null,null,null,null,"実践者（教師）",null,null,null,"人"]
[null,"連　絡　先",null,null,"電話：",null,null,null,null,null,null,"ファクス："]
[null,"実践形式",null,null,null,null,null,null,null,null,null,null,null,null,null,null,1]
[]
[null,null,null,null,null,null,null,null,null,null,null,"※割当部数"]
[null,null,null,null,null,null,null,null,null,null,null,null,"Ａ：１銘柄につき１部を延べ２か月"]
[null,null,null,null,null,null,null,null,null,null,null,null,"Ｂ：１銘柄につき１部を延べ４か月"]
[]
["《月決め》"]
[null,"　※以下は太枠に囲まれた部分のみをご記入ください。"]
[null,"　　 割当部数に応じて、配達を希望する月に希望部数を記入してください。"]
[null,"　　 初めて実践される方は、別紙の購読パターンを参考にご記入ください。"]
[null,"　※継続校は４月以降の購読開始となります。"]
[null,"　　新規校は参加申請書の提出時期によって５月以降か９月以降の開始となります。"]
[]
[null,null,null,null,null,null,null,null,null,null,null,null,null,null,null,null,"合計"]
[null,"新聞名",null,"配達月",null,null,null,null,null,null,null,null,null,null,null,null,"\n月数"]
[]
[null,null,null,"4月","5月","6月","7月","8月","9月","10月","11月","12月","1月","2月","3月"]
[null,"実践形式Aの場合\n例）毎朝",null,null,null,null,null,null,1,1,null,null,null,null,null,null,2]
[null,"実践形式Bの場合\n例）毎朝",null,null,null,null,null,null,1,null,1,1,null,1,null,null,4]
[null,"朝　日",null,null,null,null,null,null,null,null,null,null,null,null,null,null,{"$f":"SUM(D27:O27)","v":0}]
[null,"毎　日",null,null,null,null,null,null,null,null,null,null,null,null,null,null,0]
[null,"読　売",null,null,null,null,null,null,null,null,null,null,null,null,null,null,0]
[null,"日　経",null,null,null,null,null,null,null,null,null,null,null,null,null,null,0]
["　","西日本",null,null,null,null,null,null,null,null,null,null,null,null,null,null,0]
["　","熊本日日",null,null,null,null,null,null,null,null,null,null,null,null,null,null,0]
[null,null,null,null,null,null,null,null,null,null,null,null,null,null,null,null,0]
[null,null,null,null,null,null,null,null,null,null,null,null,null,null,null,null,0]
[null,null,null,null,null,null,null,null,null,null,null,null,null,null,null,null,0]
[null,null,null,null,null,null,null,null,null,null,null,null,null,null,null,null,0]
[null,null,null,null,null,null,null,null,null,null,null,null,null,null,null,null,0]
[null,null,null,null,null,null,null,null,null,null,null,null,null,null,null,null,0]
[]
[null,"※地域によっては上記新聞すべてを配達できない場合があります。その際はご連絡いたします"]
[]
["《その他要望》    ※記者派遣（オリエンテーション）、新聞社見学等希望があればご記入ください。"]

{"sheet":"44大分","index":43,"n_rows":42,"n_cols":18,"rows_kept":42,"cut":false,"hidden":false,"merged":[[1,0,1,17],[5,1,5,3],[6,1,6,3],[7,1,7,3],[27,1,27,2],[26,1,26,2],[21,1,22,2],[24,1,24,2],[25,1,25,2],[21,3,22,15],[2,16,2,17],[3,3,3,15],[3,16,3,17],[5,4,5,12],[5,13,5,15],[6,4,6,5],[6,6,6,10],[6,11,6,12],[6,13,6,16],[7,4,7,15],[37,1,37,2],[42,1,46,16],[28,1,28,2],[36,1,36,2],[31,1,31,2],[35,1,35,2],[32,1,32,2],[33,1,33,2],[34,1,34,2],[29,1,29,2],[30,1,30,2]]}
[null,null,null,null,null,null,null,null,null,null,null,null,null,null,null,null,"学校番号：","　　　　"]
["《2026年度 年間購読計画表》"]
["【44大分】",null,null,null,null,null,null,null,null,null,null,null,null,null,null,null,"選んでください↓"]
["学　校　名",null,null,null,null,null,null,null,null,null,null,null,null,null,null,null,"（新規校）"]
[]
[null,"実践代表者名",null,null,null,null,null,null,null,null,null,null,null,"実践者（教師）",null,null,null,"人"]
[null,"連　絡　先",null,null,"電話：",null,null,null,null,null,null,"ファクス："]
[null,"実践形式",null,null,null,null,null,null,null,null,null,null,null,null,null,null,1]
[]
[null,null,null,null,null,null,null,null,null,null,null,"※割当部数"]
[null,null,null,null,null,null,null,null,null,null,null,null,"Ａ：１銘柄につき１部を延べ２か月"]
[null,null,null,null,null,null,null,null,null,null,null,null,"Ｂ：１銘柄につき１部を延べ４か月"]
[]
["《月決め》"]
[null,"　※以下は太枠に囲まれた部分のみをご記入ください。"]
[null,"　　 割当部数に応じて、配達を希望する月に希望部数を記入してください。"]
[null,"　　 初めて実践される方は、別紙の購読パターンを参考にご記入ください。"]
[null,"　※継続校は４月以降の購読開始となります。"]
[null,"　　新規校は参加申請書の提出時期によって５月以降か９月以降の開始となります。"]
[]
[null,null,null,null,null,null,null,null,null,null,null,null,null,null,null,null,"合計"]
[null,"新聞名",null,"配達月",null,null,null,null,null,null,null,null,null,null,null,null,"\n月数"]
[]
[null,null,null,"4月","5月","6月","7月","8月","9月","10月","11月","12月","1月","2月","3月"]
[null,"実践形式Aの場合\n例）毎朝",null,null,null,null,null,null,1,1,null,null,null,null,null,null,2]
[null,"実践形式Bの場合\n例）毎朝",null,null,null,null,null,null,1,null,1,1,null,1,null,null,4]
[null,"朝　日",null,null,null,null,null,null,null,null,null,null,null,null,null,null,{"$f":"SUM(D27:O27)","v":0}]
[null,"毎　日",null,null,null,null,null,null,null,null,null,null,null,null,null,null,{"$f":"SUM(D28:O28)","v":0}]
[null,"読　売",null,null,null,null,null,null,null,null,null,null,null,null,null,null,0]
[null,"日　経",null,null,null,null,null,null,null,null,null,null,null,null,null,null,0]
["　","西日本",null,null,null,null,null,null,null,null,null,null,null,null,null,null,0]
[null,"大　分",null,null,null,null,null,null,null,null,null,null,null,null,null,null,0]
[null,null,null,null,null,null,null,null,null,null,null,null,null,null,null,null,0]
[null,null,null,null,null,null,null,null,null,null,null,null,null,null,null,null,0]
[null,null,null,null,null,null,null,null,null,null,null,null,null,null,null,null,0]
[null,null,null,null,null,null,null,null,null,null,null,null,null,null,null,null,0]
[null,null,null,null,null,null,null,null,null,null,null,null,null,null,null,null,0]
[null,null,null,null,null,null,null,null,null,null,null,null,null,null,null,null,0]
[]
[null,"※地域によっては上記新聞すべてを配達できない場合があります。その際はご連絡いたします"]
[]
["《その他要望》    ※記者派遣（オリエンテーション）、新聞社見学等希望があればご記入ください。"]

{"sheet":"45宮崎","index":44,"n_rows":42,"n_cols":18,"rows_kept":42,"cut":false,"hidden":false,"merged":[[6,4,6,5],[6,6,6,10],[6,11,6,12],[6,13,6,16],[7,4,7,15],[2,16,2,17],[3,3,3,15],[3,16,3,17],[5,4,5,12],[5,13,5,15],[32,1,32,2],[33,1,33,2],[34,1,34,2],[29,1,29,2],[30,1,30,2],[42,1,46,16],[37,1,37,2],[1,0,1,17],[5,1,5,3],[6,1,6,3],[7,1,7,3],[27,1,27,2],[21,3,22,15],[26,1,26,2],[21,1,22,2],[24,1,24,2],[25,1,25,2],[28,1,28,2],[36,1,36,2],[31,1,31,2],[35,1,35,2]]}
[null,null,null,null,null,null,null,null,null,null,null,null,null,null,null,null,"学校番号：","　　　　"]
["《2026年度 年間購読計画表》"]
["【45宮崎】",null,null,null,null,null,null,null,null,null,null,null,null,null,null,null,"選んでください↓"]
["学　校　名",null,null,null,null,null,null,null,null,null,null,null,null,null,null,null,"（新規校）"]
[]
[null,"実践代表者名",null,null,null,null,null,null,null,null,null,null,null,"実践者（教師）",null,null,null,"人"]
[null,"連　絡　先",null,null,"電話：",null,null,null,null,null,null,"ファクス："]
[null,"実践形式",null,null,null,null,null,null,null,null,null,null,null,null,null,null,1]
[]
[null,null,null,null,null,null,null,null,null,null,null,"※割当部数"]
[null,null,null,null,null,null,null,null,null,null,null,null,"Ａ：１銘柄につき１部を延べ２か月"]
[null,null,null,null,null,null,null,null,null,null,null,null,"Ｂ：１銘柄につき１部を延べ４か月"]
[]
["《月決め》"]
[null,"　※以下は太枠に囲まれた部分のみをご記入ください。"]
[null,"　　 割当部数に応じて、配達を希望する月に希望部数を記入してください。"]
[null,"　　 初めて実践される方は、別紙の購読パターンを参考にご記入ください。"]
[null,"　※継続校は４月以降の購読開始となります。"]
[null,"　　新規校は参加申請書の提出時期によって５月以降か９月以降の開始となります。"]
[]
[null,null,null,null,null,null,null,null,null,null,null,null,null,null,null,null,"合計"]
[null,"新聞名",null,"配達月",null,null,null,null,null,null,null,null,null,null,null,null,"\n月数"]
[]
[null,null,null,"4月","5月","6月","7月","8月","9月","10月","11月","12月","1月","2月","3月"]
[null,"実践形式Aの場合\n例）毎朝",null,null,null,null,null,null,1,1,null,null,null,null,null,null,2]
[null,"実践形式Bの場合\n例）毎朝",null,null,null,null,null,null,1,null,1,1,null,1,null,null,4]
[null,"朝　日",null,null,null,null,null,null,null,null,null,null,null,null,null,null,{"$f":"SUM(D27:O27)","v":0}]
[null,"毎　日",null,null,null,null,null,null,null,null,null,null,null,null,null,null,{"$f":"SUM(D28:O28)","v":0}]
[null,"読　売",null,null,null,null,null,null,null,null,null,null,null,null,null,null,0]
[null,"日　経",null,null,null,null,null,null,null,null,null,null,null,null,null,null,0]
["　","宮崎日日",null,null,null,null,null,null,null,null,null,null,null,null,null,null,0]
[null,null,null,null,null,null,null,null,null,null,null,null,null,null,null,null,0]
[null,null,null,null,null,null,null,null,null,null,null,null,null,null,null,null,0]
[null,null,null,null,null,null,null,null,null,null,null,null,null,null,null,null,0]
[null,null,null,null,null,null,null,null,null,null,null,null,null,null,null,null,0]
[null,null,null,null,null,null,null,null,null,null,null,null,null,null,null,null,0]
[null,null,null,null,null,null,null,null,null,null,null,null,null,null,null,null,0]
[null,null,null,null,null,null,null,null,null,null,null,null,null,null,null,null,0]
[]
[null,"※地域によっては上記新聞すべてを配達できない場合があります。その際はご連絡いたします"]
[]
["《その他要望》    ※記者派遣（オリエンテーション）、新聞社見学等希望があればご記入ください。"]

{"sheet":"46鹿児島","index":45,"n_rows":42,"n_cols":18,"rows_kept":42,"cut":false,"hidden":false,"merged":[[6,4,6,5],[6,6,6,10],[6,11,6,12],[6,13,6,16],[7,4,7,15],[2,16,2,17],[3,3,3,15],[3,16,3,17],[5,4,5,12],[5,13,5,15],[32,1,32,2],[33,1,33,2],[34,1,34,2],[29,1,29,2],[30,1,30,2],[42,1,46,16],[37,1,37,2],[1,0,1,17],[5,1,5,3],[6,1,6,3],[7,1,7,3],[27,1,27,2],[21,3,22,15],[26,1,26,2],[21,1,22,2],[24,1,24,2],[25,1,25,2],[28,1,28,2],[36,1,36,2],[31,1,31,2],[35,1,35,2]]}
[null,null,null,null,null,null,null,null,null,null,null,null,null,null,null,null,"学校番号：","　　　　"]
["《2026年度 年間購読計画表》"]
["【46鹿児島】",null,null,null,null,null,null,null,null,null,null,null,null,null,null,null,"選んでください↓"]
["学　校　名",null,null,null,null,null,null,null,null,null,null,null,null,null,null,null,"（新規校）"]
[]
[null,"実践代表者名",null,null,null,null,null,null,null,null,null,null,null,"実践者（教師）",null,null,null,"人"]
[null,"連　絡　先",null,null,"電話：",null,null,null,null,null,null,"ファクス："]
[null,"実践形式",null,null,null,null,null,null,null,null,null,null,null,null,null,null,1]
[]
[null,null,null,null,null,null,null,null,null,null,null,"※割当部数"]
[null,null,null,null,null,null,null,null,null,null,null,null,"Ａ：１銘柄につき１部を延べ２か月"]
[null,null,null,null,null,null,null,null,null,null,null,null,"Ｂ：１銘柄につき１部を延べ４か月"]
[]
["《月決め》"]
[null,"　※以下は太枠に囲まれた部分のみをご記入ください。"]
[null,"　　 割当部数に応じて、配達を希望する月に希望部数を記入してください。"]
[null,"　　 初めて実践される方は、別紙の購読パターンを参考にご記入ください。"]
[null,"　※継続校は４月以降の購読開始となります。"]
[null,"　　新規校は参加申請書の提出時期によって５月以降か９月以降の開始となります。"]
[]
[null,null,null,null,null,null,null,null,null,null,null,null,null,null,null,null,"合計"]
[null,"新聞名",null,"配達月",null,null,null,null,null,null,null,null,null,null,null,null,"\n月数"]
[]
[null,null,null,"4月","5月","6月","7月","8月","9月","10月","11月","12月","1月","2月","3月"]
[null,"実践形式Aの場合\n例）毎朝",null,null,null,null,null,null,1,1,null,null,null,null,null,null,2]
[null,"実践形式Bの場合\n例）毎朝",null,null,null,null,null,null,1,null,1,1,null,1,null,null,4]
[null,"朝　日",null,null,null,null,null,null,null,null,null,null,null,null,null,null,{"$f":"SUM(D27:O27)","v":0}]
[null,"毎　日",null,null,null,null,null,null,null,null,null,null,null,null,null,null,{"$f":"SUM(D28:O28)","v":0}]
[null,"読　売",null,null,null,null,null,null,null,null,null,null,null,null,null,null,0]
[null,"日　経",null,null,null,null,null,null,null,null,null,null,null,null,null,null,0]
["　","南日本",null,null,null,null,null,null,null,null,null,null,null,null,null,null,0]
[null,"南海日日",null,null,null,null,null,null,null,null,null,null,null,null,null,null,0]
[null,null,null,null,null,null,null,null,null,null,null,null,null,null,null,null,0]
[null,null,null,null,null,null,null,null,null,null,null,null,null,null,null,null,0]
[null,null,null,null,null,null,null,null,null,null,null,null,null,null,null,null,0]
[null,null,null,null,null,null,null,null,null,null,null,null,null,null,null,null,0]
[null,null,null,null,null,null,null,null,null,null,null,null,null,null,null,null,0]
[null,null,null,null,null,null,null,null,null,null,null,null,null,null,null,null,0]
[]
[null,"※地域によっては上記新聞すべてを配達できない場合があります。その際はご連絡いたします"]
[]
["《その他要望》    ※記者派遣（オリエンテーション）、新聞社見学等希望があればご記入ください。"]

{"sheet":"47沖縄","index":46,"n_rows":42,"n_cols":18,"rows_kept":42,"cut":false,"hidden":false,"merged":[[1,0,1,17],[5,1,5,3],[6,1,6,3],[7,1,7,3],[27,1,27,2],[26,1,26,2],[21,1,22,2],[24,1,24,2],[25,1,25,2],[21,3,22,15],[2,16,2,17],[3,3,3,15],[3,16,3,17],[5,4,5,12],[5,13,5,15],[6,4,6,5],[6,6,6,10],[6,11,6,12],[6,13,6,16],[7,4,7,15],[37,1,37,2],[42,1,46,16],[28,1,28,2],[36,1,36,2],[31,1,31,2],[35,1,35,2],[32,1,32,2],[33,1,33,2],[34,1,34,2],[29,1,29,2],[30,1,30,2]]}
[null,null,null,null,null,null,null,null,null,null,null,null,null,null,null,null,"学校番号：","　　　　"]
["《2026年度 年間購読計画表》"]
["【47沖縄】",null,null,null,null,null,null,null,null,null,null,null,null,null,null,null,"選んでください↓"]
["学　校　名",null,null,null,null,null,null,null,null,null,null,null,null,null,null,null,"（新規校）"]
[]
[null,"実践代表者名",null,null,null,null,null,null,null,null,null,null,null,"実践者（教師）",null,null,null,"人"]
[null,"連　絡　先",null,null,"電話：",null,null,null,null,null,null,"ファクス："]
[null,"実践形式",null,null,null,null,null,null,null,null,null,null,null,null,null,null,1]
[]
[null,null,null,null,null,null,null,null,null,null,null,"※割当部数"]
[null,null,null,null,null,null,null,null,null,null,null,null,"Ａ：１銘柄につき１部を延べ２か月"]
[null,null,null,null,null,null,null,null,null,null,null,null,"Ｂ：１銘柄につき１部を延べ４か月"]
[]
["《月決め》"]
[null,"　※以下は太枠に囲まれた部分のみをご記入ください。"]
[null,"　　 割当部数に応じて、配達を希望する月に希望部数を記入してください。"]
[null,"　　 初めて実践される方は、別紙の購読パターンを参考にご記入ください。"]
[null,"　※継続校は４月以降の購読開始となります。"]
[null,"　　新規校は参加申請書の提出時期によって５月以降か９月以降の開始となります。"]
[]
[null,null,null,null,null,null,null,null,null,null,null,null,null,null,null,null,"合計"]
[null,"新聞名",null,"配達月",null,null,null,null,null,null,null,null,null,null,null,null,"\n月数"]
[]
[null,null,null,"4月","5月","6月","7月","8月","9月","10月","11月","12月","1月","2月","3月"]
[null,"実践形式Aの場合\n例）毎朝",null,null,null,null,null,null,1,1,null,null,null,null,null,null,2]
[null,"実践形式Bの場合\n例）毎朝",null,null,null,null,null,null,1,null,1,1,null,1,null,null,4]
[null,"朝　日",null,null,null,null,null,null,null,null,null,null,null,null,null,null,{"$f":"SUM(D27:O27)","v":0}]
[null,"毎　日",null,null,null,null,null,null,null,null,null,null,null,null,null,null,{"$f":"SUM(D28:O28)","v":0}]
[null,"読　売",null,null,null,null,null,null,null,null,null,null,null,null,null,null,0]
[null,"日　経",null,null,null,null,null,null,null,null,null,null,null,null,null,null,0]
["　","沖タイ",null,null,null,null,null,null,null,null,null,null,null,null,null,null,0]
[null,"琉　球",null,null,null,null,null,null,null,null,null,null,null,null,null,null,0]
[null,"八重山毎日",null,null,null,null,null,null,null,null,null,null,null,null,null,null,0]
[null,"宮古毎日",null,null,null,null,null,null,null,null,null,null,null,null,null,null,0]
[null,null,null,null,null,null,null,null,null,null,null,null,null,null,null,null,0]
[null,null,null,null,null,null,null,null,null,null,null,null,null,null,null,null,0]
[null,null,null,null,null,null,null,null,null,null,null,null,null,null,null,null,0]
[null,null,null,null,null,null,null,null,null,null,null,null,null,null,null,null,0]
[]
[null,"※地域によっては上記新聞すべてを配達できない場合があります。その際はご連絡いたします"]
[]
["《その他要望》    ※記者派遣（オリエンテーション）、新聞社見学等希望があればご記入ください。"]

{"sheet":"サンプル","index":47,"n_rows":42,"n_cols":18,"rows_kept":42,"cut":false,"hidden":false,"merged":[[29,1,29,2],[1,0,1,17],[5,1,5,3],[6,1,6,3],[7,1,7,3],[21,1,22,2],[21,3,22,15],[3,16,3,17],[3,3,3,15],[7,4,7,15],[5,4,5,12],[6,6,6,10],[6,13,6,16],[6,11,6,12],[6,4,6,5],[42,1,46,16],[2,16,2,17],[5,13,5,15],[37,1,37,2],[36,1,36,2],[30,1,30,2],[31,1,31,2],[32,1,32,2],[33,1,33,2],[34,1,34,2],[35,1,35,2],[24,1,24,2],[25,1,25,2],[26,1,26,2],[27,1,27,2],[28,1,28,2]]}
[null,null,null,null,null,null,null,null,null,null,null,null,null,null,null,null,"学校番号：","　　　　"]
["《2025年度 年間購読計画表》"]
["【サンプル】",null,null,null,null,null,null,null,null,null,null,null,null,null,null,null,"選んでください↓"]
["学　校　名",null,null,null,null,null,null,null,null,null,null,null,null,null,null,null,"（継続校）"]
[]
[null,"実践代表者名",null,null,null,null,null,null,null,null,null,null,null,"実践者（教師）",null,null,null,"人"]
[null,"連　絡　先",null,null,"電話：",null,null,null,null,null,null,"ファクス："]
[null,"実践形式",null,null,null,null,null,null,null,null,null,null,null,null,null,null,1]
[]
[null,null,null,null,null,null,null,null,null,null,null,"※割当部数"]
[null,null,null,null,null,null,null,null,null,null,null,null,"Ａ：１銘柄につき１部を延べ２か月"]
[null,null,null,null,null,null,null,null,null,null,null,null,"Ｂ：１銘柄につき１部を延べ４か月"]
[]
["《月決め》"]
[null,"　※以下は太枠に囲まれた部分のみをご記入ください。"]
[null,"　　 割当部数に応じて、配達を希望する月に希望部数を記入してください。"]
[null,"　　 初めて実践される方は、別紙の購読パターンを参考にご記入ください。"]
[null,"　※継続校は４月以降の購読開始となります。"]
[null,"　　新規校は参加申請書の提出時期によって５月以降か９月以降の開始となります。"]
[]
[null,null,null,null,null,null,null,null,null,null,null,null,null,null,null,null,"合計"]
[null,"新聞名",null,"配達月",null,null,null,null,null,null,null,null,null,null,null,null,"\n月数"]
[]
[null,null,null,"4月","5月","6月","7月","8月","9月","10月","11月","12月","1月","2月","3月"]
[null,"実践形式Aの場合\n例）毎朝",null,null,null,null,null,null,1,1,null,null,null,null,null,null,2]
[null,"実践形式Bの場合\n例）毎朝",null,null,null,null,null,null,1,null,1,1,null,1,null,null,4]
[null,"サンプル",null,null,null,null,null,null,1,null,3,null,null,null,null,null,{"$f":"SUM(D27:O27)","v":4}]
[null,"サンプル",null,null,null,null,null,null,1,1,1,1,null,null,null,null,{"$f":"SUM(D28:O28)","v":4}]
[null,"サンプル",null,null,null,null,null,null,2,2,null,null,null,null,null,null,4]
[null,"サンプル",null,null,null,null,null,null,2,null,2,null,null,null,null,null,4]
["　","サンプル",null,null,null,null,null,null,1,1,1,1,null,null,null,null,4]
[null,"サンプル",null,null,null,null,null,null,2,2,null,null,null,null,null,null,4]
[null,"サンプル",null,null,null,null,null,null,null,null,2,2,null,null,null,null,4]
[null,"サンプル",null,null,null,null,null,null,null,null,null,1,1,1,1,null,4]
[null,"サンプル",null,null,null,null,null,null,1,1,1,1,null,null,null,null,4]
[null,null,null,null,null,null,null,null,null,null,null,null,null,null,null,null,0]
[null,null,null,null,null,null,null,null,null,null,null,null,null,null,null,null,0]
[null,null,null,null,null,null,null,null,null,null,null,null,null,null,null,null,0]
[]
[null,"※地域によっては上記新聞すべてを配達できない場合があります。その際はご連絡いたします"]
[]
["《その他要望》    ※記者派遣（オリエンテーション）、新聞社見学等希望があればご記入ください。"]